fonte_recurso,saldo_empenho,esfera,licitacao,ano,data,plano_interno,convenio,valor_anulado,valor_cancelado,programa_trabalho_resumido,documento_associado,observacoes,cod_empenho,natureza_despesa,credor,processo,nome_unidade_gestora,valor_reforcado,valor_empenho,modalidade,id_unidade_gestora
RECURSOS DIRETAM.ARREC FUNDAÇÃO UNIV.BRASÍLIA,2596.98,FISCAL,null,2023,23/01/2023,TAXA ADMINISTRATIVA DO CDT,null,null,null,FUNCIONAMENTO DE INSTITUICOES FEDERAI - NO DF,23106.128290/2022-96,AQUISIÇÃO DE MATERIAL PERMANENTE (APARELHO TELEFONICO) // UG: 160196 PR: 00004/2021 // PROJETO: PLANO DE DESENVOLVIMENTO INSTITUCIONAL 2022 // SEI: 23106.128290/2022-96 (ORÇAMENTO 2022),400120,EQUIP. MATERIAL PERMANENTE,NETMINAS COMERCIO DE INFORMATICA EIRELI,null,CENTRO DE APOIO AO DESENVOLVIMENTO TECNOLÓGICO,null,2596.98,ordinário,643
ARRECADACAO CDT,21597.00,FISCAL,null,2023,24/02/2023,PROJETO TOLEDO BIGDATA,null,null,null,FUNCIONAMENTO DE INSTITUICOES FEDERAI - NO DF,23106.147831/2022-85,"AQUISIÇÃO DE MATERIAL PERMANENTE (INFORMÁTICA) // MERCADAO DOS IMPORTADOS MAGAZINESLTDA, CNPJ NO 24.651.985/0001-83 // PROJETO: GEPRO_LINFO_TOLEDO_BIGDATA_2019 // SEI:23106.147831/2022-85",400019,EQUIP. MATERIAL PERMANENTE,MERCADAO DOS IMPORTADOS MAGAZINES LTDA,null,CENTRO DE APOIO AO DESENVOLVIMENTO TECNOLÓGICO,null,21597.00,ordinário,643
RECURSOS DIRETAM.ARREC FUNDAÇÃO UNIV.BRASÍLIA,4240.00,FISCAL,null,2023,23/01/2023,TAXA ADMINISTRATIVA DO CDT,null,null,null,FUNCIONAMENTO DE INSTITUICOES FEDERAI - NO DF,23106.091540/2022-25,"AQUISIÇÃO DE MATERIAL PERMANENTE (PoE) // PROJETO: PLANO DEDESENVOLVIMENTO INSTITUCIONAL 2022 // SEI: 23106.091540/2022-25",400018,EQUIP. MATERIAL PERMANENTE,HERCOM INFORMATICA EIRELI,null,CENTRO DE APOIO AO DESENVOLVIMENTO TECNOLÓGICO,null,4240.00,ordinário,643
PREST   SERVICOS FUB/FUNDO,1200.00,FISCAL,PR,2023,03/03/2023,CRÉDITOS DISTRIBUÍDOS PARA AS UNIDADES ACADÊMICAS,null,null,null,FUNCIONAMENTO DE INSTITUICOES FEDERAI - NO DF,23106.006760/2023-42,"C. CUSTO: IB.     PROT:11010112(1200,00)       SEI 23106.006760/2023-42.FRETE AÉREO INTERNACIONAL.2023ND001083.       DESPACHO IB/CFS 9222585.",410,SERV. PESSOA JURÍDICA,WEGH ASSESSORIA E LOGISTICA INTERNACIONAL LTDA - EPP,null,UNIVERSIDADE DE BRASÍLIA,null,1200.00,estimativo,605
TESOURO,10446.25,FISCAL,IN 20001/2022 - UNB,2023,03/03/2023,SERVIÇOS DE FERRAMENTA DE PESQUISA E COMPARAÇÃO DE PREÇOS,null,null,null,FUNCIONAMENTO DE INSTITUICOES FEDERAI - NO DF,23106.108257/2021-69,"C. CUSTO: PRC.       PROT:110105(10446,25)          SEI 23106.108257/2021-69.CONTRATAÇÃO DE ACESSO À FERRAMENTA DE PESQUISA E COMPARAÇÃO DE PREÇOS.   PRIMEIRO TERMO ADITIVO AO CONTRATO 605/2022.         2023ND001095.",409,SERVIÇOS TIC,NP CAPACITACAO E SOLUCOES TECNOLOGICAS LTDA,null,UNIVERSIDADE DE BRASÍLIA,null,10446.25,global,605
PREST   SERVICOS FUB/FUNDO,1100.00,FISCAL,PR 1/2022 - 32  GAC,2023,02/03/2023,CRÉDITOS DISTRIBUÍDOS PARA AS UNIDADES ACADÊMICAS,null,null,null,FUNCIONAMENTO DE INSTITUICOES FEDERAI - NO DF,23106.001077/2022-48,"C. CUSTO: FDD                  SEI:23106.018778/2023-97ATT: TALITA TATIANA DIAS       2023ND000982 -  32 GAC - 160058MEMO.S.N/2023/FD/NPJ           PROT:11010106{SM366/2023(1100,00)} MATERIAL DE PERMANENTE - PEDIDO:0366/2023 - PREG:001/2022APA.UTENS.DOMÉSTOCO - FORNO MICROONDAS - CAPACIDADE 38 L",407,EQUIP. MATERIAL PERMANENTE,JOICE LARA ROSA,null,UNIVERSIDADE DE BRASÍLIA,null,1100.00,ordinário,605
PREST   SERVICOS FUB/FUNDO,2496.00,FISCAL,PR 26/2022 - SEC.ADM./PR,2023,02/03/2023,CRÉDITOS DISTRIBUÍDOS PARA AS UNIDADES ACADÊMICAS,null,null,null,FUNCIONAMENTO DE INSTITUICOES FEDERAI - NO DF,23106.000127/2022-77,"C. CUSTO: FD.       PROT:11010106{SM797/2023(2496,00)}         SEI 23106.020462/2023-65.AQUISIÇÃO DE FORNO MICROONDAS.2023ND000944.      DESPACHO FD/PPGD 9367302.     PREGÃO 26/2022 - SEC.ADM./PR.",406,EQUIP. MATERIAL PERMANENTE,F & R SOLUCOES ADMINISTRATIVAS LTDA,null,UNIVERSIDADE DE BRASÍLIA,null,2496.00,ordinário,605
PREST   SERVICOS FUB/FUNDO,168.03,FISCAL,PR 26/2022 - SEC.ADM./PR,2023,02/03/2023,CRÉDITOS DISTRIBUÍDOS PARA AS UNIDADES ACADÊMICAS,null,null,null,FUNCIONAMENTO DE INSTITUICOES FEDERAI - NO DF,23106.000127/2022-77,"C. CUSTO: FD.       PROT:11010106{SM793/2023(168,03)}         SEI 23106.020462/2023-65.AQUISIÇÃO DE LIQUIDIFICADOR.2023ND000944.      DESPACHO FD/PPGD 9367302.     PREGÃO 26/2022 - SEC.ADM./PR.",405,EQUIP. MATERIAL PERMANENTE,ARGOS LTDA,null,UNIVERSIDADE DE BRASÍLIA,null,168.03,ordinário,605
TESOURO,95129.25,FISCAL,PR,2023,02/03/2023,ALMOXARIFADO E TRANSPORTE MOVEIS E MATERIAIS,null,null,null,FUNCIONAMENTO DE INSTITUICOES FEDERAI - NO DF,23106.016012/2023-78,"C.CUSTO:DTER// PGTO NF Nº 17// SERVIÇOS TERCEIRIZADOS DE ALMOXARIFADO E SERV DE TRANSP INTERNO DE MATERIAS// MEMORANDO 013/2023/DAF/DCA/CDE/DGDE (9320641)// SEI N. 23106.016012/2023-78// CONTRATO 111/2022// 2023ND001064// PROT:11011007(95129,25)",403,LOC. MÃO-DE-OBRA,PHOENIX COMERCIO E SERVICOS DE LIMPEZA LTDA,null,UNIVERSIDADE DE BRASÍLIA,null,95129.25,global,605
PREST   SERVICOS FUB/FUNDO,12900.00,FISCAL,PR 50/2022 - UNB,2023,01/03/2023,CRÉDITOS DISTRIBUÍDOS PARA AS UNIDADES ACADÊMICAS,null,null,null,FUNCIONAMENTO DE INSTITUICOES FEDERAI - NO DF,23106.102019/2022-21,"C.CUSTO:IQD - AT-  LUIZ EDUARDO CELINO  - PROT:11010122{SM953/2023(12900,00)}         MATERIAL DE CONSUMO-PEDIDO:953/2023 - 2023ND000757 - PREG:50/2022GÁS E OUTROS MATERIAIS ENGARRAFADOS - GÁS COMPRIMIDO -  NOME NITROGÊNIO LÍQUIDOMEMO.S.N/2023/IQ/CAIQ  - S.E.I 23106.015117/2023-18",401,MAT. CONSUMO,A NITROBRAS NITROGENIO E SEMEN LTDA,null,UNIVERSIDADE DE BRASÍLIA,null,12900.00,ordinário,605
TESOURO,513.00,FISCAL,PR 18/2022 - UNB,2023,01/03/2023,MATRIZ HVET_,null,null,null,20RK - FUNCIONAMENTO DOS HOSPITAL VETERINARIOS,23106.031074/2022-29,"C.CUSTO:HVET -AT- LIRIA QUEIROZ LUZ HIRANO - PROT:1101010501{SM957/2023(513,00)}         MATERIAL DE CONSUMO-PEDIDO:957/2023 -2023ND001035 - PREG:18/2022MATERIAL FARMACOLÓGICO - EPINEFRINA - 1 MG/ML - INJETÁVEL - 1 MLMEMO.S.N/2023/FAV/HVET/HVETINHO - S.E.I 23106.022056/2023-37",397,MAT. CONSUMO,HEALTH DISTRIBUIDORA DE MEDICAMENTOS LTDA,null,UNIVERSIDADE DE BRASÍLIA,null,513.00,ordinário,605
PREST   SERVICOS FUB/FUNDO,500.00,FISCAL,PR,2023,28/02/2023,CRÉDITOS DISTRIBUÍDOS PARA AS UNIDADES ADMINISTRATIVAS,null,null,null,FUNCIONAMENTO DE INSTITUICOES FEDERAI - NO DF,23106.139915/2022-45,"C. CUSTO: GRE                                     SEI:23106.139915/2022-45PAGAMENTO DE SEGURO VIAGEM                        PROT:1101(500,00)MEMO.061/2022/REITORIA/GRE                        2023ND000992 - CONTRATO:125/2018",396,SERV. PESSOA JURÍDICA,VOETUR TURISMO E REPRESENTACOES LTDA,null,UNIVERSIDADE DE BRASÍLIA,null,500.00,estimativo,605
PREST   SERVICOS FUB/FUNDO,20000.00,FISCAL,PR,2023,28/02/2023,CRÉDITOS DISTRIBUÍDOS PARA AS UNIDADES ADMINISTRATIVAS,null,null,null,FUNCIONAMENTO DE INSTITUICOES FEDERAI - NO DF,23106.139915/2022-45,"C. CUSTO: GRE                                     SEI:23106.139915/2022-45PAG.DE PASSAGEM INTERNACIONAL                     PROT:1101(20000,00)MEMO.061/2022/REITORIA/GRE                        2023ND000992 - CONTRATO:125/2018",395,PASSAGENS,VOETUR TURISMO E REPRESENTACOES LTDA,null,UNIVERSIDADE DE BRASÍLIA,null,20000.00,estimativo,605
TESOURO,323775.97,FISCAL,RDC,2023,28/02/2023,OBRA DOS QUIOSUQE DO ICC,null,null,null,FUNCIONAMENTO DE INSTITUIÇÕES FEDERAIS NO DF,23106.079438/2017-94,"C.CUSTO:INFRA// OBRA DE CONSTRUÇÃO QUIOSQUES DO ICC PARTE 2 // RDC ELETRONICO 04/2022// PROT:110137(323778,91)// SEI N.23106.079438/2017-94// 2023ND001049// CIPI: 20229.53-90",392,OBRAS E INSTALAÇÕES,JP CONSTRUÇOES E SERVIÇOS LTDA,null,UNIVERSIDADE DE BRASÍLIA,null,323775.97,global,605
TESOURO,577000.00,FISCAL,RDC,2023,28/02/2023,OBRA DOS QUIOSUQE DO ICC,null,null,null,RESTRUTURAÇÃO E MODERNIZAÇÃO DAS INS NO DF,23106.079438/2017-94,"C.CUSTO:INFRA// OBRA DE CONSTRUÇÃO QUIOSQUES DO ICC   PARTE 1 // RDC ELETRONICO 04/2022// PROT:110137(577000,00)// SEI N.23106.079438/2017-94// 2023ND001048",391,OBRAS E INSTALAÇÕES,JP CONSTRUÇOES E SERVIÇOS LTDA,null,UNIVERSIDADE DE BRASÍLIA,null,577000.00,global,605
PREST   SERVICOS FUB/FUNDO,15000.00,FISCAL,PR,2023,28/02/2023,CRÉDITOS DISTRIBUÍDOS PARA AS UNIDADES ACADÊMICAS,null,null,null,FUNCIONAMENTO DE INSTITUICOES FEDERAI - NO DF,23106.021383/2023-71,"C. CUSTO: FED                          SEI: 23106.021383/2023-71PAGAMENTO DE PASSAGEM NACIONAL         PROT:11010107(10000,00)MEMO.019/2023/FE/SFIN                  2023ND001017 - CONTRATO:125/2018",389,PASSAGENS,VOETUR TURISMO E REPRESENTACOES LTDA,null,UNIVERSIDADE DE BRASÍLIA,null,15000.00,estimativo,605
TESOURO,17067.46,FISCAL,PR,2023,28/02/2023,"SERV GER.LOJA, VENDEDOR E OPER.CAIXA EDUNB",null,null,null,FUNCIONAMENTO DE INSTITUICOES FEDERAI - NO DF,23106.016041/2023-30,"C. CUSTO: DTER.         PROT:11011007(17067,46)            SEI 23106.016041/2023-30.SERVIÇOS TERCEIRIZADOS DE VENDEDOR E GERENTE.           CONTRATO 022/2021.2023ND001043.        MEMO 017/2023/DAF/DCA/CDE/DGDE.",386,LOC. MÃO-DE-OBRA,ALFA E OMEGA SERVICOS TERCEIRIZADOS E EVENTOS LTDA,null,UNIVERSIDADE DE BRASÍLIA,null,17067.46,global,605
TESOURO,7980.00,FISCAL,IN 20002/2023 - UNB,2023,28/02/2023,CAPACITAÇÃO DE SERVIDORES,null,null,null,CAPACITACAO DE SERVIDORES PUBLICOS FE - NO DI,23106.013602/2023-49,"C.CUSTO:DGP//  INSCRIÇÃO EM EVENTO CURSO: PLANEJAMENTO DA LICITAÇAÕ// DESPACHO DGP / DCADE / PROCAP (9339509)PROT:110134(7980,00)// SEI N. 23106.013602/2023-49// 2023ND001007// INEXIG: 20002/2023",384,SERV. PESSOA JURÍDICA,ESCOLA DE NEGÓCIOS ELO - CURSOS E EVENTOS LTDA,null,UNIVERSIDADE DE BRASÍLIA,null,7980.00,global,605
RECURSOS DIRETAM.ARREC-FUNDAÇÃO UNIVERSIDADE,2607.20,FISCAL,PR,2023,28/02/2023,CUSTOS INDIRETOS DAS UNIDADES - RECOMPOSICAO,null,null,null,FUNCIONAMENTO DE INSTITUICOES FEDERAI - NO DF,23106.019026/2023-43,"C. CUSTO: IPD                        SEI: 23106.019026/2023-43ATT:   MARIA INÊS GANDOLFO           2023ND001005MEMO.038/2023/IP/DIR                 PROT:11010120(2607,20)SERVIÇOS DE TERCEIROS - PEDIDO:0000/2023 - CONTRATO: 031/2021FORNECIMENTO DE ALIMENTAÇÃO - FORNECIMENTO DE REFEIÇÕES -  COFFEE BREAK",383,SERV. PESSOA JURÍDICA,ISM GOMES DE MATTOS EIRELI,null,UNIVERSIDADE DE BRASÍLIA,null,2607.20,global,605
PREST   SERVICOS FUB/FUNDO,1308.00,FISCAL,PR 26/2022 - SEC.ADM./PR,2023,28/02/2023,CRÉDITOS DISTRIBUÍDOS PARA AS UNIDADES ACADÊMICAS,null,null,null,FUNCIONAMENTO DE INSTITUICOES FEDERAI - NO DF,23106.000127/2022-77,"C. CUSTO: IE.      PROT:11010115{SM364/2023(1308,00)}       SEI 23106.012654/2023-06.AQUISIÇÃO DE REFRIGERADOR FRIGOBAR.2023ND000577.      MEMO 04/2023/IE.         PREGÃO 26/2022 - SEC.ADM./PR.",382,EQUIP. MATERIAL PERMANENTE,XM CONSTRUCOES EIRELI,null,UNIVERSIDADE DE BRASÍLIA,null,1308.00,ordinário,605
PREST   SERVICOS FUB/FUNDO,624.00,FISCAL,PR 26/2022 - SEC.ADM./PR,2023,28/02/2023,CRÉDITOS DISTRIBUÍDOS PARA AS UNIDADES ACADÊMICAS,null,null,null,FUNCIONAMENTO DE INSTITUICOES FEDERAI - NO DF,23106.000127/2022-77,"C. CUSTO: IE.      PROT:11010115{SM363/2023(624,00)}       SEI 23106.012654/2023-06.AQUISIÇÃO DE FORNO MICROONDAS.2023ND000577.      MEMO 04/2023/IE.         PREGÃO 26/2022 - SEC.ADM./PR.",380,EQUIP. MATERIAL PERMANENTE,F & R SOLUCOES ADMINISTRATIVAS LTDA,null,UNIVERSIDADE DE BRASÍLIA,null,624.00,ordinário,605
TESOURO,5745.94,FISCAL,PR,2023,28/02/2023,JARDINAGEM,null,null,null,FUNCIONAMENTO DE INSTITUICOES FEDERAI - NO DF,23106.016081/2023-81,"C. CUSTO: PRC.      PROT:110105(5745,95)        SEI 23106.016081/2023-81.MANUTENÇÃO DE PARQUES E JARDINS.2023ND001001.           CONTRATO 624/2018.",376,SERV. PESSOA JURÍDICA,"WM PAISAGISMO, URBANISMO E COMERCIO EIRELI -ME",null,UNIVERSIDADE DE BRASÍLIA,null,5745.94,global,605
TESOURO,145012.82,FISCAL,PR,2023,28/02/2023,CONTÍNUO,null,null,null,FUNCIONAMENTO DE INSTITUICOES FEDERAI - NO DF,23106.016091/2023-17,"C. CUSTO: DTER.         PROT:11011007(145012,82)        SEI 23106.016091/2023-17.          SERVIÇOS TERCEIRIZADOS DE APOIO.              CONTRATO 006/2021.2023ND001002.",374,LOC. MÃO-DE-OBRA,T & S ENGENHARIA TELEMATICA E SISTEMAS LTDA,null,UNIVERSIDADE DE BRASÍLIA,null,145012.82,global,605
TESOURO,125441.44,FISCAL,PR,2023,28/02/2023,COPEIRAGEM,null,null,null,FUNCIONAMENTO DE INSTITUICOES FEDERAI - NO DF,23106.016084/2023-15,"C. CUSTO: DTER.         PROT:11011007(125441,44)        SEI 23106.016084/2023-15.      SERVIÇOS TERCEIRIZADOS DE RECEPCIONISTA.            CONTRATO 032/2019. 2023ND001003.",373,LOC. MÃO-DE-OBRA,GRIFFO SERVIÇOS GERAIS LTDA,null,UNIVERSIDADE DE BRASÍLIA,null,125441.44,global,605
TESOURO,5225.18,FISCAL,PR,2023,28/02/2023,EMPR ESPEC PREST SERV LIMP E CONS UNB CERRADO,null,null,null,FUNCIONAMENTO DE INSTITUICOES FEDERAI - NO DF,23106.016104/2023-58,"C. CUSTO: DTER// SERV DE LIMPEZA E HIGIENIZAÇÃO DE PISCINAS//CONTRATO 093/2020 2º TERMOADITIVO//MEMORANDO 025/2023/DAF/DCA/CDE/DGDE (9321652)// PGTO NF 961PROT:11011007(5225,18) // SEI:  23106.016104/2023-58//2023ND001012",372,SERV. PESSOA JURÍDICA,AP PISCINAS EIRELI,null,UNIVERSIDADE DE BRASÍLIA,null,5225.18,global,605
TESOURO,45705.33,FISCAL,PR,2023,28/02/2023,SUPORTE DE TI,null,null,null,FUNCIONAMENTO DE INSTITUICOES FEDERAI - NO DF,23106.150647/2022-12,"C.CUSTO:STI//  SUPORTE TECNICO DE TI E COMUNICAÇÃO// CONTRATO Nº 507/2019// PAGTO NF 159// PROT:110114(45705,33)//2023ND000994//DESPACHO STI / DOS / DDC (9322963)//  SEI N. 23106.150647/2022-12",371,SERVIÇOS TIC,CENTRAL IT TECNOLOGIA DA INFORMACAO LTDA,null,UNIVERSIDADE DE BRASÍLIA,null,45705.33,global,605
TESOURO,4466.08,FISCAL,PR,2023,28/02/2023,SERVICOS DE SALVA VIDAS E TRATADOR DE PISCINA,null,null,null,FUNCIONAMENTO DE INSTITUICOES FEDERAI - NO DF,23106.016090/2023-72,"C. CUSTO: DTER// SERVIÇOS DE LIMPEZA E HIGIENIZAÇÃO DE PISCINAS//CONTRATO 093/2020 2º TERMO ADITIVOMEMORANDO 025/2023/DAF/DCA/CDE/DGDE (9321652)// PGTO NF 960PROT:11011007(4466,08) // SEI: 23106.016090/2023-72//2023ND001006",370,SERV. PESSOA JURÍDICA,AP PISCINAS EIRELI,null,UNIVERSIDADE DE BRASÍLIA,null,4466.08,global,605
TESOURO,99861.23,FISCAL,PR,2023,28/02/2023,COPEIRAGEM,null,null,null,FUNCIONAMENTO DE INSTITUICOES FEDERAI - NO DF,23106.016055/2023-53,"C.CUSTO : DTER// PRESTAÇÃO SERVIÇO COPA E COZINHA - COPEIRAGEM // CONTRATO Nº 007/2021//MEMORANDO 018/2023/DAF/DCA/CDE/DGDE (9321142)// PGTO NF 514 2023ND000996// PROT:11011007(99861,23)// S.E.I: 23106.016055/2023-53",369,LOC. MÃO-DE-OBRA,RCS TECNOLOGIA LTDA,null,UNIVERSIDADE DE BRASÍLIA,null,99861.23,global,605
TESOURO,403069.66,FISCAL,PR,2023,27/02/2023,SERVICOS AGROPECUARIOS,null,null,null,FUNCIONAMENTO DE INSTITUICOES FEDERAI - NO DF,23106.016032/2023-49,"C.CUSTO:DTER//  CONTRATO N. 025/2020// PGTO NOTA FISCAL N. 59 (9372925) PERIODO 16/01 A 15/02/2023SEI N. 23106.016032/2023-49//2023ND000979// PROT:11011007(403069,66)//",367,LOC. MÃO-DE-OBRA,AGIL SERVICOS ESPECIAIS LTDA,null,UNIVERSIDADE DE BRASÍLIA,null,403069.66,global,605
TESOURO,55373.70,FISCAL,PR,2023,27/02/2023,SERVIÇO IMPRESSÃO CORPORATIVA - UNIDADES. EMPRESA SIMPRESS.,null,null,null,FUNCIONAMENTO DE INSTITUICOES FEDERAI - NO DF,23106.019724/2023-49,"C. CUSTO: CPD.       PROT:110114(55373,70)      SEI 23106.019724/2023-49.SERVIÇOS DE IMPRESSÃO E DIGITALIZAÇÃO.2023ND000983.     CONTRATO 512/2021.",366,SERV. PESSOA JURÍDICA,"SIMPRESS COMERCIO, LOCACAO E SERVICOS S/A",null,UNIVERSIDADE DE BRASÍLIA,null,55373.70,global,605
TESOURO,121515.23,FISCAL,PR,2023,27/02/2023,ALIMENTACAO,null,null,null,ASSISTENCIA AO ESTUDANTE DE ENSINO SU - NO DF,23106.019217/2023-13,"C. CUSTO: DAC.        PROT:110109(121515,23)          SEI 23106.019217/2023-13.FORNECIMENTO DE REFEIÇÕES NO RESTAURANTE UNIVERSITÁRIO.2023ND000953.       MEMO 10/2023/DAC/DRU.",364,SERV. PESSOA JURÍDICA,ISM GOMES DE MATTOS EIRELI,null,UNIVERSIDADE DE BRASÍLIA,null,121515.23,global,605
TESOURO,21121.82,FISCAL,PR,2023,27/02/2023,COLETA RESIDUOS SOLIDOS SERVICOS SAUDE,null,null,null,FUNCIONAMENTO DE INSTITUICOES FEDERAI - NO DF,23106.016080/2023-37,"C.CUSTO:DTER// PGTO NOTA FISCAL N.131 SERV TERCEIRIZADOS CONTRATO N.111/2020// 2023ND000961PROT:11011007(21121,82)// MEMORANDO 022/2023/DAF/DCA/CDE/DGDE (9321472)// SEI N. 23106.016080/2023-37",363,SERV. PESSOA JURÍDICA,ESPLANADA SERVICOS TERCEIRIZADOS EIRELI,null,UNIVERSIDADE DE BRASÍLIA,null,21121.82,global,605
TESOURO,47598.50,FISCAL,PR 30/2021 - UNB,2023,27/02/2023,PORTARIA - AGIL,null,null,null,FUNCIONAMENTO DE INSTITUICOES FEDERAI - NO DF,23106.016069/2023-77,"C. CUSTO: SPI// PROT:110147(47598,50)//  PAGAMENTO DE NOTA FISCAL N.23368  PRESTAÇÃO DE SERVIÇOS DE PORTARIA//PERIODO 16/01/2023 A 15/02/2023 CONTRATO 001/2022. PREGÃO 30/2021//2023ND000972// SEI 23106.016069/2023-77",362,LOC. MÃO-DE-OBRA,"GESTOR SERVICOS EMPRESARIAIS ESPECIALIZADOS EM MAO DE OBRA, GESTAO DE RECURSOS HUMANOS E LIMPEZA EIR",null,UNIVERSIDADE DE BRASÍLIA,null,47598.50,global,605
RECURSOS DIRETAM.ARREC-FUNDAÇÃO UNIVERSIDADE,1900.00,FISCAL,PR,2023,24/02/2023,CUSTOS INDIRETOS DAS UNIDADES - RECOMPOSICAO,null,null,null,FUNCIONAMENTO DE INSTITUICOES FEDERAI - NO DF,23106.017932/2023-11,"C. CUSTO: FACE/GPP.        PROT:1101010207(1900,00)        SEI 23106.017932/2023-11.PASSAGENS NACIONAIS.2023ND000930.         DESPACHO FACE/GPP 9339512.",360,PASSAGENS,VOETUR TURISMO E REPRESENTACOES LTDA,null,UNIVERSIDADE DE BRASÍLIA,null,1900.00,estimativo,605
PREST   SERVICOS FUB/FUNDO,70.20,FISCAL,PR 11/2022 - UNB,2023,24/02/2023,CRÉDITOS DISTRIBUÍDOS PARA AS UNIDADES ACADÊMICAS,null,null,null,FUNCIONAMENTO DE INSTITUICOES FEDERAI - NO DF,23106.128642/2021-22,"C.CUSTO: FSD - AT -  LAUDIMAR ALVES DE OLIVEIRA - PROT:11010110{SM196/2023(70,20)}         MATERIAL DE CONSUMO - PEDIDO:196/2023 - 2023ND000933 - PREG:011/2022 MATERIAL HOSPITALAR - COMPRESSA GAZE - MATERIAL DE ALGODÃOMEMO.S.N/2023/FS -  S.E.I 23106.015900/2023-73",358,MAT. CONSUMO,DEFERTEX INDUSTRIA E COMERCIO LTDA,null,UNIVERSIDADE DE BRASÍLIA,null,70.20,ordinário,605
RECURSOS DIR.ARRECADADOS(PROPRIOS)-FUB.,2975.34,FISCAL,IN,2023,24/02/2023,ARRECADACOES PROVENIENTES DO SIS,null,null,null,FUNCIONAMENTO DE INSTITUICOES FEDERAI - NO DF,23106.009428/2023-30,"C. CUSTO: SIS.       PROT:11010117030101(2975,34)          SEI 23106.009428/2023-30.ARMAZENAGEM.2023ND000893.         CONTRATO 26/2020.",356,SERV. PESSOA JURÍDICA,INFRAMERICA CONCESSIONARIA DO AEROPORTO DE BRASILIA S/A,null,UNIVERSIDADE DE BRASÍLIA,null,2975.34,estimativo,605
RECURSOS DIR.ARRECADADOS(PROPRIOS)-FUB.,7695.04,FISCAL,PR,2023,24/02/2023,ARRECADACOES PROVENIENTES DO SIS,null,null,null,FUNCIONAMENTO DE INSTITUICOES FEDERAI - NO DF,23106.009428/2023-30,"C. CUSTO: SIS.       PROT:11010117030101(7695,04)          SEI 23106.009428/2023-30.FRETE AÉREO INTERNACIONAL.2023ND000893.         CONTRATO 81/2017.",355,SERV. PESSOA JURÍDICA,WEGH ASSESSORIA E LOGISTICA INTERNACIONAL LTDA - EPP,null,UNIVERSIDADE DE BRASÍLIA,null,7695.04,estimativo,605
RECURSOS DIRETAM.ARREC-FUNDAÇÃO UNIVERSIDADE,1872.00,FISCAL,PR 26/2022 - SEC.ADM./PR,2023,23/02/2023,CUSTOS INDIRETOS DAS UNIDADES - RECOMPOSICAO,null,null,null,FUNCIONAMENTO DE INSTITUICOES FEDERAI - NO DF,23106.000127/2022-77,"C. CUSTO: IPD             SEI:23106.019006/2023-72ATT: MARIA INÊS GANDOLFO  2023ND000929 - SEC.ADM./PR - (110001)MEMO.040/2023/IP/DIR      PROT:11010120{SM805/2023(1872,00)}MATERIAL DE PERMANENTE - PEDIDO:805/2023 - PREG:026/2022   APA. E UTENS. DOMÉSTICOS - FORNO MICROONDAS MATERIAL AÇO INOXIDÁVEL",353,EQUIP. MATERIAL PERMANENTE,F & R SOLUCOES ADMINISTRATIVAS LTDA,null,UNIVERSIDADE DE BRASÍLIA,null,1872.00,ordinário,605
PREST   SERVICOS FUB/FUNDO,917.97,FISCAL,PR 26/2022 - SEC.ADM./PR,2023,23/02/2023,CRÉDITOS DISTRIBUÍDOS PARA AS UNIDADES ACADÊMICAS,null,null,null,FUNCIONAMENTO DE INSTITUICOES FEDERAI - NO DF,23106.000127/2022-77,"C. CUSTO: FEF                   SEI:23106.018724/2023-21ATT:  MARTIM FRANCISCO BOTTARO  2023ND000875 - SEC.ADM./PR -  (110001)MEMO.017/2023/FEF/FINANCEIRO    PROT:11010108{SM792/2023(917,97)}MATERIAL DE PERMANENTE - PEDIDO:792/2023 -   PREG:026/2022 -  MAQ.UTENS.EQUIP.DIVERSOS - VENTILADOR DO TIPO COLUNA - APLICAÇÃO LABORATÓRIO",352,EQUIP. MATERIAL PERMANENTE,F & R SOLUCOES ADMINISTRATIVAS LTDA,null,UNIVERSIDADE DE BRASÍLIA,null,917.97,ordinário,605
PREST   SERVICOS FUB/FUNDO,38673.00,FISCAL,PR 202/2022 - UNB,2023,23/02/2023,CRÉDITOS DISTRIBUÍDOS PARA AS UNIDADES ACADÊMICAS,null,null,null,FUNCIONAMENTO DE INSTITUICOES FEDERAI - NO DF,23106.038751/2022-30,"C. CUSTO: FACE.      PROT:11010102{SM471/2023(38673,00)}         SEI 23106.148475/2022-17.AQUISIÇÃO DE MICROCOMPUTADORES.2023ND000784.        MEMO 41/2022/FACE/CCA.",349,EQUIPAMENTOS E MATERIAL PERMANENTE,DATEN TECNOLOGIA LTDA,null,UNIVERSIDADE DE BRASÍLIA,null,38673.00,ordinário,605
PREST   SERVICOS FUB/FUNDO,4464.00,FISCAL,PR 52/2022 - UNB,2023,23/02/2023,CRÉDITOS DISTRIBUÍDOS PARA AS UNIDADES ADMINISTRATIVAS,null,null,null,FUNCIONAMENTO DE INSTITUICOES FEDERAI - NO DF,23106.091447/2022-11,"C. CUSTO: BCE              SEI:23106.018826/2023-47ATT:FERNANDO CÉSAR LIMA    2023ND000000MEMO.010/2023/BCE          PROT:110113{SM789/2023(4464,00)}MATERIAL DE PERMANENTE - PEDIDO:789/2023 - PREG:052/2022 MOBILIÁRIO EM GERAL - MESA EM L - 1600X1600X740MM",347,EQUIP. MATERIAL PERMANENTE,WOOD CENTER COMERCIO - EIRELI,null,UNIVERSIDADE DE BRASÍLIA,null,4464.00,ordinário,605
PREST   SERVICOS FUB/FUNDO,10000.00,FISCAL,PR,2023,22/02/2023,CRÉDITOS DISTRIBUÍDOS PARA AS UNIDADES ACADÊMICAS,null,null,null,FUNCIONAMENTO DE INSTITUICOES FEDERAI - NO DF,23106.018417/2023-41,"C. CUSTO: FAU                          SEI:23106.018417/2023-41PAGAMENTO DE PASSAGEM NACIONAL         PROT:11010104(10000,00)MEMO.013/2023/FAU/PPG                  2023ND000903 - CONTRATO:125/2018",345,PASSAGENS,VOETUR TURISMO E REPRESENTACOES LTDA,null,UNIVERSIDADE DE BRASÍLIA,null,10000.00,estimativo,605
PREST   SERVICOS FUB/FUNDO,1425.44,FISCAL,PR 7/2022 - UNB,2023,22/02/2023,CRÉDITOS DISTRIBUÍDOS PARA AS UNIDADES ADMINISTRATIVAS,null,null,null,FUNCIONAMENTO DE INSTITUICOES FEDERAI - NO DF,23106.054297/2021-83,"C.CUSTO:BCE - AT- FERNANDO CÉSAR LIMA - PROT:110113{SM790/2023(1425,44)}MATERIAL DE PERMANENTE-PEDIDO:790/2023 - 2023ND000899 - PREG:007/2022APA.E UTENS.DOMÉSTICO - ASPIRADOR DE PÓ - ÁGUA INDUSTRIAL - 45LMEMO.011/2023/BCE - S.E.I 23106.018832/2023-02",342,EQUIP. MATERIAL PERMANENTE,ARGOS LTDA,null,UNIVERSIDADE DE BRASÍLIA,null,1425.44,ordinário,605
PREST   SERVICOS FUB/FUNDO,2500.00,FISCAL,PR,2023,22/02/2023,CRÉDITOS DISTRIBUÍDOS PARA AS UNIDADES ADMINISTRATIVAS,null,null,null,FUNCIONAMENTO DE INSTITUICOES FEDERAI - NO DF,23106.019801/2023-61,"C. CUSTO: OUV.       PROT:110139(2500,00)       SEI 23106.019801/2023-61.PASSAGENS NACIONAIS.2023ND000879.        MEMO 0238/2023/OUV.",337,PASSAGENS,VOETUR TURISMO E REPRESENTACOES LTDA,null,UNIVERSIDADE DE BRASÍLIA,null,2500.00,estimativo,605
PREST   SERVICOS FUB/FUNDO,25782.00,FISCAL,PR 202/2022 - UNB,2023,17/02/2023,CRÉDITOS DISTRIBUÍDOS PARA AS UNIDADES ADMINISTRATIVAS,null,null,null,FUNCIONAMENTO DE INSTITUICOES FEDERAI - NO DF,23106.038751/2022-30,"C. CUSTO: PJU                     SEI:23106.013516/2023-36ATT: RENATA RODRIGUES SOARES      2023ND000861MEMO.S.N/2023/PF/UNB              PROT:110102{SM460/2023(25782,00)}MATERIAL DE PERMANENTE - PEDIDO:460/2023 -   PREG:202/2022 EQUIPAMENTOS TIC - MICROCOMPUTADOR TIPO PADRÃO",333,EQUIPAMENTOS E MATERIAL PERMANENTE,DATEN TECNOLOGIA LTDA,null,UNIVERSIDADE DE BRASÍLIA,null,25782.00,ordinário,605
TESOURO,43310.00,FISCAL,PR 23/2022 - UNB,2023,17/02/2023,REPOSIÇÃO DE MATERIAL DO ALMOXARIFADO,null,null,null,FUNCIONAMENTO DE INSTITUICOES FEDERAI - NO DF,23106.031609/2022-61,"C.CUSTO:ALMOX - AT -  ALEXANDRE PEIXOTO BEZERRA - PROT:1101100601{SM760/2023(43310,00)}         MATERIAL DE CONSUMO - PEDIDO:760/2023 - 2023ND000849 - PREG:023/2022 MATERIAL DE LIMPEZA E HIGIENE - SABÃO - ÁLCOOL - DETERGENTE - COPO DESC.MEMO.009/2022/ALMOX -  S.E.I 23106.018212/2023-65",332,MAT. CONSUMO,CDV COMERCIAL DE ALIMENTOS EIRELI,null,UNIVERSIDADE DE BRASÍLIA,null,43310.00,ordinário,605
TESOURO,1605.15,FISCAL,PR 40/2021 - UNB,2023,17/02/2023,REPOSIÇÃO DE MATERIAL DO ALMOXARIFADO,null,null,null,FUNCIONAMENTO DE INSTITUICOES FEDERAI - NO DF,23106.040246/2021-74,"C. CUSTO: ALM.      PROT:1101100601{SM768/2023(1605,15)}       SEI 23106.018243/2023-16.         AQUISIÇÃO DE GARRAFA TÉRMICA.2023ND000843.       MEMORANDO 11 (9343077).    PREGÃO 40/2021.",331,MAT. CONSUMO,PLANETA COMERCIO E DISTRIBUICAO DE EQUIPAMENTOS E PRODUTOS LTDA,null,UNIVERSIDADE DE BRASÍLIA,null,1605.15,ordinário,605
TESOURO,1700.00,FISCAL,PR 23/2022 - UNB,2023,17/02/2023,REPOSIÇÃO DE MATERIAL DO ALMOXARIFADO,null,null,null,FUNCIONAMENTO DE INSTITUICOES FEDERAI - NO DF,23106.031609/2022-61,"C.CUSTO:ALMOX - AT -  ALEXANDRE PEIXOTO BEZERRA - PROT:1101100601{SM761/2023(17000,00)}         MATERIAL DE CONSUMO - PEDIDO:761/2023 - 2023ND000849 - PREG:023/2022 MATERIAL DE LIMPEZA E HIGIENE - ESPONJA DUPLA FACE LIMPEZAMEMO.009/2022/ALMOX -  S.E.I 23106.018212/2023-65",330,MAT. CONSUMO,DARLU INDUSTRIA TEXTIL LTDA,null,UNIVERSIDADE DE BRASÍLIA,null,1700.00,ordinário,605
TESOURO,1200.00,FISCAL,PR 40/2021 - UNB,2023,17/02/2023,REPOSIÇÃO DE MATERIAL DO ALMOXARIFADO,null,null,null,FUNCIONAMENTO DE INSTITUICOES FEDERAI - NO DF,23106.040246/2021-74,"C. CUSTO: ALM.      PROT:1101100601{SM766/2023(1200,00)}       SEI 23106.018243/2023-16.         AQUISIÇÃO DE MATERIAL DE EXPEDIENTE.2023ND000843.       MEMORANDO 11 (9343077).    PREGÃO 40/2021.",329,MAT. CONSUMO,ALEGRENSE DISTRIBUIDORA E REPRESENTACAO COMERCIAL LTDA,null,UNIVERSIDADE DE BRASÍLIA,null,1200.00,ordinário,605
TESOURO,1122.40,FISCAL,PR 40/2021 - UNB,2023,17/02/2023,REPOSIÇÃO DE MATERIAL DO ALMOXARIFADO,null,null,null,FUNCIONAMENTO DE INSTITUICOES FEDERAI - NO DF,23106.040246/2021-74,"C. CUSTO: ALM.      PROT:1101100601{SM765/2023(1122,40)}       SEI 23106.018243/2023-16.         AQUISIÇÃO DE MATERIAL DE EXPEDIENTE.2023ND000843.       MEMORANDO 11 (9343077).    PREGÃO 40/2021.",328,MAT. CONSUMO,RAFA PAPER DISTRIBUIDORA EIRELI,null,UNIVERSIDADE DE BRASÍLIA,null,1122.40,ordinário,605
PREST   SERVICOS FUB/FUNDO,6970.00,FISCAL,PR 11/2022 - CENTRAL,2023,17/02/2023,CRÉDITOS DISTRIBUÍDOS PARA AS UNIDADES ACADÊMICAS,null,null,null,FUNCIONAMENTO DE INSTITUICOES FEDERAI - NO DF,23106.110735/2021-12,"C.CUSTO : FCI     S.E.I : 23106.014139/2023-52 - PREG:11/2022 - UASG: 201057MEMO.010/2023/FCI/FI   2023ND000680 - LOCAÇÃO DE SOFTWAREATT - RENATO TARCISO BARBOSA - PROT:110133{SM839/2023(6970,00)} SERV.DE TEC. DA INFOR. E COMUNIC. - SOFTWARE ADOBE CREATIVE VIP FOR TEAMS LOCAÇÃO DE SOFTWARE - -SOFTWARE ADOBE CREATIVE CLOUD - EDUCACIONAL NAMED LICENSE",327,SERVIÇOS TIC,MCR SISTEMAS E CONSULTORIA LTDA,null,UNIVERSIDADE DE BRASÍLIA,null,6970.00,ordinário,605
TESOURO,600.00,FISCAL,PR 40/2021 - UNB,2023,17/02/2023,REPOSIÇÃO DE MATERIAL DO ALMOXARIFADO,null,null,null,FUNCIONAMENTO DE INSTITUICOES FEDERAI - NO DF,23106.040246/2021-74,"C. CUSTO: ALM.      PROT:1101100601{SM764/2023(600,00)}       SEI 23106.018243/2023-16.         AQUISIÇÃO DE MATERIAL DE EXPEDIENTE.2023ND000843.       MEMORANDO 11 (9343077).    PREGÃO 40/2021.",326,MAT. CONSUMO,CROSS DISTRIBUIDORA DE BEBIDAS E PAPELARIA LTDA,null,UNIVERSIDADE DE BRASÍLIA,null,600.00,ordinário,605
TESOURO,2774.00,FISCAL,PR 32/2022 - UNB,2023,17/02/2023,REPOSIÇÃO DE MATERIAL DO ALMOXARIFADO,null,null,null,FUNCIONAMENTO DE INSTITUICOES FEDERAI - NO DF,23106.050631/2022-19,"C.CUSTO:ALMOX// MOUSE OPTICO USB SCROLL//  MEMORANDO 8 (9342357)PROT:1101100601(2774,00)// REQ. 757/2023// PREG. 32/2022// 2023ND000835",325,MAT. CONSUMO,JULIO CESAR DE CARVALHO JUNIOR,null,UNIVERSIDADE DE BRASÍLIA,null,2774.00,ordinário,605
TESOURO,25736.70,FISCAL,PR 6/2022 - UNB,2023,17/02/2023,REPOSIÇÃO DE MATERIAL DO ALMOXARIFADO,null,null,null,FUNCIONAMENTO DE INSTITUICOES FEDERAI - NO DF,23106.135432/2021-91,"C. CUSTO: ALM.      PROT:1101100601{SM762/2023(25736,70)}       SEI 23106.018230/2023-47.    AQUISIÇÃO DE AÇÚCAR, ADOÇANTE E ÁGUA SANITÁRIA.2023ND000858.       MEMORANDO 10 (9342954).    PREGÃO 6/2022.",324,MAT. CONSUMO,CDV COMERCIAL DE ALIMENTOS EIRELI,null,UNIVERSIDADE DE BRASÍLIA,null,25736.70,ordinário,605
TESOURO,6545.00,FISCAL,PR 30/2022 - UNB,2023,17/02/2023,REPOSIÇÃO DE MATERIAL DO ALMOXARIFADO,null,null,null,FUNCIONAMENTO DE INSTITUICOES FEDERAI - NO DF,23106.053398/2022-18,"C. CUSTO: ALM.      PROT:1101100601{SM755/2023(6545,00)}       SEI 23106.018109/2023-15.AQUISIÇÃO DE MATERIAL DE EXPEDIENTE.2023ND000857.       MEMORANDO 6 (9341534).    PREGÃO 30/2022.",323,MAT. CONSUMO,ALEGRENSE DISTRIBUIDORA E REPRESENTACAO COMERCIAL LTDA,null,UNIVERSIDADE DE BRASÍLIA,null,6545.00,ordinário,605
TESOURO,9216.50,FISCAL,PR 30/2022 - UNB,2023,17/02/2023,REPOSIÇÃO DE MATERIAL DO ALMOXARIFADO,null,null,null,FUNCIONAMENTO DE INSTITUICOES FEDERAI - NO DF,23106.053398/2022-18,"C. CUSTO: ALM.      PROT:1101100601{SM754/2023(9216,50)}       SEI 23106.018109/2023-15.AQUISIÇÃO DE MATERIAL DE EXPEDIENTE.2023ND000857.       MEMORANDO 6 (9341534).    PREGÃO 30/2022.",322,MAT. CONSUMO,RAFA PAPER DISTRIBUIDORA EIRELI,null,UNIVERSIDADE DE BRASÍLIA,null,9216.50,ordinário,605
TESOURO,384.00,FISCAL,PR 30/2022 - UNB,2023,17/02/2023,REPOSIÇÃO DE MATERIAL DO ALMOXARIFADO,null,null,null,FUNCIONAMENTO DE INSTITUICOES FEDERAI - NO DF,23106.053398/2022-18,"C. CUSTO: ALM.      PROT:1101100601{SM753/2023(384,00)}       SEI 23106.018109/2023-15.AQUISIÇÃO DE MATERIAL DE EXPEDIENTE.2023ND000857.       MEMORANDO 6 (9341534).    PREGÃO 30/2022.",321,MAT. CONSUMO,LER - LIVRARIA E PAPELARIA LTDA,null,UNIVERSIDADE DE BRASÍLIA,null,384.00,ordinário,605
PREST   SERVICOS FUB/FUNDO,6970.00,FISCAL,PR 11/2022 - CENTRAL,2023,17/02/2023,CRÉDITOS DISTRIBUÍDOS PARA AS UNIDADES ACADÊMICAS,null,null,null,FUNCIONAMENTO DE INSTITUICOES FEDERAI - NO DF,23106.110735/2021-12,"C.CUSTO : FCI     S.E.I : 23106.016925/2023-94 - PREG:11/2022 - UASG: 201057MEMO.011/2023/FCI/FI   2023ND000733 - LOCAÇÃO DE SOFTWAREATT - RENATO TARCISO BARBOSA - PROT:110133{SM838/2023(6970,00)} SERV.DE TEC. DA INFOR. E COMUNIC. - SOFTWARE ADOBE CREATIVE VIP FOR TEAMS LOCAÇÃO DE SOFTWARE - -SOFTWARE ADOBE CREATIVE CLOUD - EDUCACIONAL NAMED LICENSE",320,SERVIÇOS TIC,MCR SISTEMAS E CONSULTORIA LTDA,null,UNIVERSIDADE DE BRASÍLIA,null,6970.00,ordinário,605
PREST   SERVICOS FUB/FUNDO,2862.00,FISCAL,IN 27004/2023 - UNB,2023,17/02/2023,CRÉDITOS DISTRIBUÍDOS PARA AS UNIDADES ACADÊMICAS,null,null,null,FUNCIONAMENTO DE INSTITUICOES FEDERAI - NO DF,23106.015777/2023-91,"C. CUSTO: IFD                           SEI:23106.015777/2023-91PAGAMENTO DE PUBLICAÇÃO DE ARTIGO       PROT:11010116(2862,00)MEMO.S.N/2023/IF/DIREÇÃO                2023ND000824 - INEX:27004/2023ARTIGO INTITULADO - PSYCHOMETRIC PROPERTIES OF A PHYSICAL SELF-EFFICACY PERCEPTION SCALE IN THE LIGHT OF COGNITIVE SOCIAL THEORY",317,SERV. PESSOA JURÍDICA,"JANIS RESEARCH COMPANY, INC.",null,UNIVERSIDADE DE BRASÍLIA,null,2862.00,estimativo,605
TESOURO,1000.00,FISCAL,PR,2023,17/02/2023,CERIMONIAL - COLACAO DE GRAU,null,null,null,FUNCIONAMENTO DE INSTITUICOES FEDERAI - NO DF,23106.138096/2020-57,"C. CUSTO: GRE// TERMO ADITIVO AO CONTRATO N. 1207/2021 (6706068)// SEI N. 23106.138096/2020-57 PROT:1101(1000,00)//2023ND000829",315,SERV. PESSOA JURÍDICA,CASABLANCA SERVICOS EIRELI - EPP,null,UNIVERSIDADE DE BRASÍLIA,null,1000.00,global,605
PREST   SERVICOS FUB/FUNDO,974.70,FISCAL,IN 16946/2023 - UNB,2023,17/02/2023,CRÉDITOS DISTRIBUÍDOS PARA AS UNIDADES ADMINISTRATIVAS,null,null,null,FUNCIONAMENTO DE INSTITUICOES FEDERAI - NO DF,23106.016946/2023-18,"C.CUSTO:INT// INSCRIÇÃO EM EVENTO// INEXIG  16946/2023// PROT:110112(974,70)// 2023ND000720// SEI N. 23106.016946/2023-18",312,SERV. PESSOA JURÍDICA,ASSOCIACAO DE ASSESSORIAS DE INSTITUCOES DE ENSINO SUPE,null,UNIVERSIDADE DE BRASÍLIA,null,974.70,global,605
RECURSOS DIRETAM.ARREC-FUNDAÇÃO UNIVERSIDADE,10000.00,FISCAL,PR 34/2021 - UNB,2023,16/02/2023,FUNCIONAMENTO GERAL,null,null,null,FUNCIONAMENTO DE INSTITUICOES FEDERAI - NO DF,23106.053995/2021-61,"C.CUSTO:FCE//  AQUISIÇÃO DE BALANÇA ANALITICA 0,1MG// REQ. 698/2023// PREG. 34/2021PROT:110131(10000,00)// 2023ND000781// SEI N. 23106.016341/2023-19",309,EQUIP. MATERIAL PERMANENTE,TK SERVICE EIRELI,null,UNIVERSIDADE DE BRASÍLIA,null,10000.00,ordinário,605
PREST   SERVICOS FUB/FUNDO,1600.00,FISCAL,PR,2023,15/02/2023,CRÉDITOS DISTRIBUÍDOS PARA AS UNIDADES ADMINISTRATIVAS,null,null,null,FUNCIONAMENTO DE INSTITUICOES FEDERAI - NO DF,23106.015616/2023-05,"C. CUSTO: FCE                                SEI:23106.015616/2023-05PAGAMENTO DE PASAGEM NACIONAL                PROT:110131(1600,00)MEMO.006/2023/FCE/CONT                       2023ND000768 - CONTRATO:125/2018",306,PASSAGENS,VOETUR TURISMO E REPRESENTACOES LTDA,null,UNIVERSIDADE DE BRASÍLIA,null,1600.00,estimativo,605
RECURSOS DIRETAM.ARREC-FUNDAÇÃO UNIVERSIDADE,203.00,FISCAL,PR 34/2021 - UNB,2023,15/02/2023,FUNCIONAMENTO GERAL,null,null,null,FUNCIONAMENTO DE INSTITUICOES FEDERAI - NO DF,23106.053995/2021-61,"C. CUSTO: FCE                    SEI:23106.016347/2023-96ATT:  MARK GOMES DE SANTANA      2023ND000738MEMO.S.N/2023/FCE/LICICON        PROT:110131{SM700/2023(4990,00)}MATERIAL DE PERMANENTE - PEDIDO:700/2023 -   PREG:034/2021APA.DE MEDIÇÃO E ORIENTAÇÃO - BALANÇA ELETRÔNICA - CAPACIDADE PESAGEM 150 KG",304,EQUIP. MATERIAL PERMANENTE,ERGINO FERREIRA CISCATI JUNIOR 30099643820,null,UNIVERSIDADE DE BRASÍLIA,null,203.00,ordinário,605
PREST   SERVICOS FUB/FUNDO,1000.00,FISCAL,PR 52/2022 - UNB,2023,14/02/2023,CRÉDITOS DISTRIBUÍDOS PARA AS UNIDADES ACADÊMICAS,null,null,null,FUNCIONAMENTO DE INSTITUICOES FEDERAI - NO DF,23106.091447/2022-11,"C. CUSTO: FTD                   SEI:23106.010525/2023-75ATT: HENRIQUE CEZAR FERREIRA    2023ND000000MEMO.S.N/2023/FT/SECRETARIA     PROT:11010111{SM449/2023(1000,00)}MATERIAL DE PERMANENTE - PEDIDO:449/2023 - PREG:052/2022 MOBILIÁRIO EM GERAL - ARMÁRIO - MATERIAL MADEIRA AGLOMERADA - TIPO ALTO",303,EQUIP. MATERIAL PERMANENTE,LAYOUT MOVEIS PARA ESCRITORIO LTDA,null,UNIVERSIDADE DE BRASÍLIA,null,1000.00,ordinário,605
PREST   SERVICOS FUB/FUNDO,5060.00,FISCAL,PR 52/2022 - UNB,2023,14/02/2023,CRÉDITOS DISTRIBUÍDOS PARA AS UNIDADES ACADÊMICAS,null,null,null,FUNCIONAMENTO DE INSTITUICOES FEDERAI - NO DF,23106.091447/2022-11,"C. CUSTO: FTD                   SEI:23106.010525/2023-75ATT: HENRIQUE CEZAR FERREIRA    2023ND000000MEMO.S.N/2023/FT/SECRETARIA     PROT:11010111{SM447/2023(5060,00)}MATERIAL DE PERMANENTE - PEDIDO:447/2023 - PREG:052/2022 MOBILIÁRIO EM GERAL - CADEIRA DE ESCRTÓRIO E POLTRONA GIRATÓRIA",302,EQUIP. MATERIAL PERMANENTE,ROAL INDUSTRIA METALURGICA LTDA,null,UNIVERSIDADE DE BRASÍLIA,null,5060.00,ordinário,605
PREST   SERVICOS FUB/FUNDO,4924.25,FISCAL,PR 52/2022 - UNB,2023,14/02/2023,CRÉDITOS DISTRIBUÍDOS PARA AS UNIDADES ACADÊMICAS,null,null,null,FUNCIONAMENTO DE INSTITUICOES FEDERAI - NO DF,23106.091447/2022-11,"C. CUSTO: FTD                   SEI:23106.010525/2023-75ATT: HENRIQUE CEZAR FERREIRA    2023ND000000MEMO.S.N/2023/FT/SECRETARIA     PROT:11010111{SM446/2023(4924,25)}MATERIAL DE PERMANENTE - PEDIDO:446/2023 - PREG:052/2022 MOBILIÁRIO EM GERAL - GAVETEIRO - MESA EM L - MESA DE REUNIÃO - MESA DE ESCRITÓRIO",301,EQUIP. MATERIAL PERMANENTE,WOOD CENTER COMERCIO - EIRELI,null,UNIVERSIDADE DE BRASÍLIA,null,4924.25,ordinário,605
PREST   SERVICOS FUB/FUNDO,16800.00,FISCAL,PR 52/2022 - UNB,2023,14/02/2023,CRÉDITOS DISTRIBUÍDOS PARA AS UNIDADES ACADÊMICAS,null,null,null,FUNCIONAMENTO DE INSTITUICOES FEDERAI - NO DF,23106.091447/2022-11,"C. CUSTO: FTD              SEI:23106.014768/2023-82ATT: LEONARDO JOB BIALI    2023ND000000MEMO.011/2023/FT/EFL       PROT:11010111{SM571/2023(16800,00)}MATERIAL DE PERMANENTE - PEDIDO:571/2023 - PREG:052/2022 MOBILIÁRIO EM GERAL - POLTRONA GIRATÓRIA - PRESIDENTE ESPALDAR -  ALTO",300,EQUIP. MATERIAL PERMANENTE,ROAL INDUSTRIA METALURGICA LTDA,null,UNIVERSIDADE DE BRASÍLIA,null,16800.00,ordinário,605
PREST   SERVICOS FUB/FUNDO,4500.00,FISCAL,IN 22001/2023 - UNB,2023,14/02/2023,CRÉDITOS DISTRIBUÍDOS PARA AS UNIDADES ADMINISTRATIVAS,null,null,null,FUNCIONAMENTO DE INSTITUICOES FEDERAI - NO DF,23106.144276/2022-30,"C.CUSTO:PRC// INSCRIÇÃO EM CONGRESSO BRASILEIRO DE PREGOEIROS// 2023ND000563PROT:110105(4500,00)// SEI N. 23106.144276/2022-30// INEXIG: 22001/2023",299,SERV. PESSOA JURÍDICA,INSTITUTO NEGOCIOS PUBLICOS DO BRASIL - ESTUDOS E PESQ,null,UNIVERSIDADE DE BRASÍLIA,null,4500.00,global,605
TESOURO,35000.00,FISCAL,PR 301/2021 - UNB,2023,14/02/2023,COLETA RESIDUOS SOLIDOS SERVICOS SAUDE,null,null,null,FUNCIONAMENTO DE INSTITUICOES FEDERAI - NO DF,23106.000071/2023-24,"C. CUSTO: PRC// SERVIÇO DE CONSERVAÇÃO E LIMPEZA - COLETA, TRANSPORT//    SEI:23106.000071/2023-24DESPACHO DPO (9299998)// PROT:110105(35000,00)//CONTRATO: 602/2022// 2023ND000690",298,SERV. PESSOA JURÍDICA,MKS GESTAO DE RESIDUOS LTDA,null,UNIVERSIDADE DE BRASÍLIA,null,35000.00,global,605
PREST   SERVICOS FUB/FUNDO,3500.00,FISCAL,PR,2023,13/02/2023,CRÉDITOS DISTRIBUÍDOS PARA AS UNIDADES ADMINISTRATIVAS,null,null,null,FUNCIONAMENTO DE INSTITUICOES FEDERAI - NO DF,23106.016140/2023-11,"C. CUSTO: INT                       SEI:23106.016140/2023-11PAG. DE PASSAGEM NACIONAL           PROT:110112(3500,00)MEMO.017/2023/INT/ADM               2023ND000720 - CONTRATO:125/2018",297,PASSAGENS,VOETUR TURISMO E REPRESENTACOES LTDA,null,UNIVERSIDADE DE BRASÍLIA,null,3500.00,estimativo,605
PREST   SERVICOS FUB/FUNDO,203.00,FISCAL,PR 34/2021 - UNB,2023,13/02/2023,CRÉDITOS DISTRIBUÍDOS PARA AS UNIDADES ADMINISTRATIVAS,null,null,null,FUNCIONAMENTO DE INSTITUICOES FEDERAI - NO DF,23106.053995/2021-61,"C. CUSTO: DAC             SEI:23106.014681/2023-13ATT: CRISTIANE MOREIRA DA COSTA    2023ND000686MEMO.016/2023/DAC         PROT:110109{SM485/2023(203,00)}MATERIAL DE PERMANENTE - PEDIDO:485/2023 - PREG:034/2021APA.DE MEDIÇÃO E ORIENTAÇÃO - BALANÇA ELETRÔNICA - CAPACIDADE PESAGEM 150 KG",293,EQUIP. MATERIAL PERMANENTE,ERGINO FERREIRA CISCATI JUNIOR 30099643820,null,UNIVERSIDADE DE BRASÍLIA,null,203.00,ordinário,605
RECURSOS DIRETAM.ARREC-FUNDAÇÃO UNIVERSIDADE,2000.00,FISCAL,PR,2023,13/02/2023,FUNCIONAMENTO GERAL,null,null,null,FUNCIONAMENTO DE INSTITUICOES FEDERAI - NO DF,23106.010363/2023-75,"C. CUSTO: IBD.       PROT:11010112(2000,00)      SEI 23106.010363/2023-75.DESEMBARAÇO ADUANEIRO.2023ND000695.       MEMO 001/2023/IB/ECL.",291,SERV. PESSOA JURÍDICA,WEGH ASSESSORIA E LOGISTICA INTERNACIONAL LTDA - EPP,null,UNIVERSIDADE DE BRASÍLIA,null,2000.00,estimativo,605
PREST   SERVICOS FUB/FUNDO,651.80,FISCAL,PR,2023,13/02/2023,CRÉDITOS DISTRIBUÍDOS PARA AS UNIDADES ADMINISTRATIVAS,null,null,null,FUNCIONAMENTO DE INSTITUICOES FEDERAI - NO DF,23106.015289/2023-83,"C. CUSTO: DEX.       PROT:110107(651,80)         SEI 23106.015289/2023-83.SERVIÇOS DE COFFEE BREAK.2023ND000709.        DESPACHO DEX 9313485.",290,SERV. PESSOA JURÍDICA,ISM GOMES DE MATTOS EIRELI,null,UNIVERSIDADE DE BRASÍLIA,null,651.80,ordinário,605
PREST   SERVICOS FUB/FUNDO,2000.00,FISCAL,PR 52/2022 - UNB,2023,13/02/2023,CRÉDITOS DISTRIBUÍDOS PARA AS UNIDADES ACADÊMICAS,null,null,null,FUNCIONAMENTO DE INSTITUICOES FEDERAI - NO DF,23106.091447/2022-11,"C.CUSTO:FTD//  MESA REFEITORIO 06 LUGARES// REQ. 576/2023// PR. 52/2022PROT:11010111(2000,00)// MEMORANDO 0013 (9308506)// SEI N. 23106.014818/2023-21",289,EQUIP. MATERIAL PERMANENTE,S M R DECORACOES LTDA,null,UNIVERSIDADE DE BRASÍLIA,null,2000.00,ordinário,605
PREST   SERVICOS FUB/FUNDO,7840.00,FISCAL,PR 52/2022 - UNB,2023,13/02/2023,CRÉDITOS DISTRIBUÍDOS PARA AS UNIDADES ACADÊMICAS,null,null,null,FUNCIONAMENTO DE INSTITUICOES FEDERAI - NO DF,23106.091447/2022-11,"C. CUSTO: FSD                SEI:23106.008915/2023-85ATT: LIVIA DE LACERDA DE OLIVEIRA    2023ND000554MEMO.001/2023/FS/NUT         PROT:11010110{SM346/2023(7840,00)}MATERIAL DE PERMANENTE - PEDIDO:346/2023 - PREG:052/2022 MOBILIÁRIO EM GERAL - ARMÁRIO AÇO - ACABAMENTO SUPERFICIAL PINTADO",288,EQUIP. MATERIAL PERMANENTE,F & R SOLUCOES ADMINISTRATIVAS LTDA,null,UNIVERSIDADE DE BRASÍLIA,null,7840.00,ordinário,605
PREST   SERVICOS FUB/FUNDO,102.74,FISCAL,PR 1/2022 - UNB,2023,10/02/2023,CRÉDITOS DISTRIBUÍDOS PARA AS UNIDADES ADMINISTRATIVAS,null,null,null,FUNCIONAMENTO DE INSTITUICOES FEDERAI - NO DF,23106.119475/2021-29,"C.CUSTO: DAC -AT- LARISSA POLEJACK BRAMBATTI - PROT:110109{SM501/2022(102,74)}         MATERIAL DE CONSUMO-PEDIDO:501/2023 - 2023ND000694 - PREG:001/2022MATERIAL DE COPA E COZINHA - JARRA E XÍCARAMEMO.007/2023/DAC/DASU - S.E.I 23106.014693/2023-30",287,MAT. CONSUMO,NOVA MESA DISTRIBUIDORA DE ALIMENTOS E UTILIDADES LTDA,null,UNIVERSIDADE DE BRASÍLIA,null,102.74,ordinário,605
PREST   SERVICOS FUB/FUNDO,15.20,FISCAL,PR 1/2022 - UNB,2023,10/02/2023,CRÉDITOS DISTRIBUÍDOS PARA AS UNIDADES ADMINISTRATIVAS,null,null,null,FUNCIONAMENTO DE INSTITUICOES FEDERAI - NO DF,23106.119475/2021-29,"C.CUSTO: DAC -AT- LARISSA POLEJACK BRAMBATTI - PROT:110109{SM499/2022(15,20)}         MATERIAL DE CONSUMO-PEDIDO:499/2023 - 2023ND000694 - PREG:001/2022MATERIAL DE COPA E COZINHA - JARRA - MATERIAL PLÁSTICO - CAPACIDADE 2 LMEMO.007/2023/DAC/DASU - S.E.I 23106.014693/2023-30",286,MAT. CONSUMO,LPK LTDA,null,UNIVERSIDADE DE BRASÍLIA,null,15.20,ordinário,605
PREST   SERVICOS FUB/FUNDO,252.22,FISCAL,PR 1/2022 - UNB,2023,10/02/2023,CRÉDITOS DISTRIBUÍDOS PARA AS UNIDADES ADMINISTRATIVAS,null,null,null,FUNCIONAMENTO DE INSTITUICOES FEDERAI - NO DF,23106.119475/2021-29,"C.CUSTO: DAC -AT- LARISSA POLEJACK BRAMBATTI - PROT:110109{SM498/2022(252,22)}         MATERIAL DE CONSUMO-PEDIDO:498/2023 - 2023ND000694 - PREG:001/2022MATERIAL DE COPA E COZINHA - COADOR DESCARTÁVEL E COPO DE VIDROMEMO.007/2023/DAC/DASU - S.E.I 23106.014693/2023-30",285,MAT. CONSUMO,M.Z.A.S SUPERMERCADO EIRELI,null,UNIVERSIDADE DE BRASÍLIA,null,252.22,ordinário,605
PREST   SERVICOS FUB/FUNDO,35197.20,FISCAL,PR,2023,10/02/2023,CRÉDITOS DISTRIBUÍDOS PARA AS UNIDADES ACADÊMICAS,null,null,null,FUNCIONAMENTO DE INSTITUICOES FEDERAI - NO DF,23106.007334/2023-26,"C. CUSTO: FTD             SEI:23106.005128/2023-81ATT:JORGE LUIZ DE ALMEIDA 2023ND000707MEMO.S.N/2023/FT/ENM      PROT:11010111(35197,20)SERVIÇOS DE TERCEIROS - PEDIDO:0000/2023 - CONTRATO: 031/2021FORNECIMENTO DE ALIMENTAÇÃO - FORNECIMENTO DE REFEIÇÕES - COFFEE BREAK",284,SERV. PESSOA JURÍDICA,ISM GOMES DE MATTOS EIRELI,null,UNIVERSIDADE DE BRASÍLIA,null,35197.20,global,605
PREST   SERVICOS FUB/FUNDO,3000.00,FISCAL,PR,2023,10/02/2023,CRÉDITOS DISTRIBUÍDOS PARA AS UNIDADES ADMINISTRATIVAS,null,null,null,FUNCIONAMENTO DE INSTITUICOES FEDERAI - NO DF,23106.014752/2023-70,"C. CUSTO: PRC                       SEI:23106.014752/2023-70PAGAMENTO DE PASSAGEM NACIONAL      PROT:110105(3000,00)MEMO.006/2023/PRC                   2023ND000677 - CONTRATO: 125/2018",283,PASSAGENS,VOETUR TURISMO E REPRESENTACOES LTDA,null,UNIVERSIDADE DE BRASÍLIA,null,3000.00,estimativo,605
PREST   SERVICOS FUB/FUNDO,1250.00,FISCAL,PR 52/2022 - UNB,2023,10/02/2023,CRÉDITOS DISTRIBUÍDOS PARA AS UNIDADES ACADÊMICAS,null,null,null,FUNCIONAMENTO DE INSTITUICOES FEDERAI - NO DF,23106.091447/2022-11,"C. CUSTO: FT.       PROT:11010111{SM569/2023(1250,00)}        SEI 23106.014739/2023-11.AQUISIÇÃO DE MESA.2023ND000706.         MEMO 0010/2023/FT/EFL.",282,EQUIP. MATERIAL PERMANENTE,WOOD CENTER COMERCIO - EIRELI,null,UNIVERSIDADE DE BRASÍLIA,null,1250.00,ordinário,605
PREST   SERVICOS FUB/FUNDO,39.78,FISCAL,PR 1/2022 - UNB,2023,10/02/2023,CRÉDITOS DISTRIBUÍDOS PARA AS UNIDADES ADMINISTRATIVAS,null,null,null,FUNCIONAMENTO DE INSTITUICOES FEDERAI - NO DF,23106.014036/2023-92,"C.CUSTO: GRE -AT- PAULO CESAR MARQUES - PROT:110131{SM494/2022(39,78)}         MATERIAL DE CONSUMO-PEDIDO:494/2023 -2023ND000688 - PREG:001/2022MATERIAL ELÉTRICO ELETRÔNICO - PILHA TAMANHO PEQUENA - TIPO ALCALINAMEMO.005/2023/REITORIA/GRE - S.E.I 23106.014036/2023-92",280,MAT. CONSUMO,RRA COMERCIO ELETRO-FONIA LTDA,null,UNIVERSIDADE DE BRASÍLIA,null,39.78,global,605
PREST   SERVICOS FUB/FUNDO,161.00,FISCAL,PR 1/2022 - UNB,2023,10/02/2023,CRÉDITOS DISTRIBUÍDOS PARA AS UNIDADES ADMINISTRATIVAS,null,null,null,FUNCIONAMENTO DE INSTITUICOES FEDERAI - NO DF,23106.119475/2021-29,"C.CUSTO: GRE -AT- PAULO CESAR MARQUES - PROT:110131{SM496/2022(161,00)}         MATERIAL DE CONSUMO-PEDIDO:496/2023 -2023ND000688 - PREG:001/2022MATERIAL DE EXPEDIENTE - PORTA OBJETO - ESCRITÓRIOMEMO.005/2023/REITORIA/GRE - S.E.I 23106.014036/2023-92",279,MAT. CONSUMO,ALEGRENSE DISTRIBUIDORA E REPRESENTACAO COMERCIAL LTDA,null,UNIVERSIDADE DE BRASÍLIA,null,161.00,ordinário,605
PREST   SERVICOS FUB/FUNDO,56.20,FISCAL,PR 1/2022 - UNB,2023,10/02/2023,CRÉDITOS DISTRIBUÍDOS PARA AS UNIDADES ADMINISTRATIVAS,null,null,null,FUNCIONAMENTO DE INSTITUICOES FEDERAI - NO DF,23106.119475/2021-29,"C.CUSTO: GRE -AT- PAULO CESAR MARQUES - PROT:110131{SM489/2022(56,20)}         MATERIAL DE CONSUMO-PEDIDO:489/2023 -2023ND000688 - PREG:001/2022MATERIAL DE EXPEDIENTE - BANDEJA DE ESCRITÓRIO - DUPLAMEMO.005/2023/REITORIA/GRE - S.E.I 23106.014036/2023-92",278,MAT. CONSUMO,PRISMA PAPELARIA LTDA,null,UNIVERSIDADE DE BRASÍLIA,null,56.20,ordinário,605
PREST   SERVICOS FUB/FUNDO,171.50,FISCAL,PR 1/2022 - UNB,2023,10/02/2023,CRÉDITOS DISTRIBUÍDOS PARA AS UNIDADES ADMINISTRATIVAS,null,null,null,FUNCIONAMENTO DE INSTITUICOES FEDERAI - NO DF,23106.119475/2021-29,"C.CUSTO: GRE -AT- PAULO CESAR MARQUES - PROT:110131{SM491/2022(171,50)}         MATERIAL DE CONSUMO-PEDIDO:491/2023 -2023ND000688 - PREG:001/2022MATERIAL DE COPA E COZINHA - COPO DE VIDRO - CAPACIDADE 300 ML - TRANSPARENTEMEMO.005/2023/REITORIA/GRE - S.E.I 23106.014036/2023-92",277,MAT. CONSUMO,M.Z.A.S SUPERMERCADO EIRELI,null,UNIVERSIDADE DE BRASÍLIA,null,171.50,ordinário,605
PREST   SERVICOS FUB/FUNDO,879.81,FISCAL,PR 1/2022 - UNB,2023,10/02/2023,CRÉDITOS DISTRIBUÍDOS PARA AS UNIDADES ADMINISTRATIVAS,null,null,null,FUNCIONAMENTO DE INSTITUICOES FEDERAI - NO DF,23106.119475/2021-29,"C.CUSTO: GRE -AT- PAULO CESAR MARQUES - PROT:110131{SM492/2022(879,81)}         MATERIAL DE CONSUMO-PEDIDO:492/2023 -2023ND000688 - PREG:001/2022MATERIAL DE COPA E COZINHA - AÇUCAREIRO - BANDEJA - XÍCARAS - JARRASMEMO.005/2023/REITORIA/GRE - S.E.I 23106.014036/2023-92",276,MAT. CONSUMO,NOVA MESA DISTRIBUIDORA DE ALIMENTOS E UTILIDADES LTDA,null,UNIVERSIDADE DE BRASÍLIA,null,879.81,ordinário,605
TESOURO,628393.65,FISCAL,PR 51/2022 - UNB,2023,10/02/2023,SERVIÇOS CONTINUADOS DE MOTORISTA,null,null,null,FUNCIONAMENTO DE INSTITUICOES FEDERAI - NO DF,23106.038810/2022-70,"C. CUSTO: DTER.      PROT:11011007(628393,65)       SEI 23106.038810/2022-70.SERVIÇOS CONTINUADOS DE MOTORISTA.     CONTRATO 001/2023.2023ND000668.       DESPACHO DAF/DCA/CDE 9317295.",274,LOC. MÃO-DE-OBRA,G&E SERVIÇOS TERCEIRIZADOS LTDA,null,UNIVERSIDADE DE BRASÍLIA,null,628393.65,global,605
RECURSOS DIR.ARRECADADOS(PROPRIOS)-FUB.,55.00,FISCAL,PR 1/2022 - UNB,2023,10/02/2023,ROYALTIES - FUNDO DE RESERVA UNB/DPI,null,null,null,FUNCIONAMENTO DE INSTITUICOES FEDERAI - NO DF,23106.119475/2021-29,"C. CUSTO: DPI.        PROT:110142{SM469/2023(55,00)}        SEI 23106.013669/2023-83.AQUISIÇÃO DE COADOR DE CAFÉ.2023ND000692.       DESPACHO DPI 9296458.",273,MAT. CONSUMO,G B LEITE COMERCIO E MERCEARIA,null,UNIVERSIDADE DE BRASÍLIA,null,55.00,ordinário,605
PREST   SERVICOS FUB/FUNDO,1308.00,FISCAL,PR 26/2022 - SEC.ADM./PR,2023,10/02/2023,CRÉDITOS DISTRIBUÍDOS PARA AS UNIDADES ADMINISTRATIVAS,null,null,null,FUNCIONAMENTO DE INSTITUICOES FEDERAI - NO DF,23106.000127/2022-77,"C. CUSTO: DAF.       PROT:110110{SM145/2023(1308,00)}       SEI 23106.013910/2023-74.AQUISIÇÃO DE REFRIGERADOR FRIGOBAR.2023ND000628.      MEMO 002/2023/DAF/DCO/SEC.     PREGÃO 26/2022 UASG: 110001.",269,EQUIP. MATERIAL PERMANENTE,XM CONSTRUCOES EIRELI,null,UNIVERSIDADE DE BRASÍLIA,null,1308.00,ordinário,605
RECURSOS DIR.ARRECADADOS(PROPRIOS)-FUB.,128000.00,FISCAL,PR 318/2020 - UNB,2023,09/02/2023,ARRECADACOES PROVENIENTES DO SIS,null,null,null,FUNCIONAMENTO DE INSTITUICOES FEDERAI - NO DF,23106.008892/2023-17,"C. CUSTO: SIS.       PROT:11010117030101(128000,00)       SEI 23106.008892/2023-17.AQUISIÇÃO DE NOBREAK (UPS) ONLINE TRIFÁSICO.2023ND000672.       MEMO 027/2023/IG/SIS.",267,EQUIP. MATERIAL PERMANENTE,"PHD SISTEMAS DE ENERGIA INDUSTRIA, COMERCIO,",null,UNIVERSIDADE DE BRASÍLIA,null,128000.00,global,605
RECURSOS DIRETAM.ARREC-FUNDAÇÃO UNIVERSIDADE,2480.00,FISCAL,PR 201/2022 - UNB,2023,09/02/2023,FUNCIONAMENTO GERAL,null,null,null,FUNCIONAMENTO DE INSTITUICOES FEDERAI - NO DF,23106.074895/2020-98,"C. CUSTO: DEX.      PROT:110107(2480,00)       SEI 23106.099131/2022-77.AQUISIÇÃO DE CÂMERAS DE VIDEOCONFERÊNCIA E WEBCAMS.2023ND000675.       DESPACHO DEX 9307898.",266,MAT. CONSUMO,RESILIRE S F COMERCIO LTDA,null,UNIVERSIDADE DE BRASÍLIA,null,2480.00,ordinário,605
PREST   SERVICOS FUB/FUNDO,0.00,FISCAL,PR 323/2022 - UNB,2023,09/02/2023,CRÉDITOS DISTRIBUÍDOS PARA AS UNIDADES ACADÊMICAS,null,null,16760.00,FUNCIONAMENTO DE INSTITUICOES FEDERAI - NO DF,23106.013948/2023-47,"C.CUSTO:FGA//  AQUISIÇÃO DE CANCELAS ELETRONICAS AUTOMATICAS// SOLICITAÇÃO DESPACHO FGA / ADM / COMPRAS (9299126)SEI N. 23106.013948/2023-47// PREGAO: 323/2022// PROT:110132(16760,00)// 2023ND000639",265,EQUIP. MATERIAL PERMANENTE,UNIVERSO DA SEGURANCA COMERCIO E SERVICOS - EIRELI - ME,null,UNIVERSIDADE DE BRASÍLIA,null,16760.00,global,605
RECURSOS DIRETAM.ARREC-FUNDAÇÃO UNIVERSIDADE,23000.00,FISCAL,PR,2023,08/02/2023,CUSTOS INDIRETOS DAS UNIDADES - RECOMPOSICAO,null,null,null,FUNCIONAMENTO DE INSTITUICOES FEDERAI - NO DF,23106.013531/2023-84,"C. CUSTO: FACE.       PROT:11010102(23000,00)         SEI 23106.013531/2023-84.PASSAGENS INTERNACIONAIS.2023ND000652.     DESPACHO FACE 9295122.",264,PASSAGENS,VOETUR TURISMO E REPRESENTACOES LTDA,null,UNIVERSIDADE DE BRASÍLIA,null,23000.00,estimativo,605
RECURSOS DIRETAM.ARREC-FUNDAÇÃO UNIVERSIDADE,5000.00,FISCAL,PR,2023,08/02/2023,CUSTOS INDIRETOS DAS UNIDADES - RECOMPOSICAO,null,null,null,FUNCIONAMENTO DE INSTITUICOES FEDERAI - NO DF,23106.013531/2023-84,"C. CUSTO: FACE.       PROT:11010102(5000,00)         SEI 23106.013531/2023-84.PASSAGENS NACIONAIS.2023ND000652.     DESPACHO FACE 9295122.",263,PASSAGENS,VOETUR TURISMO E REPRESENTACOES LTDA,null,UNIVERSIDADE DE BRASÍLIA,null,5000.00,estimativo,605
RECURSOS DIRETAM.ARREC-FUNDAÇÃO UNIVERSIDADE,1500.00,FISCAL,PR,2023,08/02/2023,CUSTOS INDIRETOS DAS UNIDADES - RECOMPOSICAO,null,null,null,FUNCIONAMENTO DE INSTITUICOES FEDERAI - NO DF,23106.013531/2023-84,"C. CUSTO: FACE.       PROT:11010102(1500,00)         SEI 23106.013531/2023-84.SEGURO VIAGEM.2023ND000652.     DESPACHO FACE 9295122.",262,SERV. PESSOA JURÍDICA,VOETUR TURISMO E REPRESENTACOES LTDA,null,UNIVERSIDADE DE BRASÍLIA,null,1500.00,estimativo,605
PREST   SERVICOS FUB/FUNDO,22960.00,FISCAL,PR 52/2022 - UNB,2023,08/02/2023,CRÉDITOS DISTRIBUÍDOS PARA AS UNIDADES ACADÊMICAS,null,null,null,FUNCIONAMENTO DE INSTITUICOES FEDERAI - NO DF,23106.091447/2022-11,"C.CUSTO:FTD// AQUISIÇÃO DE GAVETEIRO E MESA DE REUNIAO// REQ. 330/2023PROT:11010111(22960,00)// 23106.011257/2023-17// MEMORANDO 07 (9271329)",257,EQUIP. MATERIAL PERMANENTE,WOOD CENTER COMERCIO - EIRELI,null,UNIVERSIDADE DE BRASÍLIA,null,22960.00,ordinário,605
PREST   SERVICOS FUB/FUNDO,15799.80,FISCAL,PR 52/2022 - UNB,2023,08/02/2023,CRÉDITOS DISTRIBUÍDOS PARA AS UNIDADES ACADÊMICAS,null,null,null,FUNCIONAMENTO DE INSTITUICOES FEDERAI - NO DF,23106.091447/2022-11,"C.CUSTO:FTD// AQUISIÇÃO DE CADEIRA GIRATORIA ESPALDAR ALTO// REQ. 329/2023PROT:11010111(15799,80)// 23106.011257/2023-17// MEMORANDO 07 (9271329)",256,EQUIP. MATERIAL PERMANENTE,SIG COMERCIAL EIRELI,null,UNIVERSIDADE DE BRASÍLIA,null,15799.80,ordinário,605
PREST   SERVICOS FUB/FUNDO,23000.00,FISCAL,PR 52/2022 - UNB,2023,08/02/2023,CRÉDITOS DISTRIBUÍDOS PARA AS UNIDADES ACADÊMICAS,null,null,null,FUNCIONAMENTO DE INSTITUICOES FEDERAI - NO DF,23106.091447/2022-11,"C.CUSTO:FTD// AQUISIÇÃO DE POLTRONA GIRATORIA, ENCOSTO, TELA, BRAÇOS// REQ. 327/2023PROT:11010111(23000,00)// 23106.011257/2023-17// MEMORANDO 07 (9271329)",255,EQUIP. MATERIAL PERMANENTE,ROAL INDUSTRIA METALURGICA LTDA,null,UNIVERSIDADE DE BRASÍLIA,null,23000.00,ordinário,605
PREST   SERVICOS FUB/FUNDO,8000.00,FISCAL,PR 52/2022 - UNB,2023,08/02/2023,CRÉDITOS DISTRIBUÍDOS PARA AS UNIDADES ACADÊMICAS,null,null,null,FUNCIONAMENTO DE INSTITUICOES FEDERAI - NO DF,23106.091447/2022-11,"C.CUSTO:FTD//AQUISIÇÃO DE ARMARIO BAIXO 02 PORTAS// REQ. 325/2023PROT:11010111(8000,00)// 2023ND000641// SEI N. 23106.011257/2023-17",254,EQUIP. MATERIAL PERMANENTE,LAYOUT MOVEIS PARA ESCRITORIO LTDA,null,UNIVERSIDADE DE BRASÍLIA,null,8000.00,ordinário,605
PREST   SERVICOS FUB/FUNDO,230.00,FISCAL,PR 1/2022 - UNB,2023,08/02/2023,CRÉDITOS DISTRIBUÍDOS PARA AS UNIDADES ADMINISTRATIVAS,null,null,null,FUNCIONAMENTO DE INSTITUICOES FEDERAI - NO DF,23106.119475/2021-29,"C.CUSTO:BCE - AT- FERNANDO CÉSAR LIMA - PROT:110113{SM483/2023(230,00)}         MATERIAL DE CONSUMO-PEDIDO:483/2023 - 2023ND000646 - PREG:001/2022MATERIAL DE EXPEDIENTE - PORTA OBJETO -  ESCRITÓRIOMEMO.005/2023/BCE  -  S.E.I 23106.013914/2023-52",253,MAT. CONSUMO,ALEGRENSE DISTRIBUIDORA E REPRESENTACAO COMERCIAL LTDA,null,UNIVERSIDADE DE BRASÍLIA,null,230.00,ordinário,605
PREST   SERVICOS FUB/FUNDO,187.40,FISCAL,PR 1/2022 - UNB,2023,08/02/2023,CRÉDITOS DISTRIBUÍDOS PARA AS UNIDADES ADMINISTRATIVAS,null,null,null,FUNCIONAMENTO DE INSTITUICOES FEDERAI - NO DF,23106.119475/2021-29,"C.CUSTO:BCE - AT- FERNANDO CÉSAR LIMA - PROT:110113{SM484/2023(187,40)}         MATERIAL DE CONSUMO-PEDIDO:484/2023 - 2023ND000646 - PREG:001/2022MAT.ELÉTRICO ELETRÔNICO - BATERIA NÃO RECARREGÁVEL - TIPO ALCALINAMEMO.005/2023/BCE  -  S.E.I 23106.013914/2023-52",252,MAT. CONSUMO,RAFA PAPER DISTRIBUIDORA EIRELI,null,UNIVERSIDADE DE BRASÍLIA,null,187.40,ordinário,605
PREST   SERVICOS FUB/FUNDO,929.98,FISCAL,PR 1/2022 - UNB,2023,08/02/2023,CRÉDITOS DISTRIBUÍDOS PARA AS UNIDADES ADMINISTRATIVAS,null,null,null,FUNCIONAMENTO DE INSTITUICOES FEDERAI - NO DF,23106.119475/2021-29,"C.CUSTO:BCE - AT- FERNANDO CÉSAR LIMA - PROT:110113{SM478/2023(929,98)}         MATERIAL DE CONSUMO-PEDIDO:478/2023 - 2023ND000646 - PREG:001/2022MAT.DE COPA E COZINHA - AÇUCAREIRO-BANDEJA-JARRA-TAÇA-XÍCARASMEMO.005/2023/BCE  -  S.E.I 23106.013914/2023-52",251,MAT. CONSUMO,NOVA MESA DISTRIBUIDORA DE ALIMENTOS E UTILIDADES LTDA,null,UNIVERSIDADE DE BRASÍLIA,null,929.98,ordinário,605
RECURSOS DIR.ARRECADADOS(PROPRIOS)-FUB.,1955.40,FISCAL,PR,2023,08/02/2023,ARRECADACOES PROVENIENTES DO SIS,null,null,null,FUNCIONAMENTO DE INSTITUICOES FEDERAI - NO DF,23106.014303/2023-21,"C. CUSTO: SIS.      PROT:11010117030101(1955,40)        SEI 23106.014303/2023-21.SERVIÇOS DE COFFEE BREAK PARA EVENTO DE FORMAÇÃO DE PESSOAL DO OBSERVATÓRIO SISMOLÓGICO.2023ND000644.      MEMO 028/2023/IG/SIS.",250,SERV. PESSOA JURÍDICA,ISM GOMES DE MATTOS EIRELI,null,UNIVERSIDADE DE BRASÍLIA,null,1955.40,ordinário,605
PREST   SERVICOS FUB/FUNDO,62.90,FISCAL,PR 1/2022 - UNB,2023,08/02/2023,CRÉDITOS DISTRIBUÍDOS PARA AS UNIDADES ADMINISTRATIVAS,null,null,null,FUNCIONAMENTO DE INSTITUICOES FEDERAI - NO DF,23106.119475/2021-29,"C.CUSTO:BCE - AT- FERNANDO CÉSAR LIMA - PROT:110113{SM479/2023(62,90)}         MATERIAL DE CONSUMO-PEDIDO:479/2023 - 2023ND000646 - PREG:001/2022MATERIAL DE COPA E COZINHA - COADOR DE CAFÉ E TALHER DESCATÁVEL MEMO.005/2023/BCE  -  S.E.I 23106.013914/2023-52",249,MAT. CONSUMO,G B LEITE COMERCIO E MERCEARIA,null,UNIVERSIDADE DE BRASÍLIA,null,62.90,ordinário,605
PREST   SERVICOS FUB/FUNDO,98.00,FISCAL,PR 1/2022 - UNB,2023,08/02/2023,CRÉDITOS DISTRIBUÍDOS PARA AS UNIDADES ADMINISTRATIVAS,null,null,null,FUNCIONAMENTO DE INSTITUICOES FEDERAI - NO DF,23106.119475/2021-29,"C.CUSTO:BCE - AT- FERNANDO CÉSAR LIMA - PROT:110113{SM480/2023(98,00)}         MATERIAL DE CONSUMO-PEDIDO:480/2023 - 2023ND000646 - PREG:001/2022MAT.DE COPA E COZINHA - COPO DE VIDRO - CAPACIDADE 300 ML - COR TRANSPARENTEMEMO.005/2023/BCE  -  S.E.I 23106.013914/2023-52",248,MAT. CONSUMO,M.Z.A.S SUPERMERCADO EIRELI,null,UNIVERSIDADE DE BRASÍLIA,null,98.00,ordinário,605
PREST   SERVICOS FUB/FUNDO,257.80,FISCAL,PR 1/2022,2023,08/02/2023,CRÉDITOS DISTRIBUÍDOS PARA AS UNIDADES ADMINISTRATIVAS,null,null,null,FUNCIONAMENTO DE INSTITUICOES FEDERAI - NO DF,23106.013914/2023-52,"C.CUSTO:BCE - AT- FERNANDO CÉSAR LIMA - PROT:110113{SM481/2023(257,80)}         MATERIAL DE CONSUMO-PEDIDO:481/2023 - 2023ND000646 - PREG:001/2022MATERIAL DE EXPEDIENTE - MOUSE PAD - ERGONÔMICOMEMO.005/2023/BCE  -  S.E.I 23106.013914/2023-52",247,MAT. CONSUMO,DARLU INDUSTRIA TEXTIL LTDA,null,UNIVERSIDADE DE BRASÍLIA,null,257.80,global,605
PREST   SERVICOS FUB/FUNDO,132.60,FISCAL,PR 1/2022 - UNB,2023,08/02/2023,CRÉDITOS DISTRIBUÍDOS PARA AS UNIDADES ADMINISTRATIVAS,null,null,null,FUNCIONAMENTO DE INSTITUICOES FEDERAI - NO DF,23106.119475/2021-29,"C.CUSTO:BCE - AT- FERNANDO CÉSAR LIMA - PROT:110113{SM482/2023(132,60)}         MATERIAL DE CONSUMO-PEDIDO:482/2023 - 2023ND000646 - PREG:001/2022MATERIAL ELÉTRICO ELETRÔNICO - PILHA ALCALINA - AAAMEMO.005/2023/BCE  -  S.E.I 23106.013914/2023-52",246,MAT. CONSUMO,RRA COMERCIO ELETRO-FONIA LTDA,null,UNIVERSIDADE DE BRASÍLIA,null,132.60,ordinário,605
PREST   SERVICOS FUB/FUNDO,79.56,FISCAL,PR 1/2022 - UNB,2023,08/02/2023,CRÉDITOS DISTRIBUÍDOS PARA AS UNIDADES ACADÊMICAS,null,null,null,FUNCIONAMENTO DE INSTITUICOES FEDERAI - NO DF,23106.119475/2021-29,"C.CUSTO:FEF//  AQUISIÇÃO DE PILHA ALCALINA AAA// REQ. 373/2023// PREG. 01/2022PROT:11010108(79,56)// SEI N. 23106.012361/2023-11// MEMORANDO 012 (9283626)",245,MAT. CONSUMO,RRA COMERCIO ELETRO-FONIA LTDA,null,UNIVERSIDADE DE BRASÍLIA,null,79.56,ordinário,605
TESOURO,84171.26,FISCAL,IN,2023,08/02/2023,FOMENTO ÀS AÇÕES DE PESQUISA E INOVAÇÃO,null,null,null,"FOMENTO AS ACOES DE GRADUACAO, POS-GR - NO DF",23106.052612/2021-38,"C. CUSTO: DPI.      PROT:110142(84171,26)         SEI 23106.052612/2021-38.LICENÇA DE USO DE SISTEMAS DE EXTRAÇÃO E GESTÃO E SUSTENTAÇÃO DE SOFTWARE.PRIMEIRO TERMO ADITIVO AO CONTRATO 503/2022.        2023ND000630.",244,SERVIÇOS TIC,TEKIS TECNOLOGIAS AVANCADAS LTDA,null,UNIVERSIDADE DE BRASÍLIA,null,84171.26,global,605
PREST   SERVICOS FUB/FUNDO,4150.00,FISCAL,PR 1/2022 - 32 GAC,2023,08/02/2023,CRÉDITOS DISTRIBUÍDOS PARA AS UNIDADES ADMINISTRATIVAS,null,null,null,FUNCIONAMENTO DE INSTITUICOES FEDERAI - NO DF,23106.012291/2023-09,"C. CUSTO: DAF            SEI:23106.012291/2023-09ATT:  ANTONIO MARCIO LOPES BEZERRA     2023ND000620MEMO.011/2023/DAF/DCF    PROT:110110(4150,00) - PREGÃO:0001/2022MATERIAL PERMANENTE - PEDIDO:0000/2023 -  UNID.GESTORA:  32 GAC - 160058APA.UTENS.DOMÉSTICOS - REFRIGERADOR DUPLEX - CAPACIDADE REFRIGERAÇÃO 450 L",243,EQUIP. MATERIAL PERMANENTE,F & R SOLUCOES ADMINISTRATIVAS LTDA,null,UNIVERSIDADE DE BRASÍLIA,null,4150.00,global,605
TESOURO,15143.92,FISCAL,PR,2023,07/02/2023,SERVIÇO IMPRESSÃO CORPORATIVA - UNIDADES. EMPRESA SIMPRESS.,null,null,null,FUNCIONAMENTO DE INSTITUICOES FEDERAI - NO DF,23106.011153/2023-02,"C. CUSTO: CPD                              SEI:23106.011153/2023-02ATT:  ALEXANDRE MIRANDA DA SILVA           2023ND000528MEMO.S.N/2022/ST/CGESP/DACTIC              PROT:110114(15143,92)SERVIÇOS DE TERCEIROS - PEDIDO:0000/2023 - CONTRATO: 521/2021 SERVIÇOS DE CÓPIAS E REPRODUÇÃO DE DOCUMENTOS - OUTSOURCING DE IMPRESSÃO - LOCAÇÃO DE EQUIPAMENTO",240,SERV. PESSOA JURÍDICA,"SIMPRESS COMERCIO, LOCACAO E SERVICOS S/A",null,UNIVERSIDADE DE BRASÍLIA,null,15143.92,global,605
PREST   SERVICOS FUB/FUNDO,3259.00,FISCAL,PR,2023,07/02/2023,CRÉDITOS DISTRIBUÍDOS PARA AS UNIDADES ACADÊMICAS,null,null,null,FUNCIONAMENTO DE INSTITUICOES FEDERAI - NO DF,23106.013311/2023-51,"C. CUSTO: FGA.       PROT:110132(3259,00)         SEI 23106.013311/2023-51.SERVIÇOS DE COFFEE BREAK PARA EVENTO 1º WORKSHOP DE ENGENHARIA NUCLEAR DA FGA.2023ND000611.     DESPACHO FGA/CCGRAD 9293247.",239,SERV. PESSOA JURÍDICA,ISM GOMES DE MATTOS EIRELI,null,UNIVERSIDADE DE BRASÍLIA,null,3259.00,ordinário,605
TESOURO,0.00,FISCAL,PR,2023,07/02/2023,SERVIÇO IMPRESSÃO CORPORATIVA - UNIDADES. EMPRESA SIMPRESS.,null,15143.92,null,FUNCIONAMENTO DE INSTITUICOES FEDERAI - NO DF,23106.011153/2023-02,"C. CUSTO: CPD                              SEI:23106.011153/2023-02ATT:  ALEXANDRE MIRANDA DA SILVA           2023ND000528MEMO.S.N/2022/ST/CGESP/DACTIC              PROT:110114(15143,92)SERVIÇOS DE TERCEIROS - PEDIDO:0000/2023 - CONTRATO: 521/2021 SERVIÇOS GRÁFICOS E EDITORIAIS - OUTSOURCING DE IMPRESSÃO - LOCAÇÃO DE EQUIPAMENTO",238,SERV. PESSOA JURÍDICA,"SIMPRESS COMERCIO, LOCACAO E SERVICOS S/A",null,UNIVERSIDADE DE BRASÍLIA,null,15143.92,global,605
TESOURO,36223.80,FISCAL,PR 306/2022 - UNB,2023,07/02/2023,MANUTENCAO AR CONDICIONADO - CTX TECNOLOGI,null,null,null,FUNCIONAMENTO DE INSTITUICOES FEDERAI - NO DF,23106.000567/2021-36,"C. CUSTO: PRC.       PROT:110105(36223,80)          SEI 23106.000567/2021-36.SERVIÇOS DE MANUTENÇÃO DE EQUIPAMENTOS E SISTEMAS DE AR CONDICIONADO.2022ND000608.       CONTRATO 1224/2022.",237,SERV. PESSOA JURÍDICA,ARJ SISTEMAS DE AR CONDICIONADO E INCENDIO LT,null,UNIVERSIDADE DE BRASÍLIA,null,36223.80,global,605
PREST   SERVICOS FUB/FUNDO,2200.00,FISCAL,PR 1/2022 - 32  GAC,2023,07/02/2023,CRÉDITOS DISTRIBUÍDOS PARA AS UNIDADES ACADÊMICAS,null,null,null,FUNCIONAMENTO DE INSTITUICOES FEDERAI - NO DF,23106.001077/2022-48,"C. CUSTO: IBD.        PROT:11010112{SM164/2023(2200,00)}        SEI 23106.007238/2023-88.AQUISIÇÃO DE FORNO MICROONDAS.2023ND000580.     DESPACHO IB/CP 9227758.",236,EQUIP. MATERIAL PERMANENTE,JOICE LARA ROSA,null,UNIVERSIDADE DE BRASÍLIA,null,2200.00,ordinário,605
PREST   SERVICOS FUB/FUNDO,977.70,FISCAL,PR,2023,06/02/2023,CRÉDITOS DISTRIBUÍDOS PARA AS UNIDADES ACADÊMICAS,null,null,null,FUNCIONAMENTO DE INSTITUICOES FEDERAI - NO DF,23106.012652/2023-17,"C.CUSTO:FT// SERVIÇOS DE COFFEE BREAK EVENTO WORKSHOP DE ARBORIZAÇÃO E PAISAGISMO// MEMORANDO Nº 0005/2023/FT / EFLSEI N. 23106.012652/2023-17// 2023ND000606// PROT:11010111(977,70)",235,SERV. PESSOA JURÍDICA,ISM GOMES DE MATTOS EIRELI,null,UNIVERSIDADE DE BRASÍLIA,null,977.70,global,605
TESOURO,48000.00,FISCAL,PR 41/2019 - UNB,2023,06/02/2023,SEGURO PARA ALUNOS E ESTAGIARIOS EM GERAL,null,null,null,FUNCIONAMENTO DE INSTITUICOES FEDERAI - NO DF,23106.085902/2019-43,"C. CUSTO: DEG.     PROT:110106(48000,00)       SEI 23106.085902/2019-43.TERCEIRO TERMO ADITIVO AO CONTRATO 024/2020.  SERVIÇOS DE SEGURO OBRIGATÓRIO CONTRA ACIDENTES PESSOAIS.2023ND000210.",234,SERV. PESSOA JURÍDICA,MBM SEGURADORA SA,null,UNIVERSIDADE DE BRASÍLIA,null,48000.00,global,605
PREST   SERVICOS FUB/FUNDO,17000.00,FISCAL,PR 202/2022 - UNB,2023,03/02/2023,CRÉDITOS DISTRIBUÍDOS PARA AS UNIDADES ACADÊMICAS,null,null,null,FUNCIONAMENTO DE INSTITUICOES FEDERAI - NO DF,23106.038751/2022-30,"C. CUSTO: FTD            SEI: 23106.138081/2022-51ATT: JORGE LUIZ DE ALMEIDA FERREIRA   2023ND000589MEMO.072/2022/FT/ENM     PROT:11010111{SM6731/2022(17000,00)}MATERIAL DE PERMANENTE - PEDIDO:6731/2022 - PREG:202/2022 EQUIPAMENTOS TIC - MICROCOMPUTADOR TIPO PADRÃO",230,EQUIPAMENTOS E MATERIAL PERMANENTE,DATEN TECNOLOGIA LTDA,null,UNIVERSIDADE DE BRASÍLIA,null,17000.00,ordinário,605
TESOURO,1629.50,FISCAL,PR,2023,03/02/2023,CAPACITAÇÃO DE SERVIDORES,null,null,null,CAPACITACAO DE SERVIDORES PUBLICOS FE - NO DI,23106.012571/2023-17,"C. CUSTO: DGP                          SEI:23106.012571/2023-17ATT: EMELLE RODRIGUES NOVAIS CRUZ      2023ND000590MEMO.434/2023/DGP/DCADE/PROCAP         PROT:110134(1629,50)SERVIÇOS DE TERCEIROS - PEDIDO:0000/2023 - CONTRATO: 031/2021FORNECIMENTO DE ALIMENTAÇÃO - FORNECIMENTO DE REFEIÇÕES -  COFFEE BREAK",229,SERV. PESSOA JURÍDICA,ISM GOMES DE MATTOS EIRELI,null,UNIVERSIDADE DE BRASÍLIA,null,1629.50,global,605
PREST   SERVICOS FUB/FUNDO,32000.00,FISCAL,PR 318/2020 - UNB,2023,03/02/2023,CRÉDITOS DISTRIBUÍDOS PARA AS UNIDADES ACADÊMICAS,null,null,null,FUNCIONAMENTO DE INSTITUICOES FEDERAI - NO DF,23106.004327/2023-72,"C. CUSTO: IFD.       PROT:11010116(32000,00)        SEI 23106.004327/2023-72.AQUISIÇÃO DE NOBREAK.2023ND000566.     MEMORANDO 9195165.",226,EQUIP. MATERIAL PERMANENTE,"PHD SISTEMAS DE ENERGIA INDUSTRIA, COMERCIO,",null,UNIVERSIDADE DE BRASÍLIA,null,32000.00,global,605
RECURSOS DIRETAM.ARREC-FUNDAÇÃO UNIVERSIDADE,185.50,FISCAL,IN,2023,03/02/2023,FUNCIONAMENTO GERAL,null,null,null,FUNCIONAMENTO DE INSTITUICOES FEDERAI - NO DF,23106.035403/2022-19,"C. CUSTO: FT.      PROT:11010111(185,50)        SEI 23106.035403/2022-19.AQUISIÇÃO DE MATERIAL IMPORTADO.2023ND000525.     DESPACHO DAF/DIMEX/CCE 9286441.",225,MAT. CONSUMO,TUUVA PAULIINA KASTINEN,null,UNIVERSIDADE DE BRASÍLIA,null,185.50,estimativo,605
PREST   SERVICOS FUB/FUNDO,270.00,FISCAL,PR 3/2022 - UNB,2023,03/02/2023,CRÉDITOS DISTRIBUÍDOS PARA AS UNIDADES ACADÊMICAS,null,null,null,FUNCIONAMENTO DE INSTITUICOES FEDERAI - NO DF,23106.102234/2021-41,"C. CUSTO: FEF.       PROT:11010108{SM348/2023(270,00)}         SEI 23106.010482/2023-28.AQUISIÇÃO DE MATERIAIS PARA MANUTENÇÃO DE PISCINAS.2023ND000487.       MEMO 007/2023/FEF/FINANCEIRO.",224,MAT. CONSUMO,SANIGRAN LTDA - ME,null,UNIVERSIDADE DE BRASÍLIA,null,270.00,ordinário,605
TESOURO,48799.57,FISCAL,PR,2023,02/02/2023,ALMOXARIFADO E TRANSPORTE MOVEIS E MATERIAIS,null,null,null,FUNCIONAMENTO DE INSTITUICOES FEDERAI - NO DF,23106.003032/2023-89,"C.CUSTO : DTER            S.E.I:  23106.003032/2023-89MEMO.S.N/2022/DAF/DCA/CDE/DGDE - 2023ND000533 - CONTRATO Nº 167/2017ATT - ADAMYLSON MADEIRA COSTA - PROT:11011007(48799,57)PRESTAÇÃO DE SERVIÇOS DE APOIO ADMINISTRATIVO - ALMOXAFIFADO E TRANSP DE MAT -PAGAMENTO DE NOTA FISCAL Nº13 - SERVIÇOS TERCEIRIZADOS DE ALMOXARIFADO",223,LOC. MÃO-DE-OBRA,AGIL SERVICOS ESPECIAIS LTDA,null,UNIVERSIDADE DE BRASÍLIA,null,48799.57,global,605
TESOURO,5046.75,FISCAL,PR,2023,02/02/2023,COPEIRAGEM,null,null,null,FUNCIONAMENTO DE INSTITUICOES FEDERAI - NO DF,23106.003078/2023-06,"C. CUSTO: DTER.        PROT:11011007(5046,75)         SEI 23106.003078/2023-06.SERVIÇOS DE COPEIRAGEM.      CONTRATO 007/2021.2023ND000542.",221,LOC. MÃO-DE-OBRA,RCS TECNOLOGIA LTDA,null,UNIVERSIDADE DE BRASÍLIA,null,5046.75,estimativo,605
TESOURO,48790.00,FISCAL,PR 11/2022 - CENTRAL,2023,02/02/2023,FUNCIONAMENTO GERAL,null,null,null,FUNCIONAMENTO DE INSTITUICOES FEDERAI - NO DF,23106.110735/2021-12,"C. CUSTO: SECOM                SEI: 23106.008932/2023-12ATT: MONICA CELEIDA RABELO     2023ND000499 -  CENTRAL (201057)MEMO.008/2023/SECOM            PROT:110111{SM255/2023(48790,00)}SERV.DE TEC. DA INFOR. E COMUNIC. - PEDIDO:0255/2023 - PR 11/2022 - CENTRAL LOCAÇÃO DE SOFTWARE - ADOBE CREATIVE CLOUD - EDUCACIONAL NAMED LICENSE",219,SERVIÇOS TIC,MCR SISTEMAS E CONSULTORIA LTDA,null,UNIVERSIDADE DE BRASÍLIA,null,48790.00,ordinário,605
TESOURO,100.00,FISCAL,PR,2023,02/02/2023,SERVIÇOS DE GERENCIAMENTO DE FROTA,null,null,null,FUNCIONAMENTO DE INSTITUICOES FEDERAI - NO DF,23106.105351/2018-61,"C. CUSTO: DTER                           SEI: 23106.105351/2018-61ATT:  DIJALMA JOSE DA SILVA              2023ND000529MEMO.S.N/2022/DAF/DCA/CSD                PROT:1111(100,00)SERVIÇOS DE TERCEIROS - PEDIDO:0000/2023 - CONTRATO:601/2022  SERVICOS TECNICOS PROFISSIONAIS - SERVIÇO DE RASTREAMENTOPUBLICAÇÃO DE 2° TERMO ADITIVO CELEBRADO ENTRE A FUB E WR TECNOLOGIA ME",218,SERV. PESSOA JURÍDICA,WR TECNOLOGIA LTDA,null,UNIVERSIDADE DE BRASÍLIA,null,100.00,global,605
PREST   SERVICOS FUB/FUNDO,16905.25,FISCAL,PR 52/2022 - UNB,2023,02/02/2023,CRÉDITOS DISTRIBUÍDOS PARA AS UNIDADES ADMINISTRATIVAS,null,null,null,FUNCIONAMENTO DE INSTITUICOES FEDERAI - NO DF,23106.091447/2022-11,"C. CUSTO: DPO.      PROT:110135{SM186/2023(16905,25)}        SEI 23106.006662/2023-13.AQUISIÇÃO DE MOBILIÁRIO.2023ND000301.    DESPACHO DPO 9221285.",217,EQUIP. MATERIAL PERMANENTE,WOOD CENTER COMERCIO - EIRELI,null,UNIVERSIDADE DE BRASÍLIA,null,16905.25,ordinário,605
TESOURO,467.50,FISCAL,PR 20/2022 - UNB,2023,02/02/2023,MATRIZ HVET_,null,null,null,20RK - FUNCIONAMENTO DOS HOSPITAL VETERINARIOS,23106.031067/2022-27,"C. CUSTO: HVET.      PROT:1101010501{SM344/2023(467,50)}       SEI 23106.009922/2023-02.AQUISIÇÃO DE SWAB.2023ND000483.    DESPACHO FAV/HVET/HVETINHO 9258237.",216,MAT. CONSUMO,SWAB CB BRASIL INDÚSTRIA DE PRODUTOS LABORATORIAIS LTDA,null,UNIVERSIDADE DE BRASÍLIA,null,467.50,ordinário,605
PREST   SERVICOS FUB/FUNDO,7000.00,FISCAL,PR,2023,02/02/2023,CRÉDITOS DISTRIBUÍDOS PARA AS UNIDADES ACADÊMICAS,null,null,null,FUNCIONAMENTO DE INSTITUICOES FEDERAI - NO DF,23106.007596/2023-91,"C. CUSTO: FACE                           SEI: 23106.007596/2023-91PAGAMENTO DE PASSAGEM NACIONAL           PROT:11010102(7000,00)MEMO.001/2023/FACE/CCA                   2023ND000521 - CONTRATO:125/2018",215,PASSAGENS,VOETUR TURISMO E REPRESENTACOES LTDA,null,UNIVERSIDADE DE BRASÍLIA,null,7000.00,estimativo,605
PREST   SERVICOS FUB/FUNDO,10000.00,FISCAL,PR,2023,02/02/2023,CRÉDITOS DISTRIBUÍDOS PARA AS UNIDADES ACADÊMICAS,null,null,null,FUNCIONAMENTO DE INSTITUICOES FEDERAI - NO DF,23106.011510/2023-24,"C. CUSTO: FCI.      PROT:110133(10000,00)       SEI 23106.011510/2023-24.PASSAGENS NACIONAIS.2023ND000515.         MEMO 8/2023/FCI/FI.",211,PASSAGENS,VOETUR TURISMO E REPRESENTACOES LTDA,null,UNIVERSIDADE DE BRASÍLIA,null,10000.00,estimativo,605
PREST   SERVICOS FUB/FUNDO,2500.00,FISCAL,PR,2023,02/02/2023,CRÉDITOS DISTRIBUÍDOS PARA AS UNIDADES ADMINISTRATIVAS,null,null,null,FUNCIONAMENTO DE INSTITUICOES FEDERAI - NO DF,23106.010327/2023-10,"C. CUSTO: DAF.       PROT:110110(2500,00)       SEI 23106.010327/2023-10.PASSAGENS NACIONAIS.2023ND000513.      MEMORANDO 07/2023/DAF/SEC.",210,PASSAGENS,VOETUR TURISMO E REPRESENTACOES LTDA,null,UNIVERSIDADE DE BRASÍLIA,null,2500.00,estimativo,605
PREST   SERVICOS FUB/FUNDO,3710.00,FISCAL,PR 52/2022 - UNB,2023,02/02/2023,CRÉDITOS DISTRIBUÍDOS PARA AS UNIDADES ADMINISTRATIVAS,null,null,null,FUNCIONAMENTO DE INSTITUICOES FEDERAI - NO DF,23106.011357/2023-35,"C. CUSTO: DAF.      PROT:110110{SM303/20123(3710,00)}        SEI 23106.011357/2023-35.AQUISIÇÃO DE SOFÁ ESPERA 03 LUGARES.2023ND000517.      MEMO 08/2023/DAF/SEC.",208,EQUIP. MATERIAL PERMANENTE,PREMIUM MOVEIS PARA ESCRITORIO LTDA,null,UNIVERSIDADE DE BRASÍLIA,null,3710.00,global,605
TESOURO,100000.00,FISCAL,PR 304/2021 - UNB,2023,02/02/2023,LOCAÇÃO DE TRANSPORTE POR DEMANDAS DAS UNIDADES,null,null,null,FUNCIONAMENTO DE INSTITUICOES FEDERAI - NO DF,23106.000890/2021-18,"C. CUSTO: PRC SEI:23106.000890/2021-18PAGAMENTO DE LOCACAO DE MEIOS DE TRANSPORTEÔNIBUS RODOVIÁRIO EXECUTIVO PROT:110105(100000,00)ANEXO 2023ND000522 (9280075) - PREGÃO: 304/2021",207,PASSAGENS,TRANSMONICI TRANSPORTE E TURISMO LTDA,null,UNIVERSIDADE DE BRASÍLIA,null,100000.00,global,605
TESOURO,1500000.00,FISCAL,PR 306/2019 - UNB,2023,02/02/2023,SERVICOS COMUNS DE ENGENHARIA-PREGAO 306/2019,null,null,null,REESTRUTURACAO E MODERNIZACAO DAS INS - NO DF,23106.010928/2023-14,"C. CUSTO: PRC. PROT:1111(1500000,00) SEI 23106.010928/2023-14  PREGÃO 306/2019. EMPRESA GENNESIS ENGENHARIA E CONSULTORIA LTDA, ANEXO 2023ND000518 (9279096)",206,SERV. PESSOA JURÍDICA,GÊNNESIS ENGENHARIA E CONSULTORIA LTDA,null,UNIVERSIDADE DE BRASÍLIA,null,1500000.00,global,605
PREST   SERVICOS FUB/FUNDO,4250.00,FISCAL,PR 202/2022 - UNB,2023,01/02/2023,CRÉDITOS DISTRIBUÍDOS PARA AS UNIDADES ADMINISTRATIVAS,null,null,null,FUNCIONAMENTO DE INSTITUICOES FEDERAI - NO DF,23106.038751/2022-30,"C. CUSTO: DPO.       PROT:110135{SM181/2023(4250,00)}       SEI 23106.006574/2023-11.AQUISIÇÃO DE NOTEBOOK.2023ND000287.       MEMO 015/2023/DPO/SEC.",205,EQUIPAMENTOS E MATERIAL PERMANENTE,DATEN TECNOLOGIA LTDA,null,UNIVERSIDADE DE BRASÍLIA,null,4250.00,ordinário,605
TESOURO,44393.65,FISCAL,PR,2023,01/02/2023,ALMOXARIFADO E TRANSPORTE MOVEIS E MATERIAIS,null,null,null,FUNCIONAMENTO DE INSTITUICOES FEDERAI - NO DF,23106.003248/2023-44,"C. CUSTO DTER PROT:1111(44393,65)NOTA FISCAL Nº2389. CONTRATO Nº111/2022. SERVIÇOS TERCEIRIZADOSDE ALMOXARIFADO E TRANSPORTE INTERNO DE MÓVEIS E MATERIAIS.PHOENIX COMÉRCIO E SERVIÇOS DE LIMPEZA LTDA. PERÍODO:02/JAN A 15/JANSEI: 23106.003248/2023-44 2023ND000475",199,LOC. MÃO-DE-OBRA,PHOENIX COMERCIO E SERVICOS DE LIMPEZA LTDA,null,UNIVERSIDADE DE BRASÍLIA,null,44393.65,global,605
PREST   SERVICOS FUB/FUNDO,50000.00,FISCAL,PR,2023,01/02/2023,CRÉDITOS DISTRIBUÍDOS PARA AS UNIDADES ACADÊMICAS,null,null,null,FUNCIONAMENTO DE INSTITUICOES FEDERAI - NO DF,23106.010157/2023-65,"C. CUSTO: FTD                                 SEI: 23106.010157/2023-65PAGAMENTO DE PASSAGEM SERVIDOR NACIONAL       PROT:11010111(50000,00)MEMO.033/2023/FT/DIREÇÃO/SECRETARIA           2023ND000492 - CONTRATO: 125/2018",198,PASSAGENS,VOETUR TURISMO E REPRESENTACOES LTDA,null,UNIVERSIDADE DE BRASÍLIA,null,50000.00,estimativo,605
PREST   SERVICOS FUB/FUNDO,259556.00,FISCAL,PR 202/2022 - UNB,2023,01/02/2023,CRÉDITOS DISTRIBUÍDOS PARA AS UNIDADES ACADÊMICAS,null,null,null,FUNCIONAMENTO DE INSTITUICOES FEDERAI - NO DF,23106.038751/2022-30,"C. CUSTO: FTD                         SEI:23106.078629/2022-04ATT: FRANCISCO DAMASCENO FREITAS      2023ND000000OFÍCIO.023/2022/FT/ENE   PROT:11010111{SM6692/2022(259556,00)}MATERIAL DE PERMANENTE - PEDIDO:6692/2022 -   PREG:202/2022  EQUIPAMENTOS TIC - MICROCOMPUTADOR TIPO AVANÇADO",197,EQUIPAMENTOS E MATERIAL PERMANENTE,DATEN TECNOLOGIA LTDA,null,UNIVERSIDADE DE BRASÍLIA,null,259556.00,ordinário,605
TESOURO,3428.66,FISCAL,PR,2023,01/02/2023,CONTÍNUO,null,null,null,FUNCIONAMENTO DE INSTITUICOES FEDERAI - NO DF,23106.003012/2023-16,"C.CUSTO : DTER                   S.E.I:  23106.003012/2023-16MEMO.014/2023/DAF/DCA/CDE/DGDE   2023ND000490 - CONTRATO Nº006/2021ATT - ADAMYLSON MADEIRA COSTA - PROT:11011007(3428,66)PRESTAÇÃO DE SERVIÇOS DE APOIO ADMINISTRATIVO - PAGAMENTO DE NOTA FISCAL Nº10",196,LOC. MÃO-DE-OBRA,T & S ENGENHARIA TELEMATICA E SISTEMAS LTDA,null,UNIVERSIDADE DE BRASÍLIA,null,3428.66,global,605
RECURSOS DIRETAM.ARREC-FUNDAÇÃO UNIVERSIDADE,433189.96,FISCAL,RDC,2023,31/01/2023,OBRA DA UNIDADE ADMIN E DE SERVICOS - UAS,null,null,null,REESTRUTURACAO E MODERNIZACAO DAS INS - NO DF,23106.142385/2022-12,"C. CUSTO: INFRA SEI:23106.142385/2022-12 - RDC 05/2022ATT: AUGUSTO CÉSAR OLIVEIRA DIAS    2023ND000474 MEMO.119/2022/INFRA   PROT:1111(433189,96) - CIPI: 19804.53-74OBRAS EM ANDAMENTO - OBRAS CIVIS DE EDIFICAÇÕES RESIDENCIAIS E COMERCIALEXECUÇÃO DA OBRA DE CONCLUSÃO DA UNIDADE ADMINISTRATIVA E DE SERVIÇOS - UAS (ANTIGA FUBRA)",194,OBRAS E INSTALAÇÕES,ARTFLEX ENGENHARIA EIRELI,null,UNIVERSIDADE DE BRASÍLIA,null,433189.96,global,605
PREST   SERVICOS FUB/FUNDO,10471.43,FISCAL,PR 56/2022 - UNB,2023,31/01/2023,CRÉDITOS DISTRIBUÍDOS PARA AS UNIDADES ADMINISTRATIVAS,null,null,null,FUNCIONAMENTO DE INSTITUICOES FEDERAI - NO DF,23106.018622/2022-25,"C. CUSTO UNBTV SEI 23106.018622/2022-25AQUISIÇÃO DE VEÍCULO AÉREO NÃO TRIPULADO (VANT-DRONE).ANEXO 2023ND000468 - UNBTV (9270610)",192,EQUIP. MATERIAL PERMANENTE,ASX SOLUCOES POR DRONES LTDA,null,UNIVERSIDADE DE BRASÍLIA,null,10471.43,ordinário,605
PREST   SERVICOS FUB/FUNDO,10471.43,FISCAL,PR 56/2022 - UNB,2023,31/01/2023,CRÉDITOS DISTRIBUÍDOS PARA AS UNIDADES ADMINISTRATIVAS,null,null,null,FUNCIONAMENTO DE INSTITUICOES FEDERAI - NO DF,23106.018622/2022-25,"C. CUSTO: CEAD SEI 23106.018622/2022-25AQUISIÇÃO DE VEÍCULO AÉREO NÃO TRIPULADO (VANT-DRONE).ANEXO 2023ND000469 - CEAD (9270609)",191,EQUIP. MATERIAL PERMANENTE,ASX SOLUCOES POR DRONES LTDA,null,UNIVERSIDADE DE BRASÍLIA,null,10471.43,ordinário,605
PREST   SERVICOS FUB/FUNDO,20942.86,FISCAL,PR 56/2022 - UNB,2023,31/01/2023,CRÉDITOS DISTRIBUÍDOS PARA AS UNIDADES ACADÊMICAS,null,null,null,FUNCIONAMENTO DE INSTITUICOES FEDERAI - NO DF,23106.018622/2022-25,"C. CUSTO: FT SEI 23106.018622/2022-25.AQUISIÇÃO DE VEÍCULO AÉREO NÃO TRIPULADO (VANT-DRONE).ANEXO 2023ND000465 - FT (9270608)",190,EQUIP. MATERIAL PERMANENTE,ASX SOLUCOES POR DRONES LTDA,null,UNIVERSIDADE DE BRASÍLIA,null,20942.86,ordinário,605
PREST   SERVICOS FUB/FUNDO,20942.86,FISCAL,PR 56/2022 - UNB,2023,31/01/2023,CRÉDITOS DISTRIBUÍDOS PARA AS UNIDADES ACADÊMICAS,null,null,null,FUNCIONAMENTO DE INSTITUICOES FEDERAI - NO DF,23106.018622/2022-25,"C. CUSTO: FUP SEI 23106.018622/2022-25.AQUISIÇÃO DE VEÍCULO AÉREO NÃO TRIPULADO (VANT-DRONE).ANEXO 2023ND000466 - FUP (9270607)",189,EQUIP. MATERIAL PERMANENTE,ASX SOLUCOES POR DRONES LTDA,null,UNIVERSIDADE DE BRASÍLIA,null,20942.86,ordinário,605
PREST   SERVICOS FUB/FUNDO,10471.00,FISCAL,PR 56/2022 - UNB,2023,31/01/2023,CRÉDITOS DISTRIBUÍDOS PARA AS UNIDADES ACADÊMICAS,null,null,null,FUNCIONAMENTO DE INSTITUICOES FEDERAI - NO DF,23106.018622/2022-25,"C. CUSTO: FAU  SEI 23106.018622/2022-25.AQUISIÇÃO DE VEÍCULO AÉREO NÃO TRIPULADO (VANT-DRONE).ANEXO 2023ND000467 - FAU (9270606)",188,EQUIP. MATERIAL PERMANENTE,ASX SOLUCOES POR DRONES LTDA,null,UNIVERSIDADE DE BRASÍLIA,null,10471.00,ordinário,605
TESOURO,204424.42,FISCAL,PR,2023,31/01/2023,SERVICOS DE COMUNICACAO VISUAL,null,null,null,FUNCIONAMENTO DE INSTITUICOES FEDERAI - NO DF,23106.008721/2023-80,"C. CUSTO: DTER                 SEI: 23106.008721/2023-80ATT: FERNANDO JOSÉ BARBATO     2023ND000427MEMO.S.N/2023/DAF/DCA/CSD    PROT:11011007(204424,42) - PG.NOTA FISCAL - Nº50MANUT. E CONSERV. DE BENS MÓVEIS - A PRESTAÇÃO DE SERVIÇOS DE COMUNICAÇÃO VISUAL",187,SERV. PESSOA JURÍDICA,3P HGM SOLUCAO VISUAL LTDA-EPP,null,UNIVERSIDADE DE BRASÍLIA,null,204424.42,global,605
TESOURO,808.34,FISCAL,PR,2023,31/01/2023,RECEPCIONISTA,null,null,null,FUNCIONAMENTO DE INSTITUICOES FEDERAI - NO DF,23106.003033/2023-23,"C. CUSTO: DTER.        PROT:11011007(808,34)        SEI 23106.003033/2023-23.SERVIÇOS TERCEIRIZADOS DE RECEPCIONISTA.        CONTRATO 032/2019.2023ND000455.",185,LOC. MÃO-DE-OBRA,GRIFFO SERVIÇOS GERAIS LTDA,null,UNIVERSIDADE DE BRASÍLIA,null,808.34,global,605
RECURSOS DIR.ARRECADADOS(PROPRIOS)-FUB.,20000.00,FISCAL,PR,2023,30/01/2023,ARRECADACOES PROVENIENTES DO SIS,null,null,null,FUNCIONAMENTO DE INSTITUICOES FEDERAI - NO DF,23106.009359/2023-64,"C. CUSTO: SIS                     SEI:23106.009359/2023-64PAG.DE PASSAGEM NACIONAL          PROT:11010117030101(20000,00)MEMO.016/2023/IG/SIS              2023ND000452 - CONTRATO:125/2018",183,PASSAGENS,VOETUR TURISMO E REPRESENTACOES LTDA,null,UNIVERSIDADE DE BRASÍLIA,null,20000.00,estimativo,605
PREST   SERVICOS FUB/FUNDO,2945.60,FISCAL,PR 1/2021 - UNB,2023,30/01/2023,CRÉDITOS DISTRIBUÍDOS PARA AS UNIDADES ACADÊMICAS,null,null,null,FUNCIONAMENTO DE INSTITUICOES FEDERAI - NO DF,23106.006453/2023-61,"C. CUSTO: FTD.       PROT:11010111(2945,60)         SEI 23106.006453/2023-61.SERVIÇOS DE COFFEE BREAK PARA EVENTO: CERIMÔNIA DR. HONORIS CAUSA ANTÔNIO IBAÑEZ.2023ND000446.        MEMO 005/2023/FT/DIREÇÃO.",181,SERV. PESSOA JURÍDICA,ISM GOMES DE MATTOS EIRELI,null,UNIVERSIDADE DE BRASÍLIA,null,2945.60,ordinário,605
RECURSOS DIR.ARRECADADOS(PROPRIOS)-FUB.,12977.80,FISCAL,PR 202/2022 - UNB,2023,30/01/2023,ARRECADACOES PROVENIENTES DO SIS,null,null,null,FUNCIONAMENTO DE INSTITUICOES FEDERAI - NO DF,23106.038751/2022-30,"C. CUSTO: SIS.       PROT:11010117030101{SM274/2023(12977,80)}      SEI 23106.009856/2023-62.AQUISIÇÃO DE MICROCOMPUTADOR.DEMONSTRATIVO (9263879).      MEMO 017/2023/IG/SIS.",179,EQUIPAMENTOS E MATERIAL PERMANENTE,DATEN TECNOLOGIA LTDA,null,UNIVERSIDADE DE BRASÍLIA,null,12977.80,ordinário,605
PREST   SERVICOS FUB/FUNDO,530.00,FISCAL,DL 11010/2022 - UNB,2023,31/01/2023,CRÉDITOS DISTRIBUÍDOS PARA AS UNIDADES ACADÊMICAS,null,null,null,FUNCIONAMENTO DE INSTITUICOES FEDERAI - NO DF,23106.072555/2022-43,"C. CUSTO: FGA. PROT:110132(530,00) SEI 23106.072555/2022-94.AQUISIÇÃO DE MATERIAL DE TIC - MÓDULO BLUETOOTH.2023ND000177. DESPACHO FGA/ADM/COMPRAS 9200375",178,MAT. CONSUMO,BEATRIZ RIBEIRO DOS SANTOS,null,UNIVERSIDADE DE BRASÍLIA,null,530.00,ordinário,605
CONTRATO NR.1050224 - UNESCO/FUFMT.,369.99,FISCAL,DL 11010/2022 - UNB,2023,31/01/2023,CRÉDITOS DISTRIBUÍDOS PARA AS UNIDADES ACADÊMICAS,null,null,null,FUNCIONAMENTO DE INSTITUICOES FEDERAI - NO DF,23106.072555/2022-43,"C. CUSTO: FGA. PROT:110132(369,99) SEI 23106.072555/2022-94.AQUISIÇÃO DE MATERIAL DE TIC - CARTÃO DE MEMÓRIA.2023ND000177. DESPACHO FGA/ADM/COMPRAS 9200375",177,MAT. CONSUMO,ADRIANA DO AMARAL KRUNITZKI,null,UNIVERSIDADE DE BRASÍLIA,null,369.99,ordinário,605
PREST   SERVICOS FUB/FUNDO,4794.70,FISCAL,DL 11010/2022 - UNB,2023,30/01/2023,CRÉDITOS DISTRIBUÍDOS PARA AS UNIDADES ACADÊMICAS,null,null,null,FUNCIONAMENTO DE INSTITUICOES FEDERAI - NO DF,23106.072555/2022-43,"C. CUSTO: FGA. PROT:110132(4794,70) SEI 23106.072555/2022-94.AQUISIÇÃO DE MATERIAL DE TIC - HD ELETROMECÂNICO.2023ND000177. DESPACHO FGA/ADM/COMPRAS 9200375.",176,MAT. CONSUMO,ESTRUTTOS LTDA,null,UNIVERSIDADE DE BRASÍLIA,null,4794.70,ordinário,605
PREST   SERVICOS FUB/FUNDO,3150.00,FISCAL,PR 52/2022 - UNB,2023,30/01/2023,CRÉDITOS DISTRIBUÍDOS PARA AS UNIDADES ADMINISTRATIVAS,null,null,null,FUNCIONAMENTO DE INSTITUICOES FEDERAI - NO DF,23106.091447/2022-11,"C. CUSTO: DPO.      PROT:110135{SM223/2023(3150,00)}        SEI 23106.008118/2023-06.AQUISIÇÃO DE POLTRONA GIRATÓRIA.2023ND000357.        MEMO 059/2023/DPO/SEC.",172,EQUIP. MATERIAL PERMANENTE,ROAL INDUSTRIA METALURGICA LTDA,null,UNIVERSIDADE DE BRASÍLIA,null,3150.00,ordinário,605
PREST   SERVICOS FUB/FUNDO,1955.40,FISCAL,PR 1/2021 - UNB,2023,27/01/2023,CRÉDITOS DISTRIBUÍDOS PARA AS UNIDADES ACADÊMICAS,null,null,null,FUNCIONAMENTO DE INSTITUICOES FEDERAI - NO DF,23106.008262/2023-34,"C. CUSTO: IDA.      PROT:11010114(1955,40)       SEI 23106.008262/2023-34.SERVIÇO DE COFFEE BREAK PARA EXPOSIÇÃO DA DIPLOMAÇÃO.2023ND000424.      MEMO 01/2023/IDA/VIS.",167,SERV. PESSOA JURÍDICA,ISM GOMES DE MATTOS EIRELI,null,UNIVERSIDADE DE BRASÍLIA,null,1955.40,ordinário,605
TESOURO,0.44,FISCAL,PR,2023,27/01/2023,SERVICOS DE SALVA VIDAS E TRATADOR DE PISCINA,null,null,null,FUNCIONAMENTO DE INSTITUICOES FEDERAI - NO DF,23106.003020/2023-54,"C. CUSTO: DTER.     PROT:11011007(0,44)         SEI 23106.003020/2023-54.        SERVIÇOS DE TRATADOR DE PISCINAS.       CONTRATO 93/2020.2023ND000415.         MEMO 015/2023/DAF/DCA/CDE/DGDE.",164,SERV. PESSOA JURÍDICA,AP PISCINAS EIRELI,null,UNIVERSIDADE DE BRASÍLIA,null,0.44,estimativo,605
TESOURO,605.44,FISCAL,PR,2023,27/01/2023,EMPR ESPEC PREST SERV LIMP E CONS UNB CERRADO,null,null,null,FUNCIONAMENTO DE INSTITUICOES FEDERAI - NO DF,23106.003009/2023-94,"C. CUSTO: DTER.     PROT:11011007(605,44)         SEI 23106.003009/2023-94.    SERVIÇOS DE LIMPEZA, CONSERVAÇÃO E HIGIENIZAÇÃO.       CONTRATO 112/2020.2023ND000416.         MEMO 013/2023/DAF/DCA/CDE/DGDE.",163,SERV. PESSOA JURÍDICA,AP PISCINAS EIRELI,null,UNIVERSIDADE DE BRASÍLIA,null,605.44,estimativo,605
TESOURO,12300.00,FISCAL,PR 40/2022 - UNB,2023,26/01/2023,MATRIZ HVET_,null,null,null,20RK - FUNCIONAMENTO DOS HOSPITAL VETERINARIOS,23106.082731/2022-04,"C. CUSTO: HVET.        PROT:1101010501{SM267/2023(12300,00)}        SEI 23106.008363/2023-13.AQUISIÇÃO DE SERRAGEM MARAVALHA.2023ND000404.      DESPACHO FAV/HVET/HVETINHO 9240537.",161,MAT. CONSUMO,AGROVERDE COMERCIO DE PRODUTOS AGROPECUARIOS LTDA,null,UNIVERSIDADE DE BRASÍLIA,null,12300.00,ordinário,605
FONTES,30000.00,FISCAL,PR,2023,26/01/2023,DESPESAS ADMINISTRATIVAS DO CESPE,null,null,null,FUNCIONAMENTO DE INSTITUICOES FEDERAI - NO DF,23106.009152/2023-90,"C. CUSTO: CESPE                SEI:23106.009152/2023-90PAGAMENTO DE PASSAGEM SERVIDOR NACIONAL       PROT:110122(30000,00)MEMO.S.N/2023/DAF/DCA/CGT      2023NC000001 - CONTRATO: 125/2018",160,PASSAGENS,VOETUR TURISMO E REPRESENTACOES LTDA,null,UNIVERSIDADE DE BRASÍLIA,null,30000.00,estimativo,605
TESOURO,1470.00,FISCAL,PR 20/2022 - UNB,2023,26/01/2023,MATRIZ HVET_,null,null,null,20RK - FUNCIONAMENTO DOS HOSPITAL VETERINARIOS,23106.031067/2022-27,"C.CUSTO:HVET - AT- LIRIA QUEIROZ LUZ - PROT:1101010501{SM253/2023(1470,00)}         MATERIAL DE CONSUMO - PEDIDO:253/2023 - 2023ND000374 - PREG:020/2022MATERIAL HOSPITALAR - SERINGA - MATERIAL POLIPROPILENO - CAPACIDADE 3 MLMEMO.S.N/2023/FAV/HVET/HVETINHO - S.E.I 23106.007535/2023-23",158,MAT. CONSUMO,INFINITY PHARMA COMERCIO E REPRESENTACOES DE MEDICAMENTOS LTDA,null,UNIVERSIDADE DE BRASÍLIA,null,1470.00,ordinário,605
TESOURO,467.50,FISCAL,PR 20/2022 - UNB,2023,26/01/2023,MATRIZ HVET_,null,null,null,20RK - FUNCIONAMENTO DOS HOSPITAL VETERINARIOS,23106.031067/2022-27,"C.CUSTO:HVET - AT- LIRIA QUEIROZ LUZ - PROT:1101010501{SM252/2023(467,50)}         MATERIAL DE CONSUMO - PEDIDO:252/2023 - 2023ND000374 - PREG:020/2022MATERIAL LABORATORIAL - SWAB - MATERIAL HASTE PLÁSTICA - TIPO PONTAMEMO.S.N/2023/FAV/HVET/HVETINHO - S.E.I 23106.007535/2023-23",157,MAT. CONSUMO,SWAB CB BRASIL INDÚSTRIA DE PRODUTOS LABORATORIAIS LTDA,null,UNIVERSIDADE DE BRASÍLIA,null,467.50,ordinário,605
TESOURO,115.50,FISCAL,PR 20/2022 - UNB,2023,26/01/2023,MATRIZ HVET_,null,null,null,20RK - FUNCIONAMENTO DOS HOSPITAL VETERINARIOS,23106.031067/2022-27,"C.CUSTO:HVET - AT- LIRIA QUEIROZ LUZ - PROT:1101010501{SM251/2023(115,50)}         MATERIAL DE CONSUMO - PEDIDO:251/2023 - 2023ND000374 - PREG:020/2022MATERIAL HOSPITALAR - ATADURA TIPO - 1 - CREPOM - TECIDO MISTOMEMO.S.N/2023/FAV/HVET/HVETINHO - S.E.I 23106.007535/2023-23",156,MAT. CONSUMO,D PRONTO NUTRIÇÃO ANIMAL E PRODUTOS VETERINÁRIOS LTDA,null,UNIVERSIDADE DE BRASÍLIA,null,115.50,ordinário,605
TESOURO,444.20,FISCAL,PR 20/2022 - UNB,2023,26/01/2023,MATRIZ HVET_,null,null,null,20RK - FUNCIONAMENTO DOS HOSPITAL VETERINARIOS,23106.031067/2022-27,"C.CUSTO:HVET - AT- LIRIA QUEIROZ LUZ - PROT:1101010501{SM250/2023(444,20)}         MATERIAL DE CONSUMO - PEDIDO:250/2023 - 2023ND000374 - PREG:020/2022MATERIAL HOSPITALAR - CATETER PERIFÉRICO - LUVA CIRÚRGICAMEMO.S.N/2023/FAV/HVET/HVETINHO - S.E.I 23106.007535/2023-23",155,MAT. CONSUMO,DIGITAL BUSINESS LTDA,null,UNIVERSIDADE DE BRASÍLIA,null,444.20,ordinário,605
TESOURO,1695.00,FISCAL,PR 17/2022 - UNB,2023,26/01/2023,MATRIZ HVET_,null,null,null,20RK - FUNCIONAMENTO DOS HOSPITAL VETERINARIOS,23106.030293/2022-91,"C.CUSTO:HVET - AT- LIRIA QUEIROZ LUZ - PROT:1101010501{SM248/2023(1695,00)}         MATERIAL DE CONSUMO - PEDIDO:248/2023 - 2023ND000374 - PREG:017/2022MATERIAL FARMACOLÓGICO - DIPROPIONATO DE IMIDOCARBEMEMO.S.N/2023/FAV/HVET/HVETINHO - S.E.I 23106.007535/2023-23",154,MAT. CONSUMO,RENATO MACHADO PINTO,null,UNIVERSIDADE DE BRASÍLIA,null,1695.00,ordinário,605
PREST   SERVICOS FUB/FUNDO,4878.04,FISCAL,PR,2023,26/01/2023,CRÉDITOS DISTRIBUÍDOS PARA AS UNIDADES ADMINISTRATIVAS,null,null,null,FUNCIONAMENTO DE INSTITUICOES FEDERAI - NO DF,23106.006797/2023-71,"C. CUSTO: INT.      PROT:110112(4878,04)      SEI 23106.006797/2023-71.PASSAGENS INTERNACIONAIS.2023ND000387.     MEMO 0003/2023/DAF/DACP/CCV.",151,PASSAGENS,VOETUR TURISMO E REPRESENTACOES LTDA,null,UNIVERSIDADE DE BRASÍLIA,null,4878.04,estimativo,605
PREST   SERVICOS FUB/FUNDO,1330.00,FISCAL,PR 52/2022 - UNB,2023,26/01/2023,CRÉDITOS DISTRIBUÍDOS PARA AS UNIDADES ACADÊMICAS,null,null,null,FUNCIONAMENTO DE INSTITUICOES FEDERAI - NO DF,23106.091447/2022-11,"C. CUSTO: FCI. PROT:110133{SM179/2023(1330,00)} SEI 23106.006509/2023-88.AQUISIÇÃO DE POLTRONA LONGARINA.2023ND000220. MEMO 06/2023/FCI/FI.",150,EQUIP. MATERIAL PERMANENTE,WOOD CENTER COMERCIO - EIRELI,null,UNIVERSIDADE DE BRASÍLIA,null,1330.00,ordinário,605
PREST   SERVICOS FUB/FUNDO,10471.43,FISCAL,PR 56/2022 - UNB,2023,26/01/2023,CRÉDITOS DISTRIBUÍDOS PARA AS UNIDADES ADMINISTRATIVAS,null,null,null,FUNCIONAMENTO DE INSTITUICOES FEDERAI - NO DF,23106.018622/2022-25,"C. CUSTO: FGA. PROT:110132(10471,43) SEI 23106.018622/2022-25.AQUISIÇÃO DE VEÍCULO AÉREO NÃO TRIPULADO (VANT-DRONE).2023ND000338 E 2023ND000381.",149,EQUIP. MATERIAL PERMANENTE,ASX SOLUCOES POR DRONES LTDA,null,UNIVERSIDADE DE BRASÍLIA,null,10471.43,ordinário,605
RECURSOS DIRETAM.ARREC-FUNDAÇÃO UNIVERSIDADE,4880.70,FISCAL,DL 17015/2022 - UNB,2023,25/01/2023,FUNCIONAMENTO GERAL,null,null,null,FUNCIONAMENTO DE INSTITUICOES FEDERAI - NO DF,23106.080210/2022-12,"C. CUSTO: NUT           SEI:23106.080210/2022-12FRETES E TRANSPORTES DE ENCOMENDAS - FRETE AÉREO INTERNACIONAL MEMO.S.N/2022/FS/NUT    PROT:1101011003(4880,70)   - 2023ND000372CONTRATO 81/2017  - PREGÃO ELETRÔNICO 06/2017AQUSIÇÃO DE ÁGUA DUPLAMENTE COM DEUTÉRIO (ISOTOPOS)",147,SERV. PESSOA JURÍDICA,WEGH ASSESSORIA E LOGISTICA INTERNACIONAL LTDA - EPP,null,UNIVERSIDADE DE BRASÍLIA,null,4880.70,estimativo,605
PREST   SERVICOS FUB/FUNDO,6000.00,FISCAL,PR,2023,25/01/2023,CRÉDITOS DISTRIBUÍDOS PARA AS UNIDADES ACADÊMICAS,null,null,null,FUNCIONAMENTO DE INSTITUICOES FEDERAI - NO DF,23106.005992/2023-83,"C. CUSTO: ILD                    SEI: 23106.005992/2023-83PAGAMENTO DE PASSAGEM NACIONAL   PROT:11010119(6000,00)MEMO.S.N/2023/ILD/LIP            2023ND000359 - CONT:125/2018",146,PASSAGENS,VOETUR TURISMO E REPRESENTACOES LTDA,null,UNIVERSIDADE DE BRASÍLIA,null,6000.00,estimativo,605
PREST   SERVICOS FUB/FUNDO,6000.00,FISCAL,PR,2023,25/01/2023,CRÉDITOS DISTRIBUÍDOS PARA AS UNIDADES ACADÊMICAS,null,null,null,FUNCIONAMENTO DE INSTITUICOES FEDERAI - NO DF,23106.005992/2023-83,"C. CUSTO: ILD                    SEI: 23106.005992/2023-83PAGAMENTO DE PASSAGEM NACIONAL   PROT:11010119(6000,00)MEMO.S.N/2023/ILD/TEL            2023ND000359 - CONT:125/2018",145,PASSAGENS,VOETUR TURISMO E REPRESENTACOES LTDA,null,UNIVERSIDADE DE BRASÍLIA,null,6000.00,estimativo,605
PREST   SERVICOS FUB/FUNDO,9000.00,FISCAL,PR,2023,25/01/2023,CRÉDITOS DISTRIBUÍDOS PARA AS UNIDADES ACADÊMICAS,null,null,null,FUNCIONAMENTO DE INSTITUICOES FEDERAI - NO DF,23106.006399/2023-54,"C.CUSTO: FSD.       PROT:11010110(9000,00)         SEI  23106.006399/2023-54.PASSAGENS NACIONAIS.2023ND000370.             MEMO 06/2023/FS/ODT.",144,PASSAGENS,VOETUR TURISMO E REPRESENTACOES LTDA,null,UNIVERSIDADE DE BRASÍLIA,null,9000.00,estimativo,605
PREST   SERVICOS FUB/FUNDO,12000.00,FISCAL,PR,2023,24/01/2023,CRÉDITOS DISTRIBUÍDOS PARA AS UNIDADES ACADÊMICAS,null,null,null,FUNCIONAMENTO DE INSTITUICOES FEDERAI - NO DF,23106.005992/2023-83,"C. CUSTO: ILD                              SEI: 23106.005992/2023-83PAGAMENTO DE PASSAGEM NACIONAL             PROT:11010119(12000,00)MEMO.002/2023/IL/ILDSF                     2023ND000359 - CONT:125/2018",142,PASSAGENS,VOETUR TURISMO E REPRESENTACOES LTDA,null,UNIVERSIDADE DE BRASÍLIA,null,12000.00,estimativo,605
PREST   SERVICOS FUB/FUNDO,17500.00,FISCAL,PR 52/2022 - UNB,2023,24/01/2023,CRÉDITOS DISTRIBUÍDOS PARA AS UNIDADES ADMINISTRATIVAS,null,null,null,FUNCIONAMENTO DE INSTITUICOES FEDERAI - NO DF,23106.091447/2022-11,"C. CUSTO: DPO.        PROT:110135{SM185/2023(17500,00)}        SEI 23106.006650/2023-81.AQUISIÇÃO DE POLTRONA GIRATÓRIA.2023ND000290.      MEMORANDO 016/2023/DPO/SEC.",140,EQUIP. MATERIAL PERMANENTE,ROAL INDUSTRIA METALURGICA LTDA,null,UNIVERSIDADE DE BRASÍLIA,null,17500.00,ordinário,605
RECURSOS DIRETAM.ARREC-FUNDAÇÃO UNIVERSIDADE,2395.44,FISCAL,PR 41/2019 - UNB,2023,24/01/2023,SEGURO PARA ALUNOS E ESTAGIARIOS EM GERAL,null,null,null,FUNCIONAMENTO DE INSTITUICOES FEDERAI - NO DF,23106.005671/2023-89,"C. CUSTO DTER. PROT:11011007(2395,44) CONTRATO 24/2020FORNECIMENTO DE SERGURO OBRIGATÓRIO2023ND000343 SEI:  23106.005671/2023-89 PROC ORIGEM: 2019PR00041",139,SERV. PESSOA JURÍDICA,MBM SEGURADORA SA,null,UNIVERSIDADE DE BRASÍLIA,null,2395.44,global,605
PREST   SERVICOS FUB/FUNDO,5000.00,FISCAL,PR,2023,23/01/2023,CRÉDITOS DISTRIBUÍDOS PARA AS UNIDADES ACADÊMICAS,null,null,null,FUNCIONAMENTO DE INSTITUICOES FEDERAI - NO DF,23106.005321/2023-12,"C. CUSTO: IB.      PROT:11010112(5000,00)       SEI 23106.005321/2023-12. PASSAGENS NACIONAIS.2023ND000305.       MEMO 8/2023/IB/COMPRAS.",119,PASSAGENS,VOETUR TURISMO E REPRESENTACOES LTDA,null,UNIVERSIDADE DE BRASÍLIA,null,5000.00,estimativo,605
TESOURO,12282.45,FISCAL,PR,2023,23/01/2023,OPERADOR DE TRATOR,null,null,null,FUNCIONAMENTO DE INSTITUICOES FEDERAI - NO DF,23106.003091/2023-57,"C. CUSTO: DTER.      PROT:11011007(12282,45)        SEI 23106.003091/2023-57.SERVIÇOS DE MOTORISTA.      CONTRATO 1201/2022.2023ND000308.       MEMO 006/2023/DAF/DCA/CDE/DGDE.",117,LOC. MÃO-DE-OBRA,RDJ ASSESSORIA E GESTAO EMPRESARIAL EIRELI,null,UNIVERSIDADE DE BRASÍLIA,null,12282.45,estimativo,605
PREST   SERVICOS FUB/FUNDO,4500.00,FISCAL,PR 52/2022 - UNB,2023,20/01/2023,CRÉDITOS DISTRIBUÍDOS PARA AS UNIDADES ACADÊMICAS,null,null,null,FUNCIONAMENTO DE INSTITUICOES FEDERAI - NO DF,23106.091447/2022-11,"C. CUSTO: FCI.        PROT:110133{SM178/2023(4500,00)}        SEI 23106.006483/2023-78.AQUISIÇÃO DE CADEIRA FIXA.2023ND000220.        MEMO 05/2023/FCI/FI.",103,EQUIP. MATERIAL PERMANENTE,ROAL INDUSTRIA METALURGICA LTDA,null,UNIVERSIDADE DE BRASÍLIA,null,4500.00,ordinário,605
PREST   SERVICOS FUB/FUNDO,2281.30,FISCAL,PR,2023,19/01/2023,CRÉDITOS DISTRIBUÍDOS PARA AS UNIDADES ACADÊMICAS,null,null,null,FUNCIONAMENTO DE INSTITUICOES FEDERAI - NO DF,23106.004877/2023-91,"C. CUSTO: ICH.        PROT:11010118(2281,30)        SEI 23106.004877/2023-91.SERVIÇOS DE COFFEE BREAK.2023ND000230.         MEMO 11/2023/ICH.",66,SERV. PESSOA JURÍDICA,ISM GOMES DE MATTOS EIRELI,null,UNIVERSIDADE DE BRASÍLIA,null,2281.30,ordinário,605
TESOURO,8841.00,FISCAL,PR 23/2022 - UNB,2023,19/01/2023,REPOSIÇÃO DE MATERIAL DO ALMOXARIFADO,null,null,null,FUNCIONAMENTO DE INSTITUICOES FEDERAI - NO DF,23106.031609/2022-61,"C.CUSTO:ALMOX - AT -  ALEXANDRE PEIXOTO BEZERRA - PROT:1101100601{SM122/2023(8841,00)}         MATERIAL DE CONSUMO - PEDIDO:0122/2023 - 2023ND000208 - PREG:023/2022 MATERIAL DE COZIN. E MAT. DE HIGIENE - COPO - PAPEL HIGIE. - SABÃO - SACOMEMO.001/2022/ALMOX -  S.E.I 23106.004800/2023-11",65,MAT. CONSUMO,CDV COMERCIAL DE ALIMENTOS EIRELI,null,UNIVERSIDADE DE BRASÍLIA,null,8841.00,ordinário,605
TESOURO,1290.40,FISCAL,PR 40/2021 - UNB,2023,19/01/2023,REPOSIÇÃO DE MATERIAL DO ALMOXARIFADO,null,null,null,FUNCIONAMENTO DE INSTITUICOES FEDERAI - NO DF,23106.004922/2023-16,"C.CUSTO:ALMOX - AT -  ALEXANDRE PEIXOTO BEZERRA - PROT:1101100601{SM137/2023(1290,40)}         MATERIAL DE CONSUMO - PEDIDO:0137/2023 - 2023ND000209 - PREG:040/2021 MATERIAL DE EXPEDIENTE - COLA - PINCEL - MARCADOR  PERMANENTEMEMO.004/2022/ALMOX -  S.E.I 23106.004922/2023-16",64,MAT. CONSUMO,ALMIX COMERCIO DE SUPRIMENTOS LTDA-EPP,null,UNIVERSIDADE DE BRASÍLIA,null,1290.40,global,605
PREST   SERVICOS FUB/FUNDO,3319.78,FISCAL,PR,2023,19/01/2023,CRÉDITOS DISTRIBUÍDOS PARA AS UNIDADES ADMINISTRATIVAS,null,null,null,FUNCIONAMENTO DE INSTITUICOES FEDERAI - NO DF,23106.005128/2023-81,"C. CUSTO: GRE                     SEI:23106.005128/2023-81ATT:PAULO CESAR MARQUES           2023ND000225MEMO.002/2023/GRE                 PROT:1101(3319,78)SERVIÇOS DE TERCEIROS - PEDIDO:0000/2022 - CONTRATO: 031/2021FORNECIMENTO DE ALIMENTAÇÃO - FORNECIMENTO DE REFEIÇÕES -  COFFEE BREAK",63,SERV. PESSOA JURÍDICA,ISM GOMES DE MATTOS EIRELI,null,UNIVERSIDADE DE BRASÍLIA,null,3319.78,global,605
TESOURO,1989.00,FISCAL,PR 1/2022 - UNB,2023,19/01/2023,REPOSIÇÃO DE MATERIAL DO ALMOXARIFADO,null,null,null,FUNCIONAMENTO DE INSTITUICOES FEDERAI - NO DF,23106.004820/2023-92,"C.CUSTO:ALM// AQUISIÇÃO DE PILHA ALCALINA AAA// MEMORANDO 3 (9201003)PROT:1101100601(1989,00)// 2023ND000207// SEI N. 23106.004820/2023-92",62,MAT. CONSUMO,RRA COMERCIO ELETRO-FONIA LTDA,null,UNIVERSIDADE DE BRASÍLIA,null,1989.00,global,605
TESOURO,722.00,FISCAL,PR 1/2022 - UNB,2023,19/01/2023,REPOSIÇÃO DE MATERIAL DO ALMOXARIFADO,null,null,null,FUNCIONAMENTO DE INSTITUICOES FEDERAI - NO DF,23106.004820/2023-92,"C.CUSTO:ALM// AQUISIÇÃO DE COADOR PARA CAFÉ DE PAPEL// MEMORANDO 3 (9201003)PROT:1101100601(722,00)// 2023ND000207// SEI N. 23106.004820/2023-92",61,MAT. CONSUMO,M.Z.A.S SUPERMERCADO EIRELI,null,UNIVERSIDADE DE BRASÍLIA,null,722.00,global,605
TESOURO,3222.50,FISCAL,PR 1/2022 - UNB,2023,19/01/2023,REPOSIÇÃO DE MATERIAL DO ALMOXARIFADO,null,null,null,FUNCIONAMENTO DE INSTITUICOES FEDERAI - NO DF,23106.004820/2023-92,"C.CUSTO:ALM// AQUISIÇÃO DE MOUSE PAD ERGONOMICO// MEMORANDO 3 (9201003)PROT:1101100601(3225,00)// 2023ND000207// SEI N. 23106.004820/2023-92",60,MAT. CONSUMO,DARLU INDUSTRIA TEXTIL LTDA,null,UNIVERSIDADE DE BRASÍLIA,null,3222.50,global,605
TESOURO,1938.00,FISCAL,PR 1/2022 - UNB,2023,19/01/2023,REPOSIÇÃO DE MATERIAL DO ALMOXARIFADO,null,null,null,FUNCIONAMENTO DE INSTITUICOES FEDERAI - NO DF,23106.004820/2023-92,"C.CUSTO:ALM// AQUISIÇÃO DE PILHA ALCALINA AA// MEMORANDO 3 (9201003)PROT:1101100601(1938,00)// 2023ND000207// SEI N. 23106.004820/2023-92",59,MAT. CONSUMO,JANETE MARIA CHAVES BRANDAO 04957560595,null,UNIVERSIDADE DE BRASÍLIA,null,1938.00,global,605
TESOURO,2753.00,FISCAL,PR 1/2022 - UNB,2023,19/01/2023,REPOSIÇÃO DE MATERIAL DO ALMOXARIFADO,null,null,null,FUNCIONAMENTO DE INSTITUICOES FEDERAI - NO DF,23106.004820/2023-92,"C.CUSTO:ALM// AQUISIÇÃO DE COADOR DE CAFÉ E MEXEDOR// MEMORANDO 3 (9201003)PROT:1101100601(2753,00)// 2023ND000207// SEI N. 23106.004820/2023-92",58,MAT. CONSUMO,G B LEITE COMERCIO E MERCEARIA,null,UNIVERSIDADE DE BRASÍLIA,null,2753.00,global,605
TESOURO,5300.00,FISCAL,PR 1/2022 - UNB,2023,19/01/2023,REPOSIÇÃO DE MATERIAL DO ALMOXARIFADO,null,null,null,FUNCIONAMENTO DE INSTITUICOES FEDERAI - NO DF,23106.004820/2023-92,"C.CUSTO:ALM// AQUISIÇÃO DE EBULIDOR ELETRICO MERGULHÃO// MEMORANDO 3 (9201003)PROT:1101100601(5300,00)// 2023ND000207// SEI N. 23106.004820/2023-92",56,MAT. CONSUMO,ONE COMERCIAL LTDA,null,UNIVERSIDADE DE BRASÍLIA,null,5300.00,global,605
TESOURO,1303.60,FISCAL,PR,2023,19/01/2023,CAPACITAÇÃO DE SERVIDORES,null,null,null,CAPACITACAO DE SERVIDORES PUBLICOS FE - NO DI,23106.005616/2023-99,"C. CUSTO: DGP.       PROT:110134(1303,60)          SEI 23106.005616/2023-99.SERVIÇOS DE COFFEE BREAK PARA EVENTO DE AMBIENTAÇÃO DE NOVOS SERVIDORES.2023ND000211.       MEMO 176/2023/DGP/DCADE/PROCAP.",55,SERV. PESSOA JURÍDICA,ISM GOMES DE MATTOS EIRELI,null,UNIVERSIDADE DE BRASÍLIA,null,1303.60,ordinário,605
TESOURO,2945.00,FISCAL,PR 6/2022 - UNB,2023,19/01/2023,REPOSIÇÃO DE MATERIAL DO ALMOXARIFADO,null,null,null,FUNCIONAMENTO DE INSTITUICOES FEDERAI - NO DF,23106.004808/2023-88,"C.CUSTO:ALM// AQUISIÇÃO DE ADOÇANTES E AGUA SANITARIA// MEMORANDO 2 (9200899)// PR. 06/2022PROT:1101100601(2945,00)// SEI N. 23106.004808/2023-88// 2022ND000206",54,MAT. CONSUMO,CDV COMERCIAL DE ALIMENTOS EIRELI,null,UNIVERSIDADE DE BRASÍLIA,null,2945.00,global,605
PREST   SERVICOS FUB/FUNDO,9559.47,FISCAL,PR 52/2022 - UNB,2023,18/01/2023,CRÉDITOS DISTRIBUÍDOS PARA AS UNIDADES ADMINISTRATIVAS,null,null,null,FUNCIONAMENTO DE INSTITUICOES FEDERAI - NO DF,23106.150592/2022-41,"C. CUSTO: DPO                     SEI:23106.150592/2022-41ATT:  RAFAELA RODRIGUES SANTOS    2023ND000074MEMO.253/2022/DPO/SEC             PROT:110135{SM7338/2022(9559,47)}MATERIAL DE PERMANENTE - PEDIDO:7338/2022 -   PREG:052/2022MOBILIÁRIO EM GERAL - DESCANSO DE PÉS",52,EQUIP. MATERIAL PERMANENTE,CAPIM DOURADO COMERCIO DE PRODUTOS E SERVICOS LTDA,null,UNIVERSIDADE DE BRASÍLIA,null,9559.47,global,605
PREST   SERVICOS FUB/FUNDO,1520.10,FISCAL,PR,2023,18/01/2023,CRÉDITOS DISTRIBUÍDOS PARA AS UNIDADES ADMINISTRATIVAS,null,null,null,FUNCIONAMENTO DE INSTITUICOES FEDERAI - NO DF,23106.005919/2023-10,"C. CUSTO: DPO                                  SEI:23106.005919/2023-10PAGAMENTO DE PASSAGEM NACIONAL                 PROT:110135(1520,10)MEMO.013/2023/DPO/SEC                          2023ND000189 - CONTRATO: 125/2018",51,PASSAGENS,VOETUR TURISMO E REPRESENTACOES LTDA,null,UNIVERSIDADE DE BRASÍLIA,null,1520.10,estimativo,605
TESOURO,139100.00,FISCAL,PR 319/2022 - UNB,2023,17/01/2023,COLETA RESIDUOS SOLIDOS SERVICOS SAUDE,null,null,null,FUNCIONAMENTO DE INSTITUICOES FEDERAI - NO DF,23106.065223/2022-53,"C.CUSTO :DTER                S.E.I Nº : 23106.065223/2022-53MEMO.S.N/2023/DAC/CES        2023ND00168 - CONTRATO: 938/2017ATT - TATIANA ULHOA          PROT:11011007(139100,00)SERV.DE TERCEIROS - COLETA, TRANSPORTE, TRATAMENTO E DISPOSIÇÃO FINAL DE RESÍDUOS SÓLIDOSORGÂNICOS E INDIFERENCIADOS",45,SERV. PESSOA JURÍDICA,BELFORT GERENCIAMENTO DE RESIDUOS LTDA - EPP,null,UNIVERSIDADE DE BRASÍLIA,null,139100.00,estimativo,605
PREST   SERVICOS FUB/FUNDO,5000.00,FISCAL,PR,2023,17/01/2023,CRÉDITOS DISTRIBUÍDOS PARA AS UNIDADES ACADÊMICAS,null,null,null,FUNCIONAMENTO DE INSTITUICOES FEDERAI - NO DF,23106.003873/2023-96,"C.CUSTO:IE// SEGURO VIAGEM// MEMORANDO 2 (9189324)// 2023ND000160PROT:11010115(5000,00)// SEI N. 23106.003873/2023-96",44,SERV. PESSOA JURÍDICA,VOETUR TURISMO E REPRESENTACOES LTDA,null,UNIVERSIDADE DE BRASÍLIA,null,5000.00,global,605
PREST   SERVICOS FUB/FUNDO,1410.00,FISCAL,PR 7/2022 - UNB,2023,17/01/2023,CRÉDITOS DISTRIBUÍDOS PARA AS UNIDADES ADMINISTRATIVAS,null,null,null,FUNCIONAMENTO DE INSTITUICOES FEDERAI - NO DF,23106.054297/2021-83,"C.CUSTO:DAF// AQUISIÇÃO DE FORNO MICRONDAS// 2023ND000132//PROT:110110(1410,00)// SEI N.23106.095303/2022-33// MEMORANDO N. 019/2022/DAF / DGM",42,EQUIP. MATERIAL PERMANENTE,SML QUALITY COMERCIO EIRELI,null,UNIVERSIDADE DE BRASÍLIA,null,1410.00,ordinário,605
PREST   SERVICOS FUB/FUNDO,2213.40,FISCAL,PR 31/2021 - UNB,2023,16/01/2023,CRÉDITOS DISTRIBUÍDOS PARA AS UNIDADES ACADÊMICAS,null,null,null,FUNCIONAMENTO DE INSTITUICOES FEDERAI - NO DF,23106.147564/2022-46,"C. CUSTO: ICH.        PROT:11010118(2213,40)           SEI 23106.147564/2022-46.SERVIÇOS DE COFFEE BREAK.2023ND000149.         DESPACHO ICH 9178803.",38,SERV. PESSOA JURÍDICA,ISM GOMES DE MATTOS EIRELI,null,UNIVERSIDADE DE BRASÍLIA,null,2213.40,ordinário,605
PREST   SERVICOS FUB/FUNDO,2000.00,FISCAL,PR,2023,13/01/2023,CRÉDITOS DISTRIBUÍDOS PARA AS UNIDADES ADMINISTRATIVAS,null,null,null,FUNCIONAMENTO DE INSTITUICOES FEDERAI - NO DF,23106.150889/2022-14,"C. CUSTO: FGA                           SEI: 23106.150889/2022-14PAG.DE PASSAGEM NACIONAL                PROT:110132(2000,00)MEMO.S.N/2023/FGA/ADM/COMPRAS           2023ND000139  - CONTRATO:125/2018",36,PASSAGENS,VOETUR TURISMO E REPRESENTACOES LTDA,null,UNIVERSIDADE DE BRASÍLIA,null,2000.00,estimativo,605
PREST   SERVICOS FUB/FUNDO,10000.00,FISCAL,PR,2023,11/01/2023,CRÉDITOS DISTRIBUÍDOS PARA AS UNIDADES ACADÊMICAS,null,null,null,FUNCIONAMENTO DE INSTITUICOES FEDERAI - NO DF,23106.002388/2023-03,"C. CUSTO: IE                        SEI:23106.002388/2023-03 PAG. PASSAGEM NACIONAL              PROT:11010115(10000,00)MEMO.S.N/2023/IE/MAT                2023ND000070 - CONTRATO:125/2018",25,PASSAGENS,VOETUR TURISMO E REPRESENTACOES LTDA,null,UNIVERSIDADE DE BRASÍLIA,null,10000.00,estimativo,605
PREST   SERVICOS FUB/FUNDO,5000.00,FISCAL,PR,2023,10/01/2023,CRÉDITOS DISTRIBUÍDOS PARA AS UNIDADES ADMINISTRATIVAS,null,null,null,FUNCIONAMENTO DE INSTITUICOES FEDERAI - NO DF,23106.000155/2023-68,"C. CUSTO: DEX                  SEI:23106.000155/2023-68PAG.DE PASSAGEM NACIONAL       PROT:110107(5000,00)MEMO.001/2023/DEX              2023ND000054  - CONTRATO: 125/2018",19,PASSAGENS,VOETUR TURISMO E REPRESENTACOES LTDA,null,UNIVERSIDADE DE BRASÍLIA,null,5000.00,estimativo,605
PREST   SERVICOS FUB/FUNDO,8000.00,FISCAL,PR,2023,10/01/2023,CRÉDITOS DISTRIBUÍDOS PARA AS UNIDADES ACADÊMICAS,null,null,null,FUNCIONAMENTO DE INSTITUICOES FEDERAI - NO DF,23106.000649/2023-42,"C. CUSTO: FMD                                 SEI:23106.000649/2023-42PAGAMENTO DE PASSAGEM SERVIDOR NACIONAL       PROT:11010109(8000,00)MEMO.004/2023/FM/DIR                          2023ND000022- CONTRATO: 125/2018",14,PASSAGENS,VOETUR TURISMO E REPRESENTACOES LTDA,null,UNIVERSIDADE DE BRASÍLIA,null,8000.00,estimativo,605
PREST   SERVICOS FUB/FUNDO,159162.60,FISCAL,PR 202/2022 - UNB,2023,10/01/2023,CRÉDITOS DISTRIBUÍDOS PARA AS UNIDADES ACADÊMICAS,null,null,null,FUNCIONAMENTO DE INSTITUICOES FEDERAI - NO DF,23106.038751/2022-30,"C.CUSTO:IFD// AQUISIÇÃO DE MICROCOMPUTADOR// REQ. 7381/2022PROT:11010116(159162,60)// SEI N.23106.150877/2022-81// MEMORANDO 76 (9136353)",12,EQUIPAMENTOS E MATERIAL PERMANENTE,DATEN TECNOLOGIA LTDA,null,UNIVERSIDADE DE BRASÍLIA,null,159162.60,ordinário,605
PREST   SERVICOS FUB/FUNDO,10000.00,FISCAL,PR,2023,10/01/2023,CRÉDITOS DISTRIBUÍDOS PARA AS UNIDADES ACADÊMICAS,null,null,null,FUNCIONAMENTO DE INSTITUICOES FEDERAI - NO DF,23106.000973/2023-61,"C.CUSTO:FED// PASSAGEM INTERNACIONAL// MEMORANDO 1 (9159412)// 2023ND00004 PROT:11010107(10000,00)// SEI N.23106.000973/2023-61",10,PASSAGENS,VOETUR TURISMO E REPRESENTACOES LTDA,null,UNIVERSIDADE DE BRASÍLIA,null,10000.00,estimativo,605
PREST   SERVICOS FUB/FUNDO,1000.00,FISCAL,PR,2023,10/01/2023,CRÉDITOS DISTRIBUÍDOS PARA AS UNIDADES ACADÊMICAS,null,null,null,FUNCIONAMENTO DE INSTITUICOES FEDERAI - NO DF,23106.000973/2023-61,"C.CUSTO:FED// SEGURO VIAGEM// MEMORANDO 1 (9159412)// 2023ND00004 PROT:11010107(1000,00)// SEI N.23106.000973/2023-61",9,SERV. PESSOA JURÍDICA,VOETUR TURISMO E REPRESENTACOES LTDA,null,UNIVERSIDADE DE BRASÍLIA,null,1000.00,estimativo,605
PREST   SERVICOS FUB/FUNDO,4000.00,FISCAL,PR,2023,09/01/2023,CRÉDITOS DISTRIBUÍDOS PARA AS UNIDADES ACADÊMICAS,null,null,null,FUNCIONAMENTO DE INSTITUICOES FEDERAI - NO DF,23106.000681/2023-28,"C. CUSTO: ICH.     PROT:11010118(4000,00)      SEI 23106.000681/2023-28.PASSAGENS NACIONAIS.2023ND000011.       MEMO 1/2023/ICH.",7,PASSAGENS,VOETUR TURISMO E REPRESENTACOES LTDA,null,UNIVERSIDADE DE BRASÍLIA,null,4000.00,estimativo,605
RECEITA DA INDUSTRIA EDITORIA E GRAFICA/FUB.,15535.80,FISCAL,null,2023,30/01/2023,ARRECADACOES DA EDITORA UNB,null,null,null,FUNCIONAMENTO DE INSTITUICOES FEDERAI - NO DF,23106.008829/2023-72,Serviços de Diagramação,4,SERV. PESSOA JURÍDICA,PONTES LIVROS LTDA,null,EDITORA UNIVERSIDADE DE BRASÍLIA,null,15535.80,ordinário,276
RECEITA DA INDUSTRIA EDITORIA E GRAFICA/FUB.,10886.26,FISCAL,null,2023,30/01/2023,ARRECADACOES DA EDITORA UNB,null,null,null,FUNCIONAMENTO DE INSTITUICOES FEDERAI - NO DF,23106.008265/2023-78,Revisão de Texto,3,SERV. PESSOA JURÍDICA,PONTES LIVROS LTDA,null,EDITORA UNIVERSIDADE DE BRASÍLIA,null,10886.26,ordinário,276
RECEITA DA INDUSTRIA EDITORIA E GRAFICA/FUB.,5000.00,FISCAL,null,2023,26/01/2023,ARRECADACOES DA EDITORA UNB,null,null,null,FUNCIONAMENTO DE INSTITUICOES FEDERAI - NO DF,23106.004336/2023-63,Despesas com Energia Elétrica,2,SERV. PESSOA JURÍDICA,CEB DISTRIBUICAO S.A.,null,EDITORA UNIVERSIDADE DE BRASÍLIA,null,5000.00,estimativo,276
RECEITA DA INDUSTRIA EDITORIA E GRAFICA/FUB.,14490.00,FISCAL,null,2023,23/01/2023,ARRECADACOES DA EDITORA UNB,null,null,null,FUNCIONAMENTO DE INSTITUICOES FEDERAI - NO DF,23106.007322/2023-00,CONTRATAÇÃO DE SERVIÇOS GRÁFICOS PARA IMPRESSÃO DE: AGENDA PLANNER 2023,1,SERV. PESSOA JURÍDICA,GRAFICA E EDITORA QUALYTA LTDA - ME,null,EDITORA UNIVERSIDADE DE BRASÍLIA,null,14490.00,ordinário,276
ARRECADACAO CDT,1848.30,FISCAL,null,2022,11/11/2022,TAXA ADMINISTRATIVA DO CDT,null,null,null,FUNCIONAMENTO DE INSTITUICOES FEDERAI - NO DF,23106.091540/2022-25,AQUISIÇÃO DE MATERIAL PERMANENTE CONTROLADORA DE REDE WIFI.,400017,EQUIP. MATERIAL PERMANENTE,HERCOM INFORMATICA EIRELI,null,CENTRO DE APOIO AO DESENVOLVIMENTO TECNOLÓGICO,null,1848.30,ordinário,643
ARRECADACAO CDT,14398.00,FISCAL,null,2022,14/10/2022,PROJETO TOLEDO BIGDATA,null,null,null,FUNCIONAMENTO DE INSTITUICOES FEDERAI - NO DF,23106.112508/2022-91,AQUISIÇÃO DE DUAS UNIDADES DE NOTEBOOK I7 PARA ATENDER AS NECESSIDADES DO PROJETO DE PESQUISA: GEPRO_LINFO_TOLEDO_BIGDATA_2019. SEI: 23106.112508/2022-91,400015,EQUIP. MATERIAL PERMANENTE,MAGAZINE DA INFORMÁTICA COMÉRCIO E SERVIÇOS LTDA,null,CENTRO DE APOIO AO DESENVOLVIMENTO TECNOLÓGICO,null,14398.00,ordinário,643
ARRECADACAO CDT,1395.00,FISCAL,null,2022,25/07/2022,PROJETO TOLEDO BIGDATA,null,null,null,FUNCIONAMENTO DE INSTITUICOES FEDERAI - NO DF,23106.075472/2022-57,5 unidades de SSD 240GB,400011,MAT. CONSUMO,CEL TECNOLOGIA E INFORMATICA LTDA,null,CENTRO DE APOIO AO DESENVOLVIMENTO TECNOLÓGICO,null,1395.00,ordinário,643
ARRECADACAO CDT,19900.00,FISCAL,null,2022,14/06/2022,PROJETO TOLEDO BIGDATA,null,null,null,FUNCIONAMENTO DE INSTITUICOES FEDERAI - NO DF,23106.007847/2022-56,"AQUISIÇÃO DE MATERIAL PERMANENTE, NOBREAK 10KVA. NITCDT. 23106.007847/2022-56",400009,EQUIP. MATERIAL PERMANENTE,MGX SERVICE COMERCIO E SERVICOS LTDA,null,CENTRO DE APOIO AO DESENVOLVIMENTO TECNOLÓGICO,null,19900.00,ordinário,643
RECURSOS DIRETAM.ARREC FUNDAÇÃO UNIV.BRASÍLIA,3096.00,FISCAL,null,2022,28/04/2022,TAXA ADMINISTRATIVA DO CDT,null,null,null,FUNCIONAMENTO DE INSTITUICOES FEDERAI - NO DF,23106.038356/2022-57,"AQUISIÇÃO DE MATERIAIS PERMANENTES (EQUIPAMENTOS DE COPA) PARA ATENDER AS NECESSIDADESDO DPI/NITCDT. SEI: 23106.038356/2022-57",400008,EQUIP. MATERIAL PERMANENTE,SUPER LICITE LICITACOES LTDA,null,CENTRO DE APOIO AO DESENVOLVIMENTO TECNOLÓGICO,null,3096.00,ordinário,643
RECURSOS DIRETAM.ARREC FUNDAÇÃO UNIV.BRASÍLIA,688.00,FISCAL,null,2022,28/04/2022,TAXA ADMINISTRATIVA DO CDT,null,null,null,FUNCIONAMENTO DE INSTITUICOES FEDERAI - NO DF,23106.038356/2022-57,"AQUISIÇÃO DE MATERIAIS DE CONSUMO (PEÇAS DE COMPUTADOR) PARA ATENDER AS NECESSIDADESDO DPI/NICDT. SEI: 23106.038356/2022-57",400007,MAT. CONSUMO,SUPER LICITE LICITACOES LTDA,null,CENTRO DE APOIO AO DESENVOLVIMENTO TECNOLÓGICO,null,688.00,ordinário,643
PRÓPRIOS -  PREST.SERVICOS FUB/FUNDO,1700.00,FISCAL,PR 306/2021 - UNB,2022,11/10/2022,CRÉDITOS DISTRIBUÍDOS PARA AS UNIDADES ACADÊMICAS,null,null,null,FUNCIONAMENTO DE INSTITUICOES FEDERAI - NO DF,23106.119449/2022-81,"C. CUSTO: FAV.        PROT:11010105{SM6025/2022(1700,00)}        SEI 23106.119449/2022-81.AQUISIÇÃO DE ROÇADEIRA MANUAL.2022ND001863.      MEMO 002/2022/FAV.",25530,EQUIP. MATERIAL PERMANENTE,"MCA ASSESSORIA, IMPORTACAO E COMERCIO LTDA",null,UNIVERSIDADE DE BRASÍLIA,null,1700.00,ordinário,605
PRÓPRIOS -  PREST.SERVICOS FUB/FUNDO,5378.00,FISCAL,DL 9965/2022 - UNB,2022,31/12/2022,CRÉDITOS DISTRIBUÍDOS PARA AS UNIDADES ACADÊMICAS,null,null,null,FUNCIONAMENTO DE INSTITUICOES FEDERAI - NO DF,23106.099657/2022-57,"PAGAMENTO DE MATERIAL PERMANENTE PROT:11010110(5378,00)MOBILIÁRIO EM GERAL - CADEIRA ESCRITÓRIO - MATERIAL ESTRUTURA AÇOMEMO.01/2022/FS / NUT 2022ND007442 - DISPENSA: 09965/2022",3820,EQUIP. MATERIAL PERMANENTE,DIEGO KAVABATA ALMEIDA BARROS,null,UNIVERSIDADE DE BRASÍLIA,null,5378.00,ordinário,605
TED SIMEC 8323 - PROAP,11231.99,FISCAL,IN 20034/2022 - UNB,2022,30/12/2022,CAPES,null,null,null,TED SIMEC 8323 - PROAP,23106.106346/2022-68,"C.CUSTO:FCE// CONTRATAÇÃO DE EMPRESA PARA MANUTENÇÃO CORRENTIVA EM EQUIPAMENTO//2022ND007437//SEI N. 23106.106346/2022-51// INEXIG: 20034/2022",3816,SERV. PESSOA JURÍDICA,GE HEALTHCARE DO BRASIL COMERCIO E SERVICOS PARA EQUIPAMENTOS MÉDICO-HOSPITALARES LTDA,null,UNIVERSIDADE DE BRASÍLIA,null,11231.99,global,605
PRÓPRIOS -  PREST.SERVICOS FUB/FUNDO,126989.02,FISCAL,IN 20034/2022 - UNB,2022,30/12/2022,CRÉDITOS DISTRIBUÍDOS PARA AS UNIDADES ACADÊMICAS,null,null,null,FUNCIONAMENTO DE INSTITUICOES FEDERAI - NO DF,23106.106346/2022-68,"C.CUSTO:FCE// CONTRATAÇÃO DE EMPRESA PARA MANUTENÇÃO CORRENTIVA EM EQUIPAMENTO//PROT:110131(126989,02)// 2022ND007366//SEI N. 23106.106346/2022-51// INEXIG: 20034/2022",3796,MAT. CONSUMO,GE HEALTHCARE DO BRASIL COMERCIO E SERVICOS PARA EQUIPAMENTOS MÉDICO-HOSPITALARES LTDA,null,UNIVERSIDADE DE BRASÍLIA,null,126989.02,global,605
RECURSOS DIRETAM.ARREC FUNDAÇÃO UNIV.BRASÍLIA,133500.00,FISCAL,PR 52/2022 - UNB,2022,30/12/2022,FUNCIONAMENTO GERAL,null,null,null,FUNCIONAMENTO DE INSTITUICOES FEDERAI - NO DF,23106.091447/2022-11,"C. CUSTO: PRC. PROT:110105{SM7376/2022(133500,00)} SEI 23106.130165/2022-46.AQUISIÇÃO DE CARTEIRA UNIVERSITÁRIA.2022ND007251. DESPACHO PRC 9145877.",3786,EQUIP. MATERIAL PERMANENTE,ROAL INDUSTRIA METALURGICA LTDA,null,UNIVERSIDADE DE BRASÍLIA,null,133500.00,global,605
PRÓPRIOS -  PREST.SERVICOS FUB/FUNDO,31900.00,FISCAL,IN 20038/2022 - UNB,2022,30/12/2022,CRÉDITOS DISTRIBUÍDOS PARA AS UNIDADES ACADÊMICAS,null,null,null,FUNCIONAMENTO DE INSTITUICOES FEDERAI - NO DF,23106.120629/2022-02,"C. CUSTO: IQD SEI:23106.120629/2022-14ATT: LEONARDO GIORDANO PATERNO 2022ND0007268MEMO.S.N/2022/IQ/DFQ PROT:11010122(31900,00)MATERIAL DE CONSUMO - PEDIDO:0000/2022 -INEX:20038/2022MATERIAL ELÉTRICO ELETRÔNICO - PLACA ELETRÔNICA - APLICAÇÃO ANALISADOR TERMOGRAVIM",3784,MAT. CONSUMO,WATERS TECHNOLOGIES DO BRASIL LTDA.,null,UNIVERSIDADE DE BRASÍLIA,null,31900.00,global,605
PRÓPRIOS -  PREST.SERVICOS FUB/FUNDO,7750.00,FISCAL,IN 20038/2022 - UNB,2022,30/12/2022,CRÉDITOS DISTRIBUÍDOS PARA AS UNIDADES ACADÊMICAS,null,null,null,FUNCIONAMENTO DE INSTITUICOES FEDERAI - NO DF,23106.120629/2022-02,"C. CUSTO: IQD SEI:23106.120629/2022-14ATT: LEONARDO GIORDANO PATERNO 2022ND0007268MEMO.S.N/2022/IQ/DFQ PROT:11010122(7750,00)SERVIÇOS DE TERCEIROS - PEDIDO:0000/2022 - INEX:20038/2022MANUT.E CONSERV. DE BENS MÓVEIS DE OUTRAS NATUREZAS - ANALISADOR DINÂMICO MECÂNICO",3783,SERV. PESSOA JURÍDICA,WATERS TECHNOLOGIES DO BRASIL LTDA.,null,UNIVERSIDADE DE BRASÍLIA,null,7750.00,global,605
RECURSOS DIRETAM.ARREC FUNDAÇÃO UNIV.BRASÍLIA,12000.00,FISCAL,PR 16/2022 - FUFSE,2022,30/12/2022,FUNCIONAMENTO GERAL,null,null,null,FUNCIONAMENTO DE INSTITUICOES FEDERAI - NO DF,23106.139987/2022-92,"C.CUSTO:CEAD// AQUISIÇÃO DE DOIS TERMINAIS DE VIDEOCONFERENCIA// PREG. 16/2022(UFSE-154050)PROT:110124(12000,00)// SEI N. 23106.139987/2022-92",3782,EQUIP. MATERIAL PERMANENTE,BF TECNOLOGIA LTDA,null,UNIVERSIDADE DE BRASÍLIA,null,12000.00,global,605
RECURSOS DIRETAM.ARREC FUNDAÇÃO UNIV.BRASÍLIA,30079.00,FISCAL,PR 202/2022 - UNB,2022,30/12/2022,FUNCIONAMENTO GERAL,null,null,null,FUNCIONAMENTO DE INSTITUICOES FEDERAI - NO DF,23106.060771/2022-97,"C. CUSTO: FGA SEI 23106.060771/2022-97ATT: LEANDRO DE MOURA 2022ND007373MEMO.S.N/2022/FGA/ADM/COMPRAS PROT:110132{SM7375/2022(30079,00)}MATERIAL DE PERMANENTE - PEDIDO:7375/2022 - PREG:202/2022EQUIPAMENTOS TIC - MICROCOMPUTADOR TIPO PADRÃO",3781,EQUIP. MATERIAL PERMANENTE,DATEN TECNOLOGIA LTDA,null,UNIVERSIDADE DE BRASÍLIA,null,30079.00,global,605
RECURSOS DIRETAM.ARREC FUNDAÇÃO UNIV.BRASÍLIA,19466.70,FISCAL,PR 202/2022 - UNB,2022,30/12/2022,FUNCIONAMENTO GERAL,null,null,null,FUNCIONAMENTO DE INSTITUICOES FEDERAI - NO DF,23106.060771/2022-97,"C. CUSTO: FGA SEI 23106.060771/2022-97ATT: LEANDRO DE MOURA 2022ND007373MEMO.S.N/2022/FGA/ADM/COMPRAS PROT:110132{SM7374/2022(19466,70)}MATERIAL DE PERMANENTE - PEDIDO:7374/2022 - PREG:202/2022EQUIPAMENTOS TIC - MICROCOMPUTADOR TIPO AVANÇADO",3780,EQUIP. MATERIAL PERMANENTE,DATEN TECNOLOGIA LTDA,null,UNIVERSIDADE DE BRASÍLIA,null,19466.70,global,605
PRÓPRIOS -  PREST.SERVICOS FUB/FUNDO,23629.90,FISCAL,PR 202/2022 - UNB,2022,30/12/2022,CRÉDITOS DISTRIBUÍDOS PARA AS UNIDADES ACADÊMICAS,null,null,null,FUNCIONAMENTO DE INSTITUICOES FEDERAI - NO DF,23106.142098/2022-11,"C.CUSTO:IE// AQUISIÇÃO DE MICROCOMPUTADOR TIPO PADRAO// REQ. 7096/2022PROT:11010115(23629,90)//2022ND007384//",3778,EQUIP. MATERIAL PERMANENTE,DATEN TECNOLOGIA LTDA,null,UNIVERSIDADE DE BRASÍLIA,null,23629.90,global,605
PRÓPRIOS -  PREST.SERVICOS FUB/FUNDO,20600.00,FISCAL,PR 52/2022 - UNB,2022,29/12/2022,CRÉDITOS DISTRIBUÍDOS PARA AS UNIDADES ACADÊMICAS,null,null,null,FUNCIONAMENTO DE INSTITUICOES FEDERAI - NO DF,23106.091447/2022-11,"C. CUSTO: IFD SEI:23106.150918/2022-30ATT: MARCELLO FERREIRA 2022ND007343MEMO.079/2022/IF/DIREÇÃO PROT:11010116{SM7379/2022(20600,00)}MATERIAL DE PERMANENTE - PEDIDO:7379/2022 - PREG:52/2022MOBILIÁRIO EM GERAL - CADEIRA ESCRITÓRIO - MATERIAL ESTRUTURA TUBO AÇ",3774,EQUIP. MATERIAL PERMANENTE,ROAL INDUSTRIA METALURGICA LTDA,null,UNIVERSIDADE DE BRASÍLIA,null,20600.00,global,605
TAXA DE ALUNO ESPECIAL -FUB,9460.00,FISCAL,PR 52/2022 - UNB,2022,29/12/2022,PROG POS-GRAD CIEN E TECNOL EM SAUDE PPGCTS,null,null,null,FUNCIONAMENTO DE INSTITUICOES FEDERAI - NO DF,23106.150559/2022-11,"C. CUSTO: FCE SEI:23106.150559/2022-11ATT: JOAO PAULO CHIEREGATO 2022ND007339MEMO.013/2022/FCE/LICICON PROT:110131{SM7454/2022(9460,00)}MATERIAL DE PERMANENTE - PEDIDO:7454/2022 - PREG:52/2022MOBILIÁRIO EM GERAL - CADEIRA ESCRITÓRIO - MATERIAL ESTRUTURA TUBO AÇ",3771,EQUIP. MATERIAL PERMANENTE,SIG COMERCIAL EIRELI,null,UNIVERSIDADE DE BRASÍLIA,null,9460.00,global,605
RECURSOS DIR.ARRECADADOS(PROPRIOS)-FUB -,7800.00,FISCAL,PR 38/2022 - UNB,2022,29/12/2022,ARRECADACOES DA FAL - HORTIFRUTIGRANJEIRO,null,null,null,FUNCIONAMENTO DE INSTITUICOES FEDERAI - NO DF,23106.053722/2022-06,"C. CUSTO: FAL              SEI:23106.151223/2022-75ATT: REGINALDO SERGIO PEREIRAI    2022ND007301MEMO.134/2022/FAL          PROT:110116{SM7397/2022(7800,00)}MATERIAL DE CONSUMO - PEDIDO:7397/2022 - PREG:038/2022  SEMENTES - MUDAS E PLANTAS - INSUMOS - FERTILIZANTE UREIA",3767,MAT. CONSUMO,AGROBELIA - INSUMOS AGRICOLAS LTA,null,UNIVERSIDADE DE BRASÍLIA,null,7800.00,ordinário,605
RECURSOS DIRETAM.ARREC FUNDAÇÃO UNIV.BRASÍLIA,194000.00,FISCAL,PR 305/2022 - UNB,2022,29/12/2022,FUNCIONAMENTO GERAL,null,null,null,FUNCIONAMENTO DE INSTITUICOES FEDERAI - NO DF,23106.094992/2016-11,"C.CUSTO : PRC                    S.E.I Nº : 23106.094992/2016-11MEMO.S.N/2022/PRC/DIRAE/COOL     2022ND007331 - PREG:305/2022ATT - TIAGO OLIMPIO FERREIRA -   PROT:110105(194000,00) SERV.DE TERCEIROS - SERVIÇOS TÉCNICOS PROFISSIONAISSERV. DE DESMONTAGEM DE EQUIP. REMOÇÃO DE TANQUES DE COMBUSTÍVEIS SUBTERRÂNEOS",3766,SERV. PESSOA JURÍDICA,J. R. SERVICOS DE ENGENHARIA LTDA,null,UNIVERSIDADE DE BRASÍLIA,null,194000.00,global,605
RECURSOS DIR.ARRECADADOS(PROPRIOS)-FUB -,4250.00,FISCAL,PR 202/2022 - UNB,2022,29/12/2022,ARRECADACOES DA FAL - HORTIFRUTIGRANJEIRO,null,null,null,FUNCIONAMENTO DE INSTITUICOES FEDERAI - NO DF,23106.038751/2022-30,"C. CUSTO: FAL.       PROT:110116{SM7396/2022(4250,00)}        SEI 23106.151204/2022-49.AQUISIÇÃO DE NOTEBOOK.2022ND007300.      MEMO 133/2022/FAL.",3765,EQUIPAMENTOS E MATERIAL PERMANENTE,DATEN TECNOLOGIA LTDA,null,UNIVERSIDADE DE BRASÍLIA,null,4250.00,ordinário,605
RECURSOS ORDINÁRIOS,603.71,FISCAL,PR,2022,29/12/2022,EMENDAS PARLAMENTARES,null,null,null,REESTRUTURAÇÃO E MODERNIZAÇÃO DAS INSTITUIÇÕES - EMENDA,23106.026013/2022-40,"C. CUSTO DAC PROT:110109(603,71)EMENDA DE BANCADA Nº 71080011 (PARCELA À ASSISTÊNCIAESTUDANTIL). CRÉDITO PARA MANUTENÇÃO DO PRÉDIO DAPÓS-GRADUAÇÃO. CONTRATO 1223/2022 23106.026013/2022-40",3763,TRANF.PJ,CONSTRUTORA ENGEMEGA LTDA,null,UNIVERSIDADE DE BRASÍLIA,null,603.71,global,605
PRÓPRIOS -  PREST.SERVICOS FUB/FUNDO,2007.70,FISCAL,PR 28/2022 - UNB,2022,29/12/2022,CRÉDITOS DISTRIBUÍDOS PARA AS UNIDADES ACADÊMICAS,null,null,null,FUNCIONAMENTO DE INSTITUICOES FEDERAI - NO DF,23106.054309/2021-70,"C. CUSTO: IBD              SEI:23106.140047/2022-46ATT: FELIPE MALHEIROS GAWRYSZEWSKI    2022ND007298MEMO.S.N/2022/IBD/ZOO      PROT:11010112{SM6932/2022(2007,70)}MATERIAL DE PERMANENTE - PEDIDO:6932/2022 - PREG:028/2022  APA.UTENS.DOMÉSTICO - PURIFICADORES DE ÁGUA REFRIGERADO",3760,EQUIP. MATERIAL PERMANENTE,BSB CAPITAL SOLUCOES LTDA,null,UNIVERSIDADE DE BRASÍLIA,null,2007.70,ordinário,605
PRÓPRIOS -  PREST.SERVICOS FUB/FUNDO,5750.00,FISCAL,PR 52/2022 - UNB,2022,29/12/2022,CRÉDITOS DISTRIBUÍDOS PARA AS UNIDADES ADMINISTRATIVAS,null,null,null,FUNCIONAMENTO DE INSTITUICOES FEDERAI - NO DF,23106.091447/2022-11,"C.CUSTO:CET//  POLTRONA GIRATORIA DIRETOR// MEMO N.48/2022/CET//PROT:110118(5750,00)// SEI N.23106.150276/2022-79// 2022ND007284",3759,EQUIP. MATERIAL PERMANENTE,ROAL INDUSTRIA METALURGICA LTDA,null,UNIVERSIDADE DE BRASÍLIA,null,5750.00,ordinário,605
PRÓPRIOS -  PREST.SERVICOS FUB/FUNDO,1629.96,FISCAL,PR 7/2022 - UNB,2022,29/12/2022,CRÉDITOS DISTRIBUÍDOS PARA AS UNIDADES ADMINISTRATIVAS,null,null,null,FUNCIONAMENTO DE INSTITUICOES FEDERAI - NO DF,23106.054297/2021-83,"C. CUSTO: PRC                         SEI:23106.138816/2022-46ATT: DANIELLE SILVA COELHO            2022ND007292MEMO.20/2022/PRC/DIMAT/COEA           PROT:110105{SM6431/2022(1629,96)}MATERIAL DE PERMANENTE - PEDIDO:6431/2022 -   PREG:07/2022  APA.UTENS.DOMÉSTICO - ESCADA - MATERIAL ALUMÍNIO - TIPO ARTICULADA",3754,EQUIP. MATERIAL PERMANENTE,ARGOS LTDA,null,UNIVERSIDADE DE BRASÍLIA,null,1629.96,ordinário,605
RECURSOS DIRETAM.ARREC-FUNDAÇÃO UNIVERSIDADE,38000.00,FISCAL,IN 21008/2022 - UNB,2022,29/12/2022,FUNCIONAMENTO GERAL,null,null,null,FUNCIONAMENTO DE INSTITUICOES FEDERAI - NO DF,23106.024271/2022-91,"C.CUSTO:CPD// CONTRATAÇÃO DE SERVIÇO ESPECIALIZADO EM TI PARA UTLIZAÇÃO DE CERTIFICAÇÃO DIGITAL SDK// SEI N.23106.024271/2022-91//PROT:110114(38000,00)//2022ND007242//",3747,SERVIÇOS TIC,E.SEC TECNOLOGIA EM SEGURANCA DE DADOS LTDA - EPP,null,UNIVERSIDADE DE BRASÍLIA,null,38000.00,global,605
PRÓPRIOS -  PREST.SERVICOS FUB/FUNDO,4250.00,FISCAL,PR 202/2022 - UNB,2022,29/12/2022,CRÉDITOS DISTRIBUÍDOS PARA AS UNIDADES ADMINISTRATIVAS,null,null,null,FUNCIONAMENTO DE INSTITUICOES FEDERAI - NO DF,23106.038751/2022-30,"C. CUSTO: DPO.      PROT:110135{SM7259/2022(4250,00)}       SEI 23106.148441/2022-22. AQUISIÇÃO DE NOTEBOOK.2022ND007249.    MEMO 249/2022/DPO/SEC.",3746,EQUIPAMENTOS E MATERIAL PERMANENTE,DATEN TECNOLOGIA LTDA,null,UNIVERSIDADE DE BRASÍLIA,null,4250.00,ordinário,605
PRÓPRIOS -  PREST.SERVICOS FUB/FUNDO,4297.00,FISCAL,PR 202/2022 - UNB,2022,29/12/2022,CRÉDITOS DISTRIBUÍDOS PARA AS UNIDADES ADMINISTRATIVAS,null,null,null,FUNCIONAMENTO DE INSTITUICOES FEDERAI - NO DF,23106.038751/2022-30,"C. CUSTO: DPO.      PROT:110135{SM7279/2022(4297,00)}       SEI 23106.148435/2022-75.AQUISIÇÃO DE MICROCOMPUTADOR.2022ND007248.    MEMO 248/2022/DPO/SEC.",3745,EQUIPAMENTOS E MATERIAL PERMANENTE,DATEN TECNOLOGIA LTDA,null,UNIVERSIDADE DE BRASÍLIA,null,4297.00,ordinário,605
PRÓPRIOS -  PREST.SERVICOS FUB/FUNDO,505.00,FISCAL,PR 28/2022 - UNB,2022,29/12/2022,CRÉDITOS DISTRIBUÍDOS PARA AS UNIDADES ADMINISTRATIVAS,null,null,null,FUNCIONAMENTO DE INSTITUICOES FEDERAI - NO DF,23106.054309/2021-70,"C.CUSTO:CERRADO// AQUISIÇÃO DE CONJUNTO DE LIXEIRA EXTERNA// REQ. 7250/2022// PREG. 28/2022PROT:110136(505,00)// 2022ND007179// SEI N.23106.145222/2022-91",3744,MAT. CONSUMO,GERBRA COMERCIO EIRELI,null,UNIVERSIDADE DE BRASÍLIA,null,505.00,ordinário,605
PRÓPRIOS -  PREST.SERVICOS FUB/FUNDO,2048.74,FISCAL,PR 7/2022 - UNB,2022,29/12/2022,CRÉDITOS DISTRIBUÍDOS PARA AS UNIDADES ADMINISTRATIVAS,null,null,null,FUNCIONAMENTO DE INSTITUICOES FEDERAI - NO DF,23106.054297/2021-83,"C.CUSTO:CERRADO// AQUISIÇÃO DE CAFETEIRA ELETRICA// REQ. 7252/2022// PREG. 07/2022PROT:110136(2048,74)// 2022ND007181",3743,EQUIP. MATERIAL PERMANENTE,SIS COMERCIO DE MATERIAIS E EQUIPAMENTOS LTDA,null,UNIVERSIDADE DE BRASÍLIA,null,2048.74,ordinário,605
PRÓPRIOS -  PREST.SERVICOS FUB/FUNDO,39499.50,FISCAL,PR 52/2022 - UNB,2022,29/12/2022,CRÉDITOS DISTRIBUÍDOS PARA AS UNIDADES ACADÊMICAS,null,null,null,FUNCIONAMENTO DE INSTITUICOES FEDERAI - NO DF,23106.091447/2022-11,"C.CUSTO:ICS// AQUISIÇÃO DE CADEIRA GIRATORIA, ESPALDAR// REQ. 7308/2022// PREG. 52/2022PROT:11010113(39499,50)// 2022ND007173",3742,EQUIP. MATERIAL PERMANENTE,SIG COMERCIAL EIRELI,null,UNIVERSIDADE DE BRASÍLIA,null,39499.50,ordinário,605
PRÓPRIOS -  PREST.SERVICOS FUB/FUNDO,4250.00,FISCAL,PR 202/2022 - UNB,2022,29/12/2022,CRÉDITOS DISTRIBUÍDOS PARA AS UNIDADES ADMINISTRATIVAS,null,null,null,FUNCIONAMENTO DE INSTITUICOES FEDERAI - NO DF,23106.038751/2022-30,"C.CUSTO:DAC//  NOTEBOOK TIPO PADRAO// SEI N.23106.149856/2022-13PROT:110109(4250,00)// REQ. 7094/2022// PR 202/2022",3741,EQUIPAMENTOS E MATERIAL PERMANENTE,DATEN TECNOLOGIA LTDA,null,UNIVERSIDADE DE BRASÍLIA,null,4250.00,ordinário,605
PRÓPRIOS -  PREST.SERVICOS FUB/FUNDO,42970.00,FISCAL,PR 202/2022 - UNB,2022,29/12/2022,CRÉDITOS DISTRIBUÍDOS PARA AS UNIDADES ACADÊMICAS,null,null,null,FUNCIONAMENTO DE INSTITUICOES FEDERAI - NO DF,23106.038751/2022-30,"C.CUSTO:IQD// AQUISIÇÃO DE MICROCOMPUTADOR TIPO PADRAO// REQ. 7334/2022PROT:11010122(42970,00)// PREG. 202/2022// SEI N. 23106.144737/2022-74",3740,EQUIPAMENTOS E MATERIAL PERMANENTE,DATEN TECNOLOGIA LTDA,null,UNIVERSIDADE DE BRASÍLIA,null,42970.00,ordinário,605
TAXA DE ALUNO ESPECIAL -FUB,4250.00,FISCAL,PR 202/2022 - UNB,2022,29/12/2022,PROGRAMA DE PÓS-GRADUAÇÃO EM POL.PÚB P/INFÂNCIA E JUVENTUDE,null,null,null,FUNCIONAMENTO DE INSTITUICOES FEDERAI - NO DF,23106.038751/2022-30,"C.CUSTO:CEAM// NOTEBOOK TIPO PADRAO// REQ. 7369/2022// PR. 202/2022PROT:110125(4250,00)// 2022ND007164// SEI N.23106.150752/2022-51",3739,EQUIPAMENTOS E MATERIAL PERMANENTE,DATEN TECNOLOGIA LTDA,null,UNIVERSIDADE DE BRASÍLIA,null,4250.00,ordinário,605
PRÓPRIOS -  PREST.SERVICOS FUB/FUNDO,12891.00,FISCAL,PR 202/2022 - UNB,2022,29/12/2022,CRÉDITOS DISTRIBUÍDOS PARA AS UNIDADES ADMINISTRATIVAS,null,null,null,FUNCIONAMENTO DE INSTITUICOES FEDERAI - NO DF,23106.038751/2022-30,"C.CUSTO:SAA// MICROCOMPUTADOR TIPO PADRAO// REQ. 6835/2022// PR 202/2022PROT:11010101(12891,00)// 2022ND007161// SEI N.23106.150961/2022-03",3738,EQUIPAMENTOS E MATERIAL PERMANENTE,DATEN TECNOLOGIA LTDA,null,UNIVERSIDADE DE BRASÍLIA,null,12891.00,ordinário,605
PRÓPRIOS -  PREST.SERVICOS FUB/FUNDO,3495.00,FISCAL,PR 28/2022 - UNB,2022,29/12/2022,CRÉDITOS DISTRIBUÍDOS PARA AS UNIDADES ACADÊMICAS,null,null,null,FUNCIONAMENTO DE INSTITUICOES FEDERAI - NO DF,23106.054309/2021-70,"C.CUSTO:IBD//AQUISIÇÃO DE NOBREAKS PARA EQUIPAMENTOS LABORATORIAIS// MEMO N. 01/2022/IB/GEMPROT:11010112(3495,00)// REQ. 6924/2022// PREG. 28/2022// SEI N. 23106.133526/2022-14",3736,EQUIP. MATERIAL PERMANENTE,VENGOV PRODUTOS E SERVICOS LTDA,null,UNIVERSIDADE DE BRASÍLIA,null,3495.00,ordinário,605
RECURSOS DIRETAM.ARREC FUNDAÇÃO UNIV.BRASÍLIA,70000.00,FISCAL,PR,2022,29/12/2022,SERVIÇO IMPRESSÃO CORPORATIVA - UNIDADES. EMPRESA SIMPRESS.,null,null,null,FUNCIONAMENTO DE INSTITUICOES FEDERAI - NO DF,23106.151130/2022-41,"C.CUSTO: CPD//SERVIÇO DE IMPRESSÕES//CONTRATO N.512/20162022ND007229// PROT:11011404(70000,00) SEI N 23106.151130/2022-41",3731,SERV. PESSOA JURÍDICA,"SIMPRESS COMERCIO, LOCACAO E SERVICOS S/A",null,UNIVERSIDADE DE BRASÍLIA,null,70000.00,global,605
RECURSOS DIRETAM.ARREC FUNDAÇÃO UNIV.BRASÍLIA,5926.64,FISCAL,PR,2022,29/12/2022,SERVICOS DE SALVA VIDAS E TRATADOR DE PISCINA,null,null,null,FUNCIONAMENTO DE INSTITUICOES FEDERAI - NO DF,23106.151130/2022-41,"C. CUSTO: DTER. PROT:11011007(5926,64) SEI 23106.151130/2022-41. SERVIÇOS DE TRATADOR DE PISCINA. CONTRATO 93/2020. 2022ND007228.",3730,SERV. PESSOA JURÍDICA,AP PISCINAS EIRELI,null,UNIVERSIDADE DE BRASÍLIA,null,5926.64,global,605
RECURSOS DIRETAM.ARREC FUNDAÇÃO UNIV.BRASÍLIA,123327.42,FISCAL,PR,2022,29/12/2022,RECEPCIONISTA,null,null,null,FUNCIONAMENTO DE INSTITUICOES FEDERAI - NO DF,23106.151130/2022-41,"C.CUSTO : DTER S.E.I 23106.151130/2022-41 MEMO.062/2022/DPO/DOR 2022ND007219 - CONTRATO Nº032/2019PROT:11011007(123327,42) PRESTAÇÃO DE SERVIÇOS DE APOIO ADMINISTRATIVO - RECEPCIONISTA - PROG.FINANCEIRA DA FUB 2022",3728,LOC. MÃO-DE-OBRA,GRIFFO SERVIÇOS GERAIS LTDA,null,UNIVERSIDADE DE BRASÍLIA,null,123327.42,global,605
RECURSOS DIRETAM.ARREC FUNDAÇÃO UNIV.BRASÍLIA,193618.30,FISCAL,PR,2022,29/12/2022,CONTÍNUO,null,null,null,FUNCIONAMENTO DE INSTITUICOES FEDERAI - NO DF,23106.151130/2022-41,".CUSTO : DTER S.E.I: 23106.151130/2022-41 MEMO.062/2022/DPO/DOR 2022ND007215 - CONTRATO Nº006/2021PROT:11011007(193618,30) PRESTAÇÃO DE SERVIÇOS DE APOIO ADMINISTRATIVO - APOIO ADM. TEC. E OPE. - PROG.FINANCEIRA DA FUB 2022",3727,LOC. MÃO-DE-OBRA,T & S ENGENHARIA TELEMATICA E SISTEMAS LTDA,null,UNIVERSIDADE DE BRASÍLIA,null,193618.30,global,605
RECURSOS DIRETAM.ARREC FUNDAÇÃO UNIV.BRASÍLIA,1627352.63,FISCAL,PR 1/2021 - UNB,2022,29/12/2022,ALIMENTACAO,null,null,null,FUNCIONAMENTO DE INSTITUICOES FEDERAI - NO DF,23106.151130/2022-41,"C. CUSTO DAC CONT: 31/2021 PR 01/2021DESPESAS DE FUNCIONAMENTO E MANUTENÇÃO DA UNB.RESTAURANTE UNIVERSITÁRIO - ISM EIRELISEI: 23106.151130/2022-41 2022ND007227",3726,SERV. PESSOA JURÍDICA,ISM GOMES DE MATTOS EIRELI,null,UNIVERSIDADE DE BRASÍLIA,null,1627352.63,global,605
PRÓPRIOS -  PREST.SERVICOS FUB/FUNDO,342.00,FISCAL,PR 201/2022 - UNB,2022,28/12/2022,CRÉDITOS DISTRIBUÍDOS PARA AS UNIDADES ADMINISTRATIVAS,null,null,null,FUNCIONAMENTO DE INSTITUICOES FEDERAI - NO DF,23106.074895/2020-98,"C. CUSTO:  SPI                      SEI:23106.097839/2022-93ATT:  DIONEY MAGALHAES BRITO        2022ND007188MEMO.S.N/2022/SPI                   PROT:110147{SM5825/2022(342,00)}MATERIAL DE CONSUMO - PEDIDO:5825/2022 - PREG: 201/2022MAT. TIC - MAT. DE CONSUMO - FONE OUVIDO - TIPO HEADSET - POTÊNCIA 100",3725,MAT. CONSUMO,RF PRODUCOES ARTISTICAS LTDA,null,UNIVERSIDADE DE BRASÍLIA,null,342.00,ordinário,605
PRÓPRIOS -  PREST.SERVICOS FUB/FUNDO,228.00,FISCAL,PR 201/2022 - UNB,2022,28/12/2022,CRÉDITOS DISTRIBUÍDOS PARA AS UNIDADES ADMINISTRATIVAS,null,null,null,FUNCIONAMENTO DE INSTITUICOES FEDERAI - NO DF,23106.074895/2020-98,"C. CUSTO:  SPI                      SEI:23106.097839/2022-93ATT:  DIONEY MAGALHAES BRITO        2022ND007188MEMO.S.N/2022/SPI                   PROT:110147{SM5823/2022(228,00)}MATERIAL DE CONSUMO - PEDIDO:5823/2022 - PREG: 201/2022MAT. TIC - MAT. DE CONSUMO - FONE OUVIDO - TIPO HEADSET - POTÊNCIA 100",3724,MAT. CONSUMO,RF PRODUCOES ARTISTICAS LTDA,null,UNIVERSIDADE DE BRASÍLIA,null,228.00,ordinário,605
PRÓPRIOS -  PREST.SERVICOS FUB/FUNDO,685.00,FISCAL,PR 201/2022 - UNB,2022,28/12/2022,CRÉDITOS DISTRIBUÍDOS PARA AS UNIDADES ADMINISTRATIVAS,null,null,null,FUNCIONAMENTO DE INSTITUICOES FEDERAI - NO DF,23106.074895/2020-98,"C. CUSTO:  SPI                      SEI:23106.097839/2022-93ATT:  DIONEY MAGALHAES BRITO        2022ND007188MEMO.S.N/2022/SPI                   PROT:110147{SM5822/2022(685,00)}MATERIAL DE CONSUMO - PEDIDO:5822/2022 - PREG: 201/2022MAT. TIC - MAT. DE CONSUMO - CÂMERA VIDEOCONFERÊNCIA - RESOLUÇÃO 1080",3723,MAT. CONSUMO,MAXICOMP COMERCIO DE PRODUTOS DE INFORMATICA EIRELI,null,UNIVERSIDADE DE BRASÍLIA,null,685.00,ordinário,605
RECURSOS DIR.ARRECADADOS(PROPRIOS)-FUB -,14193.00,FISCAL,PR 7/2022 - UNB,2022,28/12/2022,DESPESAS COM MANUTENCAO DE APT DE TRâNSITO,null,null,null,FUNCIONAMENTO DE INSTITUICOES FEDERAI - NO DF,23106.054297/2021-83,"C. CUSTO:  SPI                      SEI:23106.097839/2022-93ATT:  DIONEY MAGALHAES BRITO        2022ND007184MEMO.S.N/2022/SPI                   PROT:110147{SM5820/2022(14193,00)}MATERIAL PERMANENTE - PEDIDO:5820/2022 - PREG: 007/2022APA.E UTENS.DOMÉSTICOS - MÁQUINA LAVAR ROUPA - CAPACIDADE 12 KG",3722,EQUIP. MATERIAL PERMANENTE,MAYAS COMERCIAL DE PRODUTOS E SERVICOS EIRELI,null,UNIVERSIDADE DE BRASÍLIA,null,14193.00,ordinário,605
PRÓPRIOS -  PREST.SERVICOS FUB/FUNDO,2842.48,FISCAL,PR 7/2022 - UNB,2022,28/12/2022,CRÉDITOS DISTRIBUÍDOS PARA AS UNIDADES ADMINISTRATIVAS,null,null,null,FUNCIONAMENTO DE INSTITUICOES FEDERAI - NO DF,23106.054297/2021-83,"C. CUSTO:  SPI                      SEI:23106.097839/2022-93ATT:  DIONEY MAGALHAES BRITO        2022ND007187MEMO.S.N/2022/SPI                   PROT:110147{SM5819/2022(2842,48)}MATERIAL PERMANENTE - PEDIDO:5819/2022 - PREG: 007/2022APA.E UTENS.DOMÉSTICOS - FRIGOBAR - CAPACIDADE 120 L- TENSÃO ALIMENTAÇÃO 220",3721,EQUIP. MATERIAL PERMANENTE,ARGOS LTDA,null,UNIVERSIDADE DE BRASÍLIA,null,2842.48,ordinário,605
RECURSOS ORDINÁRIOS,20160.00,FISCAL,IN 20048/2022 - null,2022,29/12/2022,CAPACITAÇÃO DE SERVIDORES,null,null,null,CAPACITACAO DE SERVIDORES PUBLICOS FE - NO DI,23106.136969/2022-59,"C. CUSTO: DGP 2022ND007147 SEI: 23106.136969/2022-59 MEMO.S.N/2022 /DAF/DCO/COL - INEXIGIBILIDADE DE LICITAÇÃO - 20048/2022 PAGAMENTO DE CAPACITAÇÃO DE SERVIDORES (A) PROT:110134(20160,00) LICITA WEEK ¿ APLICAÇÃO DA LEI 14.133/2021 ¿ NOVA LEI DE LICITAÇÕES E CONTRATOS",3720,SERV. PESSOA JURÍDICA,3R CAPACITA COMERCIO DE MATERIAIS DIDATICOS E SERVIÇOS EDUCACIONAIS LTDA,null,UNIVERSIDADE DE BRASÍLIA,null,20160.00,global,605
RECURSOS ORDINÁRIOS,15000.00,FISCAL,IN 20047/2022 - UNB,2022,29/12/2022,CAPACITAÇÃO DE SERVIDORES,null,null,null,CAPACITACAO DE SERVIDORES PUBLICOS FE - NO DI,23106.141356/2022-63,"C. CUSTO: DGP 2022ND007152 SEI: 23106.141356/2022-33MEMO.0108/2022 DCF/2022 - INEXIGIBILIDADE DE LICITAÇÃO - 20047/2022PAGAMENTO DE CAPACITAÇÃO DE SERVIDORES (A) PROT:110134(15000,00)CURSO IN COMPANY EM SISTEMAS EFD-REINF - ESOCIAL E DCTFWEB",3719,SERV. PESSOA JURÍDICA,GD TREINAMENTOS LTDA,null,UNIVERSIDADE DE BRASÍLIA,null,15000.00,global,605
PRÓPRIOS -  PREST.SERVICOS FUB/FUNDO,3710.00,FISCAL,PR 52/2022 - UNB,2022,28/12/2022,CRÉDITOS DISTRIBUÍDOS PARA AS UNIDADES ACADÊMICAS,null,null,null,FUNCIONAMENTO DE INSTITUICOES FEDERAI - NO DF,23106.091447/2022-11,"C. CUSTO: FAV                   SEI:23106.150205/2022-76ATT: MAX DA COSTA OLIVEIRA      2021ND007124MEMO.071/2021/FAV/DIR    PROT:11010105{SM7389/2022(3710,00)} MATERIAL DE PERMANENTE - PEDIDO:7389/2022 - PREG:052/2022  MOBILIÁRIO EM GERAL - SOFÁ DE ESPERA 3 LUGARES",3709,EQUIP. MATERIAL PERMANENTE,PREMIUM MOVEIS PARA ESCRITORIO LTDA,null,UNIVERSIDADE DE BRASÍLIA,null,3710.00,ordinário,605
PRÓPRIOS -  PREST.SERVICOS FUB/FUNDO,4818.00,FISCAL,PR 28/2022 - UNB,2022,28/12/2022,CRÉDITOS DISTRIBUÍDOS PARA AS UNIDADES ACADÊMICAS,null,null,null,FUNCIONAMENTO DE INSTITUICOES FEDERAI - NO DF,23106.054309/2021-70,"C. CUSTO: IPOL.       PROT:11010124{SM6560/2022(4818,00)}        SEI 23106.134783/2022-65.AQUISIÇÃO DE VENTILADOR PAREDE.2022ND007134.     MEMO 0065/2022/IPOL/ORÇAMENTO.",3701,EQUIP. MATERIAL PERMANENTE,VENGOV PRODUTOS E SERVICOS LTDA,null,UNIVERSIDADE DE BRASÍLIA,null,4818.00,ordinário,605
RECURSOS DIRETAM.ARREC FUNDAÇÃO UNIV.BRASÍLIA,21600.00,FISCAL,DL 10044/2022 - UNB,2022,27/12/2022,FUNCIONAMENTO GERAL,null,null,null,FUNCIONAMENTO DE INSTITUICOES FEDERAI - NO DF,23106.149783/2022-96,"C. CUSTO: IBD. PROT:11010112(21600,00) SEI 23106.149783/2022-60. AQUISIÇÃO DE RAÇÃO PARA ROEDORES. 2022ND007109. DISPENSA 10044/2022.",3693,MAT. CONSUMO,AGROVERDE COMERCIO DE PRODUTOS AGROPECUARIOS LTDA,null,UNIVERSIDADE DE BRASÍLIA,null,21600.00,global,605
RECURSOS DIRETAM.ARREC FUNDAÇÃO UNIV.BRASÍLIA,1566762.24,FISCAL,PR,2022,27/12/2022,SERVICOS COMUNS DE ENGENHARIA-PREGAO 306/2019,null,null,null,FUNCIONAMENTO DE INSTITUICOES FEDERAI - NO DF,23106.068848/2018-91,"C. CUSTO: PRC.     PROT:110105(1566762,24)        SEI 23106.068848/2018-91.      EMPRESA GENNESIS ENGENHARIA E CONSULTORIA LTDA, QUARTO TERMO ADITIVO CONTRATO 617/2019. 2022ND007102.",3692,SERV. PESSOA JURÍDICA,GÊNNESIS ENGENHARIA E CONSULTORIA LTDA,null,UNIVERSIDADE DE BRASÍLIA,null,1566762.24,global,605
RECURSOS ORDINÁRIOS,433237.76,FISCAL,PR,2022,27/12/2022,SERVICOS COMUNS DE ENGENHARIA-PREGAO 306/2019,null,null,null,FUNCIONAMENTO DE INSTITUICOES FEDERAI - NO DF,23106.068848/2018-91,"C. CUSTO: PRC.     PROT:110105(433237,76)        SEI 23106.068848/2018-91.      EMPRESA GENNESIS ENGENHARIA E CONSULTORIA LTDA, QUARTO TERMO ADITIVO CONTRATO 617/2019. 2022ND007101.",3691,SERV. PESSOA JURÍDICA,GÊNNESIS ENGENHARIA E CONSULTORIA LTDA,null,UNIVERSIDADE DE BRASÍLIA,null,433237.76,global,605
FOJNTE RDC,1075097.87,FISCAL,RDC 4/2021 - UNB,2022,27/12/2022,OBRA DE CONSTRUÇÃO DO INSTITUTO DE ARTES,null,null,null,FUNCIONAMENTO DE INSTITUICOES FEDERAI - NO DF,23106.150639/2022-76,"C. CUSTO: INFRA. PROT:110137(884348,40) SEI 23106.150639/2022-76OBRA EDIFÍCIO DO INSTITUTO DE ARTES - IDA. 2022ND006990RDC 4/2021. CONTRATO: 1110/2021 CIPI: 5218.53-13",3688,OBRAS E INSTALAÇÕES,G.C.E S/A,null,UNIVERSIDADE DE BRASÍLIA,null,1075097.87,global,605
RECURSOS DIRETAM.ARREC FUNDAÇÃO UNIV.BRASÍLIA,460504.00,FISCAL,PR 202/2022 - UNB,2022,27/12/2022,FUNCIONAMENTO GERAL,null,null,null,FUNCIONAMENTO DE INSTITUICOES FEDERAI - NO DF,23106.038751/2022-30,"C.CUSTO:BCE//AQUISIÇÃO DE MICROCOMPUTADOR/NOTEBOOK// REQ.7331/2022PROT:110113(460504,00)// PREG.202/2022// SEI N.23106.143571/2022-79",3687,EQUIPAMENTOS E MATERIAL PERMANENTE,DATEN TECNOLOGIA LTDA,null,UNIVERSIDADE DE BRASÍLIA,null,460504.00,ordinário,605
RECURSOS ORDINÁRIOS,912831.22,FISCAL,RDC 4/2021 - UNB,2022,27/12/2022,OBRA DE CONSTRUÇÃO DO INSTITUTO DE ARTES,null,null,null,REESTRUTURAÇÃO E MODERNIZAÇÃO DAS INSTITUIÇÕES - EMENDA,23106.020098/2022-52,"C. CUSTO: INFRA.    PROT:110137(884348,40)     SEI 23106.020098/2022-52. OBRA EDIFÍCIO DO INSTITUTO DE ARTES - IDA.2022ND006895.    RDC 4/2021.    CONTRATO: 1110/2021",3685,OBRAS E INSTALAÇÕES,G.C.E S/A,null,UNIVERSIDADE DE BRASÍLIA,28482.82,884348.40,global,605
RECURSOS ORDINÁRIOS,171269.28,FISCAL,RDC 1/2022 - UNB,2022,27/12/2022,FINALIZAÇÃO DA OBRA DAS PISTAS DE ATLETISMO NO CENTRO OLÍMPICO - ILUMINAÇÃO,null,null,null,REESTRUTURAÇÃO E MODERNIZAÇÃO DAS INSTITUIÇÕES - EMENDA,23106.020098/2022-52,"C. CUSTO:       INFRA. PROT:110137(171269,28)OBRA DE ILUMINAÇÃO DA PISTA DE ATLETISMO DO CENTRO OLÍMPICO DA UNB. 2022ND006900.   RDC 01/2022",3684,OBRAS E INSTALAÇÕES,LIGHTING ENGENHARIA E COMERCIO LTDA - EPP,null,UNIVERSIDADE DE BRASÍLIA,null,171269.28,global,605
RECURSOS DIRETAM.ARREC FUNDAÇÃO UNIV.BRASÍLIA,17775.00,FISCAL,PR 317/2022 - UNB,2022,27/12/2022,SERVIÇOS DE CHAVEIRO - PREGÃO ELETRÔNICO SRP N.305/2019,null,null,null,FUNCIONAMENTO DE INSTITUICOES FEDERAI - NO DF,23106.003142/2022-60,"C.CUSTO:PRC// CONTRATAÇÃO DE SERVIÇOS DE CHAVEIRO// PREG.317/2022PROT:110105(17775,00)// SEI N. 23106.003142/2022-60",3682,SERV. PESSOA JURÍDICA,FUMANCHU CHAVES E SEGURANCA ELETRONICA LTDA - EPP,null,UNIVERSIDADE DE BRASÍLIA,null,17775.00,global,605
PRÓPRIOS -  PREST.SERVICOS FUB/FUNDO,1145.00,FISCAL,PR,2022,27/12/2022,CRÉDITOS DISTRIBUÍDOS PARA AS UNIDADES ACADÊMICAS,null,null,null,FUNCIONAMENTO DE INSTITUICOES FEDERAI - NO DF,23106.141850/2022-06,"C.CUSTO:FSD// LIBERAÇÃO ALFANDEGARIA MATERIAL DESTINADO A FACULDADE DE SAÚDE// DESPACHO FS / FAR (9019572)// CONTRATO 81/2017// SEI N. 23106.141850/2022-06PROT:11010110(1145,00)// 2022ND006259//",3680,SERV. PESSOA JURÍDICA,WEGH ASSESSORIA E LOGISTICA INTERNACIONAL LTDA - EPP,null,UNIVERSIDADE DE BRASÍLIA,null,1145.00,global,605
RECURSOS DIRETAM.ARREC FUNDAÇÃO UNIV.BRASÍLIA,6488.90,FISCAL,PR 202/2022 - UNB,2022,26/12/2022,FUNCIONAMENTO GERAL,null,null,null,FUNCIONAMENTO DE INSTITUICOES FEDERAI - NO DF,23106.038751/2022-30,"C. CUSTO: DAF.         PROT:110110{SM6595/2022(6488,90)}       SEI 23106.141256/2022-15.AQUISIÇÃO DE MICROCOMPUTADOR.2022ND006570.",3677,EQUIPAMENTOS E MATERIAL PERMANENTE,DATEN TECNOLOGIA LTDA,null,UNIVERSIDADE DE BRASÍLIA,null,6488.90,ordinário,605
RECURSOS ORDINÁRIOS,1833986.17,FISCAL,PR,2022,26/12/2022,SERVICOS COMUNS DE ENGENHARIA-PREGAO 306/2019,null,null,null,REESTRUTURACAO E MODERNIZACAO DAS INS - NO DF,23106.150503/2022-66,"C. CUSTO: PRC.       PROT:110105(1833986,17)       SEI 23106.150503/2022-66.NOTA FISCAL 2.445 DA EMPRESA GENNESIS ENGENHARIA E CONSULTORIA LTDA, CONTRATO 617/2019.2022ND006454.",3676,SERV. PESSOA JURÍDICA,GÊNNESIS ENGENHARIA E CONSULTORIA LTDA,null,UNIVERSIDADE DE BRASÍLIA,null,1833986.17,global,605
PRÓPRIOS -  PREST.SERVICOS FUB/FUNDO,7657.00,FISCAL,PR 52/2022 - UNB,2022,26/12/2022,CRÉDITOS DISTRIBUÍDOS PARA AS UNIDADES ADMINISTRATIVAS,null,null,null,FUNCIONAMENTO DE INSTITUICOES FEDERAI - NO DF,23106.091447/2022-11,"C. CUSTO: DAF.      PROT:110110{SM7321/2022(7657,00)}            SEI 23106.150123/2022-21.AQUISIÇÃO DE DESCANSO PÉS.2022ND006344.      DESPACHO DAF/DACP 9123627.",3673,EQUIP. MATERIAL PERMANENTE,CONSULTY COMERCIO E SERVICOS EIRELI,null,UNIVERSIDADE DE BRASÍLIA,null,7657.00,ordinário,605
PRÓPRIOS -  PREST.SERVICOS FUB/FUNDO,1600.00,FISCAL,PR 52/2022 - UNB,2022,26/12/2022,CRÉDITOS DISTRIBUÍDOS PARA AS UNIDADES ADMINISTRATIVAS,null,null,null,FUNCIONAMENTO DE INSTITUICOES FEDERAI - NO DF,23106.091447/2022-11,"C. CUSTO: DAF.      PROT:110110{SM7318/2022(1600,00)}            SEI 23106.150123/2022-21.AQUISIÇÃO DE CADEIRA TIPO LONGARINA.2022ND006344.      DESPACHO DAF/DACP 9123627.",3672,EQUIP. MATERIAL PERMANENTE,WOOD CENTER COMERCIO - EIRELI,null,UNIVERSIDADE DE BRASÍLIA,null,1600.00,ordinário,605
PRÓPRIOS -  PREST.SERVICOS FUB/FUNDO,19466.70,FISCAL,PR 202/2022 - UNB,2022,26/12/2022,CRÉDITOS DISTRIBUÍDOS PARA AS UNIDADES ACADÊMICAS,null,null,null,FUNCIONAMENTO DE INSTITUICOES FEDERAI - NO DF,23106.038751/2022-30,"C. CUSTO: FT.     PROT:11010111{SM6737/2022(19466,70)}       SEI 23106.138140/2022-91.AQUISIÇÃO DE MICROCOMPUTADOR.  2022ND006439.        MEMO 092/2022/FT/EPR.",3671,EQUIPAMENTOS E MATERIAL PERMANENTE,DATEN TECNOLOGIA LTDA,null,UNIVERSIDADE DE BRASÍLIA,null,19466.70,ordinário,605
PRÓPRIOS -  PREST.SERVICOS FUB/FUNDO,8500.00,FISCAL,PR 202/2022 - UNB,2022,26/12/2022,CRÉDITOS DISTRIBUÍDOS PARA AS UNIDADES ACADÊMICAS,null,null,null,FUNCIONAMENTO DE INSTITUICOES FEDERAI - NO DF,23106.038751/2022-30,"C. CUSTO: FT.     PROT:11010111{SM6736/2022(8500,00)}       SEI 23106.138140/2022-91.AQUISIÇÃO DE NOTEBOOK.2022ND006439.        MEMO 092/2022/FT/EPR.",3670,EQUIPAMENTOS E MATERIAL PERMANENTE,DATEN TECNOLOGIA LTDA,null,UNIVERSIDADE DE BRASÍLIA,null,8500.00,ordinário,605
RECURSOS ORDINÁRIOS,1035590.94,FISCAL,PR 313/2022 - UNB,2022,26/12/2022,SERVICOS COMUNS DE ENGENHARIA-PREGAO 306/2019,null,null,null,REESTRUTURACAO E MODERNIZACAO DAS INS - NO DF,23106.149436/2022-37,"C. CUSTO PRC PROT:110105(1035590,94) PR 313/2022 ITEM 02PAGAMENTO DE UM MÊS REFERENTE À CONTRATAÇÃO DAMPE ENGENHARIA E SERVIÇOS S/A. PRESTAÇÃO DE SERVIÇOS COMUNS DE ENGENHARIA.SEI: 23106.149436/2022-37 2022ND006437",3669,SERV. PESSOA JURÍDICA,MPE ENGENHARIA E SERVIÇOS,null,UNIVERSIDADE DE BRASÍLIA,null,1035590.94,global,605
RECURSOS DIRETAM.ARREC FUNDAÇÃO UNIV.BRASÍLIA,60158.00,FISCAL,PR 202/2022 - UNB,2022,26/12/2022,FUNCIONAMENTO GERAL,null,null,null,FUNCIONAMENTO DE INSTITUICOES FEDERAI - NO DF,23106.141702/2022-83,"C. CUSTO DEG PROT:110106{SM7039/2022(60158,00)} PR 202/2022AQUISIÇÃO DE 14 COMPUTADORES.SEI: 23106.141702/2022-83 2022ND006081",3668,EQUIP. MATERIAL PERMANENTE,DATEN TECNOLOGIA LTDA,null,UNIVERSIDADE DE BRASÍLIA,null,60158.00,global,605
PRÓPRIOS -  PREST.SERVICOS FUB/FUNDO,6488.90,FISCAL,PR 202/2022 - UNB,2022,26/12/2022,CRÉDITOS DISTRIBUÍDOS PARA AS UNIDADES ADMINISTRATIVAS,null,null,null,FUNCIONAMENTO DE INSTITUICOES FEDERAI - NO DF,23106.038751/2022-30,"C. CUSTO FCE PROT:110131{SM7300/2022(6488,90)} PR 202/2022 AQUISIÇÃO DE 01 (DUAS) UNIDADES DE MICROCOMPUTADOR TIPO AVANÇADOSEI: 23106.149355/2022-37 ANEXO SALDO SIAFI 449052 (9131732)",3665,EQUIPAMENTOS E MATERIAL PERMANENTE,DATEN TECNOLOGIA LTDA,null,UNIVERSIDADE DE BRASÍLIA,null,6488.90,ordinário,605
ARRECADAÇÕES DA BCE,6759.20,FISCAL,DL 40032/2022 - UNB,2022,26/12/2022,ARRECADACOES DA BCE,null,null,null,FUNCIONAMENTO DE INSTITUICOES FEDERAI - NO DF,23106.140032/2022-88,"C. CUSTO BCE PROT:11010113(6759,20) DISP: 40032/2022AQUISIÇÃO DE JOGOS DE TABULEIRO PARA O ESPAÇO DEPESQUISA E OFICINA PAGU (ESPAÇO POP) DA BIBLIOTECA CENTRALSEI: 23106.140032/2022-88 2022ND006245",3664,MAT. CONSUMO,TOCA DO TABULEIRO COMÉRCIO DE BRINQUEDOS LTDA,null,UNIVERSIDADE DE BRASÍLIA,null,6759.20,ordinário,605
PRÓPRIOS -  PREST.SERVICOS FUB/FUNDO,6922.30,FISCAL,DL 10043/2022 - UNB,2022,26/12/2022,CRÉDITOS DISTRIBUÍDOS PARA AS UNIDADES ACADÊMICAS,null,null,null,FUNCIONAMENTO DE INSTITUICOES FEDERAI - NO DF,23106.120490/2022-69,"C. CUSTO FAV PROT:11010105(6992,30) DISP: 10043/2022AQUISIÇÃO DE MATERIAL DE CONSUMO LABORATORIALSEI: 23106.120490/2022-09 2022ND006248",3663,MAT. CONSUMO,LIFEPACK PRODUTOS PARA DIAGNOSTICO LTDA,null,UNIVERSIDADE DE BRASÍLIA,null,6922.30,ordinário,605
TED INCRA-UNB,1500000.00,FISCAL,PR,2022,23/12/2022,ALIMENTACAO,null,null,null,ASSISTENCIA AO ESTUDANTE DE ENSINO SU - NO DF,23106.043868/2022-35,"C. CUSTO DAC PROT:110109(1500000,00) PR 01/2021AUXÍLIO ALIMENTAÇÃO DA ASSISTÊNCIA ESTUDANTIL.SEI: 23106.043868/2022-35 2022ND006371",3660,SERV. PESSOA JURÍDICA,ISM GOMES DE MATTOS EIRELI,null,UNIVERSIDADE DE BRASÍLIA,null,1500000.00,global,605
PRÓPRIOS -  PREST.SERVICOS FUB/FUNDO,1600.00,FISCAL,PR 52/2022 - UNB,2022,23/12/2022,CRÉDITOS DISTRIBUÍDOS PARA AS UNIDADES ACADÊMICAS,null,null,null,FUNCIONAMENTO DE INSTITUICOES FEDERAI - NO DF,23106.091447/2022-11,"C. CUSTO FAV PROT:11010105{SM7327/2022(1600,00) PR 52/2022AQUISIÇÃO DE POLTRONA, LONGARINASEI: 23106.150205/2022-76 2022ND006309",3659,EQUIP. MATERIAL PERMANENTE,WOOD CENTER COMERCIO - EIRELI,null,UNIVERSIDADE DE BRASÍLIA,null,1600.00,ordinário,605
PRÓPRIOS -  PREST.SERVICOS FUB/FUNDO,1425.44,FISCAL,PR 7/2022 - UNB,2022,23/12/2022,CRÉDITOS DISTRIBUÍDOS PARA AS UNIDADES ACADÊMICAS,null,null,null,FUNCIONAMENTO DE INSTITUICOES FEDERAI - NO DF,23106.054297/2021-83,"C. CUSTO: IGD            SEI:23106.142116/2022-56ATT:  WELITOM RODRIGUES BORGES    2022ND000000MEMO.S.N/2022/IG    PROT:11010117{SM7003/2022(1425,44)}MATERIAL DE PERMANENTE - PEDIDO:7003/2022 - PREG:007/2022  APA.UTENS.DOMÉSTICOS - ASPIRADOR DE PÓ INDUSTRIAL",3653,EQUIP. MATERIAL PERMANENTE,ARGOS LTDA,null,UNIVERSIDADE DE BRASÍLIA,null,1425.44,ordinário,605
PRÓPRIOS -  PREST.SERVICOS FUB/FUNDO,750.00,FISCAL,PR 32/2022 - UNB,2022,23/12/2022,CRÉDITOS DISTRIBUÍDOS PARA AS UNIDADES ACADÊMICAS,null,null,null,FUNCIONAMENTO DE INSTITUICOES FEDERAI - NO DF,23106.050631/2022-19,"C.CUSTO: FDD - AT- DANIELA MARQUES DE MORAES - PROT:11010105{SM7089/2022(750,00)}         MATERIAL DE CONSUMO-PEDIDO:7089/2022 -2022ND006260 MATERIAL TIC CONSUMO - TECLADO ABNT2 USB - PREG:032/2022 MEMO.S.N/2022/FDD/PPGD//SEI:23106.142027/2022-18",3651,MAT. CONSUMO,HYPER TECHNOLOGIES COMERCIO DE INFORMATICA E SERVICOS EIRELI,null,UNIVERSIDADE DE BRASÍLIA,null,750.00,ordinário,605
PRÓPRIOS -  PREST.SERVICOS FUB/FUNDO,554.80,FISCAL,PR 32/2022 - UNB,2022,23/12/2022,CRÉDITOS DISTRIBUÍDOS PARA AS UNIDADES ACADÊMICAS,null,null,null,FUNCIONAMENTO DE INSTITUICOES FEDERAI - NO DF,23106.050631/2022-19,"C.CUSTO: FDD - AT- DANIELA MARQUES DE MORAES - PROT:11010105{SM7090/2022(554,80)}         MATERIAL DE CONSUMO-PEDIDO:7090/2022 -2022ND006260 MATERIAL TIC CONSUMO - MOUSE ÓPTICO USB - PREG:032/2022 MEMO.S.N/2022/FDD/PPGD//SEI:23106.142027/2022-18",3650,MAT. CONSUMO,JULIO CESAR DE CARVALHO JUNIOR,null,UNIVERSIDADE DE BRASÍLIA,null,554.80,ordinário,605
ARRECADACAO CDT,1432.00,FISCAL,PR 38/2022 - UNB,2022,23/12/2022,ARRECADAÇÃO DE ROYALTIES KRILLTECH,null,null,null,FUNCIONAMENTO DE INSTITUICOES FEDERAI - NO DF,23106.053722/2022-06,"C.CUSTO: FAV- AT- JOSE RICARDO PEIXOTO - PROT:11010105{SM7055/2022(1432,00)}         MATERIAL DE CONSUMO-PEDIDO:7055/2022 -2022ND006257 - PREG:038/2022 MATERIAL QUÍMICO - FIPRONIL - FORMICIDA E HERBICIDA AGRÍCOLAMEMO.S.N/2022/FAV//SEI:23106.141732/2022-90",3649,MAT. CONSUMO,AGROBELIA - INSUMOS AGRICOLAS LTA,null,UNIVERSIDADE DE BRASÍLIA,null,1432.00,ordinário,605
PRÓPRIOS -  PREST.SERVICOS FUB/FUNDO,573.48,FISCAL,PR 1/2022 - UNB,2022,23/12/2022,CRÉDITOS DISTRIBUÍDOS PARA AS UNIDADES ADMINISTRATIVAS,null,null,null,FUNCIONAMENTO DE INSTITUICOES FEDERAI - NO DF,23106.119475/2021-29,"C.CUSTO: SAA- AT- JULIANA MARIA ARAÚJO - PROT:11010101{SM6882/2022(573,4800)}         MATERIAL DE CONSUMO-PEDIDO:6882/2022 -2022ND006274 - PREG:001/2022 MATERIAL DE COPA E COZINHA - AÇUCAREIRO - JARRA - BANDEJA - TAÇA - XÍCARAMEMO.267/2022/SAA/ASE//SEI:23106.144575/2022-74",3648,MAT. CONSUMO,NOVA MESA DISTRIBUIDORA DE ALIMENTOS E UTILIDADES LTDA,null,UNIVERSIDADE DE BRASÍLIA,null,573.48,ordinário,605
PRÓPRIOS -  PREST.SERVICOS FUB/FUNDO,9000.00,FISCAL,PR,2022,23/12/2022,CRÉDITOS DISTRIBUÍDOS PARA AS UNIDADES ADMINISTRATIVAS,null,null,null,FUNCIONAMENTO DE INSTITUICOES FEDERAI - NO DF,23106.141038/2022-72,"C. CUSTO: DAF            SEI:23106.141038/2022-72ATT:  ANTONIO MARCIO LOPES BEZERRA       2022ND006339MEMO.107/2022/DAF/DCF    PROT:110110(9000,00)MATERIAL DE PERMANENTE - PEDIDO:0000/2022 - PREG:318/2020  MAQ.EQUIP. E ENERGÉTICOS - NOBREAK - 1.5KVA - INTERATIVO - SENOIDAL",3647,EQUIP. MATERIAL PERMANENTE,TECSOLUTI COMERCIO E SOLUCOES LTDA,null,UNIVERSIDADE DE BRASÍLIA,null,9000.00,global,605
PRÓPRIOS -  PREST.SERVICOS FUB/FUNDO,676.00,FISCAL,PR 28/2022 - UNB,2022,23/12/2022,CRÉDITOS DISTRIBUÍDOS PARA AS UNIDADES ACADÊMICAS,null,null,null,FUNCIONAMENTO DE INSTITUICOES FEDERAI - NO DF,23106.054309/2021-70,"C. CUSTO: FTD                    SEI:23106.141640/2022-18ATT: JORGE LUIZ DE ALMEIDA       2022ND000000MEMO.073/2022/FT/ENM     PROT:11010111{SM7028/2022(676,00)}MATERIAL DE PERMANENTE - PEDIDO:7028/2022 - PREG:28/2022  MAQ.EQUIP. E UTENS.DE OFICINA - MICRO RETIFICA DE AÇO - POLIPROPILENO - 220V",3646,EQUIP. MATERIAL PERMANENTE,VENGOV PRODUTOS E SERVICOS LTDA,null,UNIVERSIDADE DE BRASÍLIA,null,676.00,ordinário,605
PRÓPRIOS -  PREST.SERVICOS FUB/FUNDO,912.00,FISCAL,PR 201/2022 - UNB,2022,23/12/2022,CRÉDITOS DISTRIBUÍDOS PARA AS UNIDADES ACADÊMICAS,null,null,null,FUNCIONAMENTO DE INSTITUICOES FEDERAI - NO DF,23106.074895/2020-98,"C. CUSTO: ICS.       PROT:11010113{SM5783/2022(912,00)}       SEI 23106.140528/2022-51.AQUISIÇÃO DE FONE DE OUVIDO HEADSET.2022ND006295.     DESPACHO ICS/ELA 9003148.",3645,MAT. CONSUMO,RF PRODUCOES ARTISTICAS LTDA,null,UNIVERSIDADE DE BRASÍLIA,null,912.00,ordinário,605
PRÓPRIOS -  PREST.SERVICOS FUB/FUNDO,338.00,FISCAL,PR 28/2022 - UNB,2022,23/12/2022,CRÉDITOS DISTRIBUÍDOS PARA AS UNIDADES ACADÊMICAS,null,null,null,FUNCIONAMENTO DE INSTITUICOES FEDERAI - NO DF,23106.054309/2021-70,"C. CUSTO: IBD.      PROT:11010112(338,00)      SEI 23106.148926/2022-16.AQUISIÇÃO DE MICRO RETÍFICA.SALDO SIAFI (9127254).        MEMO 367/2022/PRC/DIMAT.",3644,EQUIP. MATERIAL PERMANENTE,VENGOV PRODUTOS E SERVICOS LTDA,null,UNIVERSIDADE DE BRASÍLIA,null,338.00,ordinário,605
RECURSOS ORDINÁRIOS,57765.63,FISCAL,PR 307/2019 - UNB,2022,23/12/2022,DESCARTE DE RESIDUOS QUIMICOS,null,null,null,FUNCIONAMENTO DE INSTITUICOES FEDERAI - NO DF,23106.005654/2019-65,"C. CUSTO PRC PROT:110105(57765,63)PRESTAÇÃO DE SERVIÇOS DE COLETA, ACONDICIONAMENTOTRANSPORTE, TRATAMENTO E DESTINAÇÃO FINAL DE RESÍDUOS QUÍMICOSE DE VIDRARIAS DANIFICADAS. CONTRATO 618/2019SEI: 23106.005654/2019-65 2022ND006356",3642,SERV. PESSOA JURÍDICA,SANIPLAN ENGENHARIA E SERVICOS AMBIENTAIS LTDA,null,UNIVERSIDADE DE BRASÍLIA,null,57765.63,global,605
ARRECADAÇÕES DA BCE,211.18,FISCAL,PR 26/2022 - SEC.ADM./PR,2022,23/12/2022,ARRECADACOES DA BCE,null,null,null,FUNCIONAMENTO DE INSTITUICOES FEDERAI - NO DF,23106.000127/2022-77,"C. CUSTO: BCE                    SEI:23106.144632/2022-15ATT: KATLEN DAYANE ALVES         2022ND006333 - UASG:110001MEMO.021/2022/BCE/ADM/COM        PROT:110113{SM7227/2022(211,18)}MATERIAL DE PERMANENTE - PEDIDO:7227/2022 - PREG:26/2022  APA.E UTENS.DOMÉSTICOS - SANDUICHEIRA - MATERIAL ALUMÍNIO - BRANCA",3641,EQUIP. MATERIAL PERMANENTE,F & R SOLUCOES ADMINISTRATIVAS LTDA,null,UNIVERSIDADE DE BRASÍLIA,null,211.18,ordinário,605
PRÓPRIOS -  PREST.SERVICOS FUB/FUNDO,3102.87,FISCAL,DL 12810/2022 - UNB,2022,23/12/2022,CRÉDITOS DISTRIBUÍDOS PARA AS UNIDADES ACADÊMICAS,null,null,null,FUNCIONAMENTO DE INSTITUICOES FEDERAI - NO DF,23106.128106/2022-16,"C. CUSTO: FAV. PROT:11010105(3102,87) SEI 23106.128106/2022-16.AQUISIÇÃO DE ESTUFA.2022ND006253. MEMO 1/2022/FAV.",3640,EQUIP. MATERIAL PERMANENTE,TPC SOLUÇÕES INTEGRADAS LTDA,null,UNIVERSIDADE DE BRASÍLIA,null,3102.87,ordinário,605
PRÓPRIOS -  PREST.SERVICOS FUB/FUNDO,676.00,FISCAL,PR 28/2022 - UNB,2022,23/12/2022,CRÉDITOS DISTRIBUÍDOS PARA AS UNIDADES ACADÊMICAS,null,null,null,FUNCIONAMENTO DE INSTITUICOES FEDERAI - NO DF,23106.054309/2021-70,"C. CUSTO FTD PROT:1101011101{SM7162/2022(676,00)} PR 28/2022AQUISIÇÃO DE 02 (DUAS) MICRO, RETÍFICASEI: 23106.148933/2022-18 ANEXO SALDO SIAFI (9128957)",3639,EQUIP. MATERIAL PERMANENTE,VENGOV PRODUTOS E SERVICOS LTDA,null,UNIVERSIDADE DE BRASÍLIA,null,676.00,ordinário,605
PRÓPRIOS -  PREST.SERVICOS FUB/FUNDO,9789.00,FISCAL,DL 12810/2022 - UNB,2022,23/12/2022,CRÉDITOS DISTRIBUÍDOS PARA AS UNIDADES ACADÊMICAS,null,null,null,FUNCIONAMENTO DE INSTITUICOES FEDERAI - NO DF,23106.128106/2022-16,"C. CUSTO: FAV. PROT:11010105(9789,00) SEI 23106.128106/2022-16.AQUISIÇÃO DE MESA AGITADORA.2022ND006253. MEMO 1/2022/FAV.",3637,EQUIP. MATERIAL PERMANENTE,JOSUE CONCEIÇÃO DA SILVA (JTH),null,UNIVERSIDADE DE BRASÍLIA,null,9789.00,ordinário,605
RECURSOS DIR.ARRECADADOS(PROPRIOS)-FUB -,250.00,FISCAL,PR 32/2022 - UNB,2022,23/12/2022,CENTRO DE ATENDIMENTO E ESTUDOS PSICOLOG-CAEP,null,null,null,FUNCIONAMENTO DE INSTITUICOES FEDERAI - NO DF,23106.050631/2022-19,"C.CUSTO:ACE - AT-MARIANA CORREIA LACERDA - PROT:11010120{SM7030/2022(250,00)}         MATERIAL DE CONSUMO-PEDIDO:7030/2022 -2022ND006331 - PREG:32/2022 MATERIAL DE TIC - TECLADO ABNT 2 - USB  MEMO.124/2022/IP/CAEP//SEI:23106.141660/2022-81",3636,MAT. CONSUMO,HYPER TECHNOLOGIES COMERCIO DE INFORMATICA E SERVICOS EIRELI,null,UNIVERSIDADE DE BRASÍLIA,null,250.00,ordinário,605
PRÓPRIOS -  PREST.SERVICOS FUB/FUNDO,6488.90,FISCAL,PR 202/2022 - UNB,2022,23/12/2022,CRÉDITOS DISTRIBUÍDOS PARA AS UNIDADES ADMINISTRATIVAS,null,null,null,FUNCIONAMENTO DE INSTITUICOES FEDERAI - NO DF,23106.038751/2022-30,"C. CUSTO FCE PROT:110131{SM7300/2022(6488,90)} PR 202/2022 AQUISIÇÃO DE 01 (DUAS) UNIDADES DE MICROCOMPUTADOR TIPO AVANÇADOSEI: 23106.149355/2022-37 ANEXO SALDO SIAFI (9126055)",3635,EQUIPAMENTOS E MATERIAL PERMANENTE,DATEN TECNOLOGIA LTDA,null,UNIVERSIDADE DE BRASÍLIA,null,6488.90,ordinário,605
PRÓPRIOS -  PREST.SERVICOS FUB/FUNDO,141801.00,FISCAL,PR 202/2022 - UNB,2022,23/12/2022,CRÉDITOS DISTRIBUÍDOS PARA AS UNIDADES ACADÊMICAS,null,null,null,FUNCIONAMENTO DE INSTITUICOES FEDERAI - NO DF,23106.038751/2022-30,"C. CUSTO FCE PROT:110131{SM7300/2022(141801,00)} PR 202/202233 (TRINTA E TRÊS) UNIDADES DE MICROCOMPUTADORSEI: 23106.149355/2022-37 ANEXO SALDO SIAFI (9126055)",3634,EQUIPAMENTOS E MATERIAL PERMANENTE,DATEN TECNOLOGIA LTDA,null,UNIVERSIDADE DE BRASÍLIA,null,141801.00,ordinário,605
PRÓPRIOS -  PREST.SERVICOS FUB/FUNDO,17188.00,FISCAL,PR 202/2022 - UNB,2022,23/12/2022,CRÉDITOS DISTRIBUÍDOS PARA AS UNIDADES ADMINISTRATIVAS,null,null,null,FUNCIONAMENTO DE INSTITUICOES FEDERAI - NO DF,23106.038751/2022-30,"C. CUSTO DPG PROT:110108{SM7333/2022(17188,00)}AQUISIÇÃO DE MICROCOMPUTADORES PR 202/2022SEI: 23106.141559/2022-20 2022ND006358",3633,EQUIPAMENTOS E MATERIAL PERMANENTE,DATEN TECNOLOGIA LTDA,null,UNIVERSIDADE DE BRASÍLIA,null,17188.00,ordinário,605
PRÓPRIOS -  PREST.SERVICOS FUB/FUNDO,2055.30,FISCAL,PR,2022,23/12/2022,CRÉDITOS DISTRIBUÍDOS PARA AS UNIDADES ADMINISTRATIVAS,null,null,null,FUNCIONAMENTO DE INSTITUICOES FEDERAI - NO DF,23106.146934/2022-28,"C. CUSTO: GRE                     SEI:23106.146934/2022-28ATT:   PAULO CESAR MARQUES        2022ND006327MEMO.S.N/2022/GRE                 PROT:1101(2055,30)SERVIÇOS DE TERCEIROS - PEDIDO:0000/2022 - CONTRATO: 031/2021FORNECIMENTO DE ALIMENTAÇÃO - FORNECIMENTO DE REFEIÇÕES -  COFFEE BREAK",3632,SERV. PESSOA JURÍDICA,ISM GOMES DE MATTOS EIRELI,null,UNIVERSIDADE DE BRASÍLIA,null,2055.30,global,605
PRÓPRIOS -  PREST.SERVICOS FUB/FUNDO,42500.00,FISCAL,PR 202/2022 - UNB,2022,23/12/2022,CRÉDITOS DISTRIBUÍDOS PARA AS UNIDADES ACADÊMICAS,null,null,null,FUNCIONAMENTO DE INSTITUICOES FEDERAI - NO DF,23106.038751/2022-30,"C. CUSTO: FACE                    SEI:23106.139455/2022-55ATT:  ROBERTO DE GOES ELLERY      2022ND006336MEMO.043/2022/FACE/ECO            PROT:11010102{SM6826/2022(42500,00)}MATERIAL DE PERMANENTE - PEDIDO:6826/2022  - PREG:202/2022 EQUIPAMENTOS TIC - NOTEBOOK TIPO PADRÃO",3631,EQUIPAMENTOS E MATERIAL PERMANENTE,DATEN TECNOLOGIA LTDA,null,UNIVERSIDADE DE BRASÍLIA,null,42500.00,ordinário,605
PRÓPRIOS -  PREST.SERVICOS FUB/FUNDO,6488.90,FISCAL,PR 202/2022 - UNB,2022,23/12/2022,CRÉDITOS DISTRIBUÍDOS PARA AS UNIDADES ADMINISTRATIVAS,null,null,null,FUNCIONAMENTO DE INSTITUICOES FEDERAI - NO DF,23106.038751/2022-30,"C. CUSTO: DAF.       PROT:110110{SM6595/2022(6488,90)}        SEI 23106.141256/2022-15.       AQUISIÇÃO DE MICROCOMPUTADOR.DEMONSTRATIVO INVESTIMENTO DAF (9124101).",3630,EQUIPAMENTOS E MATERIAL PERMANENTE,DATEN TECNOLOGIA LTDA,null,UNIVERSIDADE DE BRASÍLIA,null,6488.90,ordinário,605
PRÓPRIOS -  PREST.SERVICOS FUB/FUNDO,3520.00,FISCAL,PR 11/2022 - CENTRAL,2022,23/12/2022,CRÉDITOS DISTRIBUÍDOS PARA AS UNIDADES ADMINISTRATIVAS,null,null,null,FUNCIONAMENTO DE INSTITUICOES FEDERAI - NO DF,23106.110735/2021-12,"C.CUSTO:FCE// LICENÇA DE SOFTWARE CORELDRAW// DESPACHO FCE / LICICON (9029754)PROT:110131(3520,00)// 2022ND006313// REQ. 7121/2022// PR 11/2022 - UASG: 201057",3629,SERVIÇOS TIC,MCR SISTEMAS E CONSULTORIA LTDA,null,UNIVERSIDADE DE BRASÍLIA,null,3520.00,ordinário,605
RECURSOS ORDINÁRIOS,11.70,FISCAL,PR 35/2022 - UNB,2022,23/12/2022,MATRIZ HVET_,null,null,null,20RK - FUNCIONAMENTO DOS HOSPITAL VETERINARIOS,23106.079543/2022-91,"C.CUSTO:HVET// AGUA INJEÇÃO DILUENTE// REQ. 7317/2022PROT:1101010501(11,70)// PREGÃO 35/2022",3628,MAT. CONSUMO,CAPROMED FARMACEUTICA LTDA,null,UNIVERSIDADE DE BRASÍLIA,null,11.70,ordinário,605
RECURSOS ORDINÁRIOS,16.98,FISCAL,PR 17/2022 - UNB,2022,23/12/2022,MATRIZ HVET_,null,null,null,20RK - FUNCIONAMENTO DOS HOSPITAL VETERINARIOS,23106.030293/2022-91,"C.CUSTO:HVET// ACEPROMAZIA 20 ML// REQ. 7316/2022// PREGÃO 40/2022PROT:1101010501(16,98)// 2022ND006306//SEI N.23106.149802/2022-58",3627,MAT. CONSUMO,TURVOMED DISTRIBUIDORA E SERVICOS,null,UNIVERSIDADE DE BRASÍLIA,null,16.98,ordinário,605
RECURSOS ORDINÁRIOS,1066.00,FISCAL,PR 40/2022 - UNB,2022,23/12/2022,MATRIZ HVET_,null,null,null,20RK - FUNCIONAMENTO DOS HOSPITAL VETERINARIOS,23106.082731/2022-04,"C.CUSTO:HVET// SERRAGEM MARAVALHA// REQ. 7310/2022// PREGÃO 40/2022PROT:1101010501(1066,00)// 2022ND006306//SEI N.23106.149802/2022-58",3626,MAT. CONSUMO,AGROVERDE COMERCIO DE PRODUTOS AGROPECUARIOS LTDA,null,UNIVERSIDADE DE BRASÍLIA,null,1066.00,ordinário,605
PRÓPRIOS -  PREST.SERVICOS FUB/FUNDO,500.00,FISCAL,PR 23/2022 - UNB,2022,23/12/2022,CRÉDITOS DISTRIBUÍDOS PARA AS UNIDADES ADMINISTRATIVAS,null,null,null,FUNCIONAMENTO DE INSTITUICOES FEDERAI - NO DF,23106.031609/2022-61,"C.CUSTO:CERRADO// AQUISIÇÃO DE GARRAFA TERMICA// REQ. 7070/2022PROT:110136(500,00)// PREGÃO 23/2022// SEI N.23106.141080/2022-93",3625,MAT. CONSUMO,CDV COMERCIAL DE ALIMENTOS EIRELI,null,UNIVERSIDADE DE BRASÍLIA,null,500.00,ordinário,605
RECURSOS ORDINÁRIOS,455291.51,FISCAL,PR,2022,23/12/2022,SERVICOS DE COMUNICACAO VISUAL,null,null,null,FUNCIONAMENTO DE INSTITUICOES FEDERAI - NO DF,23106.141537/2022-60,"C. CUSTO DTER PROT:11011007(237095,04)PAGAMENTO DA NOTA FISCAL 43 DA 3P HGM SOLUÇÃO VISUAL LTDA CONTRATO Nº1217/2022. OUTUBRO/2022. SERVIÇO DE COMUNICAÇÃO VISUAL,MANUTENÇÃO E INSTALAÇÃO DE ELEMENTOS DE SINALIZAÇÃOSEI: 23106.141537/2022-60 2022ND006349",3621,SERV. PESSOA JURÍDICA,3P HGM SOLUCAO VISUAL LTDA-EPP,null,UNIVERSIDADE DE BRASÍLIA,218196.47,237095.04,global,605
PRÓPRIOS -  PREST.SERVICOS FUB/FUNDO,4297.00,FISCAL,PR 202/2022 - UNB,2022,23/12/2022,CRÉDITOS DISTRIBUÍDOS PARA AS UNIDADES ADMINISTRATIVAS,null,null,null,FUNCIONAMENTO DE INSTITUICOES FEDERAI - NO DF,23106.038751/2022-30,"C. CUSTO: DPI.       PROT:110142{SM7022/2022(4297,00)}        SEI 23106.141864/2022-11.    AQUISIÇÃO DE MICROCOMPUTADOR.2022ND00006277.      MEMO 128/2022/DPI.",3619,EQUIPAMENTOS E MATERIAL PERMANENTE,DATEN TECNOLOGIA LTDA,null,UNIVERSIDADE DE BRASÍLIA,null,4297.00,ordinário,605
PRÓPRIOS -  PREST.SERVICOS FUB/FUNDO,17188.00,FISCAL,PR 202/2022 - UNB,2022,23/12/2022,CRÉDITOS DISTRIBUÍDOS PARA AS UNIDADES ADMINISTRATIVAS,null,null,null,FUNCIONAMENTO DE INSTITUICOES FEDERAI - NO DF,23106.038751/2022-30,"C. CUSTO: DPI.       PROT:110142{SM7029/2022(17188,00)}        SEI 23106.141864/2022-11.    AQUISIÇÃO DE MICROCOMPUTADOR.2022ND00006277.      MEMO 128/2022/DPI.",3618,EQUIPAMENTOS E MATERIAL PERMANENTE,DATEN TECNOLOGIA LTDA,null,UNIVERSIDADE DE BRASÍLIA,null,17188.00,ordinário,605
ARRECADAÇÕES DA BCE,1308.00,FISCAL,PR 26/2022 - SEC.ADM./PR,2022,23/12/2022,ARRECADACOES DA BCE,null,null,null,FUNCIONAMENTO DE INSTITUICOES FEDERAI - NO DF,23106.000127/2022-77,"C.CUSTO:BCE//  AQUISIÇÃO DE REFRIGERADOR FRIGOBAR 76L// MEMO N. 22/2022/BCE/ADM/COMPROT:110113(1308,00)// REQ. 7228/2022// PREG. 26/2022 (110001)",3617,EQUIP. MATERIAL PERMANENTE,XM CONSTRUCOES EIRELI,null,UNIVERSIDADE DE BRASÍLIA,null,1308.00,ordinário,605
RECURSOS DIRETAM.ARREC FUNDAÇÃO UNIV.BRASÍLIA,42876.00,FISCAL,PR 202/2022 - UNB,2022,23/12/2022,FUNCIONAMENTO GERAL,null,null,null,FUNCIONAMENTO DE INSTITUICOES FEDERAI - NO DF,23106.038751/2022-30,"C. CUSTO: DAF.       PROT:110110{SM6595/2022(42876,00)}        SEI 23106.141256/2022-15.AQUISIÇÃO DE MICROCOMPUTADOR E NOTEBOOK.2022ND00006265 E 2022ND003298.       MEMO 27/2022/DAF/SEC.",3616,EQUIPAMENTOS E MATERIAL PERMANENTE,DATEN TECNOLOGIA LTDA,null,UNIVERSIDADE DE BRASÍLIA,null,42876.00,ordinário,605
PRÓPRIOS -  PREST.SERVICOS FUB/FUNDO,250.00,FISCAL,PR 32/2022 - UNB,2022,23/12/2022,CRÉDITOS DISTRIBUÍDOS PARA AS UNIDADES ACADÊMICAS,null,null,null,FUNCIONAMENTO DE INSTITUICOES FEDERAI - NO DF,23106.050631/2022-19,"C.CUSTO:IE// TECLADO MICROCOMPUTADOR// REQ. 7043/2022PROT:11010115(250,00)// SEI N. 23106.141738/2022-67// 2022ND006286",3615,MAT. CONSUMO,HYPER TECHNOLOGIES COMERCIO DE INFORMATICA E SERVICOS EIRELI,null,UNIVERSIDADE DE BRASÍLIA,null,250.00,ordinário,605
PRÓPRIOS -  PREST.SERVICOS FUB/FUNDO,718.70,FISCAL,PR 1/2022 - UNB,2022,23/12/2022,CRÉDITOS DISTRIBUÍDOS PARA AS UNIDADES ACADÊMICAS,null,null,null,FUNCIONAMENTO DE INSTITUICOES FEDERAI - NO DF,23106.119475/2021-29,"C.CUSTO:FDD// XICARA PARA CAFÉ E CHA// REQ. 7088/2022// PREG. 01/2022 PROT:11010106(718,70)// SEI N.23106.142022/2022-87",3614,MAT. CONSUMO,NOVA MESA DISTRIBUIDORA DE ALIMENTOS E UTILIDADES LTDA,null,UNIVERSIDADE DE BRASÍLIA,null,718.70,ordinário,605
PRÓPRIOS -  PREST.SERVICOS FUB/FUNDO,147.00,FISCAL,PR 1/2022 - UNB,2022,23/12/2022,CRÉDITOS DISTRIBUÍDOS PARA AS UNIDADES ACADÊMICAS,null,null,null,FUNCIONAMENTO DE INSTITUICOES FEDERAI - NO DF,23106.119475/2021-29,"C.CUSTO:FDD// COPO VIDRO 300ML// REQ. 7087/2022// PREG. 01/2022PROT:11010106(147,00)// SEI N.23106.142022/2022-87",3613,MAT. CONSUMO,M.Z.A.S SUPERMERCADO EIRELI,null,UNIVERSIDADE DE BRASÍLIA,null,147.00,ordinário,605
PRÓPRIOS -  PREST.SERVICOS FUB/FUNDO,4699.00,FISCAL,PR 28/2022 - UNB,2022,23/12/2022,CRÉDITOS DISTRIBUÍDOS PARA AS UNIDADES ACADÊMICAS,null,null,null,FUNCIONAMENTO DE INSTITUICOES FEDERAI - NO DF,23106.054309/2021-70,"C.CUSTO:IDA// AQUISIÇÃO DE FURADEIRA DE IMPACTO E VENTILADOR// REQ. 7086// PREG. 28/2022PROT:11010114(4699,00)// SEI N.23106.140850/2022-81// 2022ND006304",3612,EQUIP. MATERIAL PERMANENTE,VENGOV PRODUTOS E SERVICOS LTDA,null,UNIVERSIDADE DE BRASÍLIA,null,4699.00,ordinário,605
PRÓPRIOS -  PREST.SERVICOS FUB/FUNDO,0.00,FISCAL,PR 28/2022 - UNB,2022,23/12/2022,CRÉDITOS DISTRIBUÍDOS PARA AS UNIDADES ACADÊMICAS,null,3880.00,null,FUNCIONAMENTO DE INSTITUICOES FEDERAI - NO DF,23106.140850/2022-81,"C.CUSTO:IDA// AQUISIÇÃO DE BEBEDOURO// MEMORANDO Nº 81/2022/IDA / VIS (9007082)PROT:11010114(4699,00)// 2022ND006304// PREG.28/2022// REQ. 6911/2022",3611,EQUIP. MATERIAL PERMANENTE,ARGOS LTDA,null,UNIVERSIDADE DE BRASÍLIA,null,3880.00,global,605
RECURSOS ORDINÁRIOS,29231.64,FISCAL,PR,2022,23/12/2022,SERVICOS DE DESIGNER INSTRUCIONAL,null,null,null,REESTRUTURACAO E MODERNIZACAO DAS INS - NO DF,23106.148096/2022-27,"C.CUSTO:DTER// SERVIÇOS DE DESIGNER GRAFICO// CONTRATO 147/2022 PROT:11011007(29231,64)// MEMO N. 265/2022/DAF / DCA / CDE / DPDE//SEI N. 23106.148096/2022-27",3609,SERV. PESSOA JURÍDICA,MOOVE.ON CONSULTORIA EM INOVACAO LTDA,null,UNIVERSIDADE DE BRASÍLIA,null,29231.64,global,605
RECURSOS DIR.ARRECADADOS(PROPRIOS)-FUB -,479000.00,FISCAL,PR 55/2022 - UNB,2022,23/12/2022,ARRECADACOES DA FAL - HORTIFRUTIGRANJEIRO,null,null,null,FUNCIONAMENTO DE INSTITUICOES FEDERAI - NO DF,23106.100419/2022-00,"C. CUSTO FAL PROT:110116(479000,00)AQUISIÇÃO DE ANIMAIS BOVINOS PARA UTILIZAÇÃO EM PESQUISASDO CENTRO DE CAPACITAÇÃO EM BOVINOCULTURA DE LEITE DA FALI: 23106.100419/2022-00",3607,MAT. CONSUMO,REND BRASIL LTDA,null,UNIVERSIDADE DE BRASÍLIA,null,479000.00,global,605
RECURSOS ORDINÁRIOS,38268.60,FISCAL,PR,2022,23/12/2022,SERVICOS DE DESIGNER GRÁFICO,null,null,null,REESTRUTURACAO E MODERNIZACAO DAS INS - NO DF,23106.148085/2022-47,"C.CUSTO:DTER// SERVIÇOS DE DESIGNER GRAFICO//  CONTRATO 147/2022PROT:11011007(38268,60)// MEMO N. 264/2022/DAF / DCA / CDE / DPDESEI N.23106.148085/2022-47",3606,SERV. PESSOA JURÍDICA,ARTES GRAFICA COMERCIO E REPRESENTACOES EIRELI,null,UNIVERSIDADE DE BRASÍLIA,null,38268.60,global,605
PRÓPRIOS -  PREST.SERVICOS FUB/FUNDO,650.00,FISCAL,PR 34/2021 - UNB,2022,23/12/2022,CRÉDITOS DISTRIBUÍDOS PARA AS UNIDADES ACADÊMICAS,null,null,null,FUNCIONAMENTO DE INSTITUICOES FEDERAI - NO DF,23106.053995/2021-61,"C. CUSTO IGD PROT:11010117{SM6795/2022(650,00) PR 34/2021AQUISIÇÃO DE MULTÍMETRO DIGITALSEI: 23106.142089/2022-11 2022ND006254",3605,EQUIP. MATERIAL PERMANENTE,N.H.NETO COMERCIO DE INSTRUMENTOS DE MEDICAO,null,UNIVERSIDADE DE BRASÍLIA,null,650.00,ordinário,605
PRÓPRIOS -  PREST.SERVICOS FUB/FUNDO,2900.00,FISCAL,PR 34/2021 - UNB,2022,23/12/2022,CRÉDITOS DISTRIBUÍDOS PARA AS UNIDADES ACADÊMICAS,null,null,null,FUNCIONAMENTO DE INSTITUICOES FEDERAI - NO DF,23106.053995/2021-61,"C. CUSTO IGD PROT:11010117{SM7002/2022(2900,00) PR 34/2021AQUISIÇÃO DE BALANÇA, ANALÍTICA, ELETRÔNICA, DIGITALSEI: 23106.142089/2022-11 2022ND006254",3604,EQUIP. MATERIAL PERMANENTE,TK SERVICE EIRELI,null,UNIVERSIDADE DE BRASÍLIA,null,2900.00,ordinário,605
PRÓPRIOS -  PREST.SERVICOS FUB/FUNDO,10000.00,FISCAL,PR,2022,23/12/2022,CRÉDITOS DISTRIBUÍDOS PARA AS UNIDADES ACADÊMICAS,null,null,null,FUNCIONAMENTO DE INSTITUICOES FEDERAI - NO DF,23106.140197/2022-50,"C.CUSTO:IQD//  PASSAGEM INTERNACIONAL// MEMORANDO Nº 211/2022/IQ / SECADMPROT:11010122(10000,00)// 2022ND006301// SEI N.23106.140197/2022-50",3601,PASSAGENS,VOETUR TURISMO E REPRESENTACOES LTDA,null,UNIVERSIDADE DE BRASÍLIA,null,10000.00,estimativo,605
PRÓPRIOS -  PREST.SERVICOS FUB/FUNDO,19379.90,FISCAL,PR 202/2022 - UNB,2022,23/12/2022,CRÉDITOS DISTRIBUÍDOS PARA AS UNIDADES ACADÊMICAS,null,null,null,FUNCIONAMENTO DE INSTITUICOES FEDERAI - NO DF,23106.038751/2022-30,"C. CUSTO IGD PROT:11010117{SM7097/2022(12891,00)} PR 202/2022 REQ 7095/2022 (6488,90)AQUISIÇÃO DE MICROCOMPUTADORESSEI: 23106.142119/2022-90 2022ND006290",3600,EQUIPAMENTOS E MATERIAL PERMANENTE,DATEN TECNOLOGIA LTDA,null,UNIVERSIDADE DE BRASÍLIA,null,19379.90,ordinário,605
CUSTOS INDIRETOS - UNIDADES DIVERSAS,90844.60,FISCAL,PR 202/2022 - UNB,2022,23/12/2022,CUSTOS INDIRETOS UNIDADE CAPTADORA,null,null,null,FUNCIONAMENTO DE INSTITUICOES FEDERAI - NO DF,23106.038751/2022-30,"C. CUSTO IGD PROT:11010117{SM7095/2022(90844,60)} PR 202/2022AQUISIÇÃO DE MICROCOMPUTADORESSEI: 23106.142119/2022-90 2022ND006290",3599,EQUIPAMENTOS E MATERIAL PERMANENTE,DATEN TECNOLOGIA LTDA,null,UNIVERSIDADE DE BRASÍLIA,null,90844.60,ordinário,605
TAXA DE ALUNO ESPECIAL -FUB,6488.90,FISCAL,PR 202/2022 - UNB,2022,23/12/2022,PROGR DE PóS-GRADUACAO EM FILOSOFIA PPG-FIL,null,null,null,FUNCIONAMENTO DE INSTITUICOES FEDERAI - NO DF,23106.038751/2022-30,"C. CUSTO PPGFIL PROT:11010118{SM7144/2022(6488,90)AQUISIÇÃO DE MICROCOMPUTADOR PR 202/2022SEI: 23106.142149/2022-04 DEMONSTRATIVO (9125017)",3596,EQUIPAMENTOS E MATERIAL PERMANENTE,DATEN TECNOLOGIA LTDA,null,UNIVERSIDADE DE BRASÍLIA,null,6488.90,ordinário,605
PRÓPRIOS -  PREST.SERVICOS FUB/FUNDO,4250.00,FISCAL,PR 202/2022 - UNB,2022,23/12/2022,CRÉDITOS DISTRIBUÍDOS PARA AS UNIDADES ADMINISTRATIVAS,null,null,null,FUNCIONAMENTO DE INSTITUICOES FEDERAI - NO DF,23106.038751/2022-30,"C. CUSTO: ACE SEI:23106.092496/2022-71ATT: RODRIGO DE FREITAS NOGUEIRA 2022ND000000MEMO.048/2022/ACE PROT:110141{SM7278/2022(4250,00)}MATERIAL DE PERMANENTE - PEDIDO:7278/2022 - PREG:202/2022EQUIPAMENTOS TIC - NOTEBOOK TIPO PADRÃO",3587,EQUIPAMENTOS E MATERIAL PERMANENTE,DATEN TECNOLOGIA LTDA,null,UNIVERSIDADE DE BRASÍLIA,null,4250.00,global,605
RECURSOS DIRETAM.ARREC FUNDAÇÃO UNIV.BRASÍLIA,4250.00,FISCAL,PR,2022,23/12/2022,FUNCIONAMENTO GERAL,null,null,null,FUNCIONAMENTO DE INSTITUICOES FEDERAI - NO DF,23106.140979/2022-99,"C. CUSTO: GRE// PROT:1101{SM7320/2022(4250,00)} PR 202/2022) AQUISIÇÃO DE NOTEBOOKS//SEI: 23106.140979/2022-99// 2022ND06225/2022ND006310",3585,EQUIP. MATERIAL PERMANENTE,DATEN TECNOLOGIA LTDA,null,UNIVERSIDADE DE BRASÍLIA,null,4250.00,global,605
TAXA DE ALUNO ESPECIAL -FUB,750.00,FISCAL,PR 23/2022 - UNB,2022,22/12/2022,PROGRAMA DE POS-GRADUACAO EM DIREITO - FD,null,null,null,FUNCIONAMENTO DE INSTITUICOES FEDERAI - NO DF,23106.031609/2022-61,"C.CUSTO: FDD -AT- INEZ LOPES MATOS CARNEIRO - PROT:110106{SM7082/2022(750,00)}         MATERIAL DE CONSUMO-PEDIDO:7082/2022 -2022ND006263 - PREG:023/2022MATERIAL DE COPA E COZINHA - GARRAFA TÉRMICA - INOX - 2 LITROSMEMO.S.N/2022/FD/PPGD - S.E.I 23106.141998/2022-32",3580,MAT. CONSUMO,CDV COMERCIAL DE ALIMENTOS EIRELI,null,UNIVERSIDADE DE BRASÍLIA,null,750.00,ordinário,605
PRÓPRIOS -  PREST.SERVICOS FUB/FUNDO,1000.00,FISCAL,PR 23/2022 - UNB,2022,22/12/2022,CRÉDITOS DISTRIBUÍDOS PARA AS UNIDADES ADMINISTRATIVAS,null,null,null,FUNCIONAMENTO DE INSTITUICOES FEDERAI - NO DF,23106.031609/2022-61,"C.CUSTO: DPG -AT- SORAYA RODRIGUES DE SOUSA - PROT:110108{SM7072/2022(1000,00)}         MATERIAL DE CONSUMO-PEDIDO:7072/2022 -2022ND006251 - PREG:001/2022MATERIAL DE COPA E COZINHA - GARRAFA TÉRMICA - INOX - 2 LITROSMEMO.S.N/2022/DPG/APAF - S.E.I 23106.141985/2022-63",3574,MAT. CONSUMO,CDV COMERCIAL DE ALIMENTOS EIRELI,null,UNIVERSIDADE DE BRASÍLIA,null,1000.00,ordinário,605
PRÓPRIOS -  PREST.SERVICOS FUB/FUNDO,196.00,FISCAL,PR 1/2022 - UNB,2022,22/12/2022,CRÉDITOS DISTRIBUÍDOS PARA AS UNIDADES ADMINISTRATIVAS,null,null,null,FUNCIONAMENTO DE INSTITUICOES FEDERAI - NO DF,23106.119475/2021-29,"C.CUSTO: DPG -AT- SORAYA RODRIGUES DE SOUSA - PROT:110108{SM7079/2022(196,00)}         MATERIAL DE CONSUMO-PEDIDO:7079/2022 -2022ND006251 - PREG:001/2022MATERIAL DE COPA E COZINHA - COPO DE VIDRO - CAPACIDADE 300 MLMEMO.S.N/2022/DPG/APAF - S.E.I 23106.141985/2022-63",3573,MAT. CONSUMO,M.Z.A.S SUPERMERCADO EIRELI,null,UNIVERSIDADE DE BRASÍLIA,null,196.00,ordinário,605
PRÓPRIOS -  PREST.SERVICOS FUB/FUNDO,168.03,FISCAL,PR 26/2022 - SEC.ADM./PR,2022,22/12/2022,CRÉDITOS DISTRIBUÍDOS PARA AS UNIDADES ADMINISTRATIVAS,null,null,null,FUNCIONAMENTO DE INSTITUICOES FEDERAI - NO DF,23106.000127/2022-77,"C.CUSTO: CER -AT- ADILIA SILEIDI LÓPEZ MELARA - PROT:110136{SM7198/2022(168,03)}         MATERIAL PERMANENTE-PEDIDO:7198/2022 -2022ND006162 - PREG:026/2022APARELHOS. E UTENS. DOMÉSTICOS - LIQUIDIFICADOR 2LMEMO.S.N/2022/UNB CERRADO - S.E.I 23106.144321/2022-56 - UASG 110001 - SEC.ADM./PR",3562,EQUIP. MATERIAL PERMANENTE,ARGOS LTDA,null,UNIVERSIDADE DE BRASÍLIA,null,168.03,ordinário,605
PRÓPRIOS -  PREST.SERVICOS FUB/FUNDO,673.75,FISCAL,PR 31/2021 - UNB,2022,22/12/2022,CRÉDITOS DISTRIBUÍDOS PARA AS UNIDADES ADMINISTRATIVAS,null,null,null,FUNCIONAMENTO DE INSTITUICOES FEDERAI - NO DF,23106.142451/2022-54,"C. CUSTO: CEAD.      PROT:110124(673,75)       SEI 23106.142451/2022-54.SERVIÇOS DE COFFEE BREAK PARA EVENTO VISITA TÉCNICA DA CAPES.2022ND006244.     MEMO 125/2022/CEAD/CPF.",3561,SERV. PESSOA JURÍDICA,ISM GOMES DE MATTOS EIRELI,null,UNIVERSIDADE DE BRASÍLIA,null,673.75,ordinário,605
PRÓPRIOS -  PREST.SERVICOS FUB/FUNDO,1422.90,FISCAL,PR,2022,22/12/2022,CRÉDITOS DISTRIBUÍDOS PARA AS UNIDADES ADMINISTRATIVAS,null,null,null,FUNCIONAMENTO DE INSTITUICOES FEDERAI - NO DF,23106.142391/2022-70,"C. CUSTO: CEAD.       PROT:110124(1422,90)       SEI 23106.142391/2022-70.SERVIÇOS DE COFFEE BREAK.2022ND006292.     MEMO 0123/2022/CEAD/CPF.",3560,SERV. PESSOA JURÍDICA,ISM GOMES DE MATTOS EIRELI,null,UNIVERSIDADE DE BRASÍLIA,null,1422.90,ordinário,605
PRÓPRIOS -  PREST.SERVICOS FUB/FUNDO,1308.00,FISCAL,PR 26/2022 - SEC.ADM./PR,2022,22/12/2022,CRÉDITOS DISTRIBUÍDOS PARA AS UNIDADES ADMINISTRATIVAS,null,null,null,FUNCIONAMENTO DE INSTITUICOES FEDERAI - NO DF,23106.000127/2022-77,"C.CUSTO: CER -AT- ADILIA SILEIDI LÓPEZ MELARA - PROT:110136{SM7197/2022(1308,00)}         MATERIAL PERMANENTE-PEDIDO:7197/2022 -2022ND006162 - PREG:026/2022APARELHOS. E UTENS. DOMÉSTICOS - FRIGOBAR - CAPACIDADE 76LMEMO.S.N/2022/UNB CERRADO - S.E.I 23106.144321/2022-56 - UASG 110001 - SEC.ADM./PR",3559,EQUIP. MATERIAL PERMANENTE,XM CONSTRUCOES EIRELI,null,UNIVERSIDADE DE BRASÍLIA,null,1308.00,ordinário,605
PRÓPRIOS -  PREST.SERVICOS FUB/FUNDO,411.58,FISCAL,PR 26/2022 - SEC.ADM./PR,2022,22/12/2022,CRÉDITOS DISTRIBUÍDOS PARA AS UNIDADES ADMINISTRATIVAS,null,null,null,FUNCIONAMENTO DE INSTITUICOES FEDERAI - NO DF,23106.000127/2022-77,"C.CUSTO: CER -AT- ADILIA SILEIDI LÓPEZ MELARA - PROT:110136{SM7196/2022(411,58)}         MATERIAL PERMANENTE-PEDIDO:7196/2022 -2022ND006162 - PREG:026/2022APARELHOS. E UTENS. DOMÉSTICOS - VENTILADOR - TIPO COLUNA E SANDUICHEIRAMEMO.S.N/2022/UNB CERRADO - S.E.I 23106.144321/2022-56 - UASG 110001 - SEC.ADM./PR",3557,EQUIP. MATERIAL PERMANENTE,F & R SOLUCOES ADMINISTRATIVAS LTDA,null,UNIVERSIDADE DE BRASÍLIA,null,411.58,ordinário,605
PRÓPRIOS -  PREST.SERVICOS FUB/FUNDO,774.20,FISCAL,PR 26/2022 - SEC.ADM./PR,2022,22/12/2022,CRÉDITOS DISTRIBUÍDOS PARA AS UNIDADES ADMINISTRATIVAS,null,null,null,FUNCIONAMENTO DE INSTITUICOES FEDERAI - NO DF,23106.000127/2022-77,"C.CUSTO: CER -AT- ADILIA SILEIDI LÓPEZ MELARA - PROT:110136{SM7195/2022(774,20)}         MATERIAL PERMANENTE-PEDIDO:7195/2022 -2022ND006162 - PREG:026/2022APARELHOS. E UTENS. DOMÉSTICOS - FOGÃO 4 BOCASMEMO.S.N/2022/UNB CERRADO - S.E.I 23106.144321/2022-56 - UASG 110001 - SEC.ADM./PR",3556,EQUIP. MATERIAL PERMANENTE,ARGOS LTDA,null,UNIVERSIDADE DE BRASÍLIA,null,774.20,ordinário,605
PRÓPRIOS -  PREST.SERVICOS FUB/FUNDO,77.34,FISCAL,PR 1/2022 - UNB,2022,22/12/2022,CRÉDITOS DISTRIBUÍDOS PARA AS UNIDADES ADMINISTRATIVAS,null,null,null,FUNCIONAMENTO DE INSTITUICOES FEDERAI - NO DF,23106.119475/2021-29,"C.CUSTO: CER -AT- ADILIA SILEIDI LÓPEZ MELARA - PROT:110136{SM7221/2022(77,40)}         MATERIAL DE CONSUMO-PEDIDO:7221/2022 -2022ND006234 - PREG:001/2022MATERIAL DE EXPEDIENTE - MOUSE PAD -  MATERIAL BORRACHA ANTIDERRAPANTEMEMO.S.N/2022/UNB CERRADO - S.E.I 23106.144321/2022-56",3553,MAT. CONSUMO,DARLU INDUSTRIA TEXTIL LTDA,null,UNIVERSIDADE DE BRASÍLIA,null,77.34,ordinário,605
RECURSOS DIRETAM.ARREC FUNDAÇÃO UNIV.BRASÍLIA,85940.00,FISCAL,PR 202/2022 - UNB,2022,22/12/2022,FUNCIONAMENTO GERAL,null,null,null,FUNCIONAMENTO DE INSTITUICOES FEDERAI - NO DF,23106.140456/2022-42,"C.CUSTO:DAF// AQUISIÇÃO DE COMPUTADORES// 2022ND006181PROT:110110(85940,00)// MEMORANDO Nº N. 26/2022/DAF// SEI N.23106.140456/2022-42",3552,EQUIP. MATERIAL PERMANENTE,DATEN TECNOLOGIA LTDA,null,UNIVERSIDADE DE BRASÍLIA,null,85940.00,global,605
PRÓPRIOS -  PREST.SERVICOS FUB/FUNDO,98.00,FISCAL,PR 1/2022 - UNB,2022,22/12/2022,CRÉDITOS DISTRIBUÍDOS PARA AS UNIDADES ADMINISTRATIVAS,null,null,null,FUNCIONAMENTO DE INSTITUICOES FEDERAI - NO DF,23106.119475/2021-29,"C.CUSTO: CER -AT- ADILIA SILEIDI LÓPEZ MELARA - PROT:110136{SM7217/2022(98,00)}         MATERIAL DE CONSUMO-PEDIDO:7217/2022 -2022ND006234 - PREG:001/2022MATERIAL DE COPA E COZINHA - COPO DE VIDRO - CAPACIDADE 300 MLMEMO.S.N/2022/UNB CERRADO - S.E.I 23106.144321/2022-56",3551,MAT. CONSUMO,M.Z.A.S SUPERMERCADO EIRELI,null,UNIVERSIDADE DE BRASÍLIA,null,98.00,ordinário,605
PRÓPRIOS -  PREST.SERVICOS FUB/FUNDO,59.80,FISCAL,PR 1/2022 - UNB,2022,22/12/2022,CRÉDITOS DISTRIBUÍDOS PARA AS UNIDADES ADMINISTRATIVAS,null,null,null,FUNCIONAMENTO DE INSTITUICOES FEDERAI - NO DF,23106.119475/2021-29,"C.CUSTO: CER -AT- ADILIA SILEIDI LÓPEZ MELARA - PROT:110136{SM7218/2022(59,80)}         MATERIAL DE CONSUMO-PEDIDO:7218/2022 -2022ND006234 - PREG:001/2022MATERIAL DE COPA E COZINHA - COADOR DE CAFÉ - TALHER DESCARTÁVELMEMO.S.N/2022/UNB CERRADO - S.E.I 23106.144321/2022-56",3550,MAT. CONSUMO,G B LEITE COMERCIO E MERCEARIA,null,UNIVERSIDADE DE BRASÍLIA,null,59.80,ordinário,605
PRÓPRIOS -  PREST.SERVICOS FUB/FUNDO,69.00,FISCAL,PR 1/2022 - UNB,2022,22/12/2022,CRÉDITOS DISTRIBUÍDOS PARA AS UNIDADES ADMINISTRATIVAS,null,null,null,FUNCIONAMENTO DE INSTITUICOES FEDERAI - NO DF,23106.119475/2021-29,"C.CUSTO: CER -AT- ADILIA SILEIDI LÓPEZ MELARA - PROT:110136{SM7219/2022(69,00)}         MATERIAL DE CONSUMO-PEDIDO:7219/2022 -2022ND006234 - PREG:001/2022MATERIAL DE EXPEDIENTE - PORTA OBJETO - ESCRITÓRIOMEMO.S.N/2022/UNB CERRADO - S.E.I 23106.144321/2022-56",3548,MAT. CONSUMO,ALEGRENSE DISTRIBUIDORA E REPRESENTACAO COMERCIAL LTDA,null,UNIVERSIDADE DE BRASÍLIA,null,69.00,ordinário,605
PRÓPRIOS -  PREST.SERVICOS FUB/FUNDO,38250.00,FISCAL,PR 202/2022 - UNB,2022,22/12/2022,CRÉDITOS DISTRIBUÍDOS PARA AS UNIDADES ADMINISTRATIVAS,null,null,null,FUNCIONAMENTO DE INSTITUICOES FEDERAI - NO DF,23106.038751/2022-30,"C. CUSTO GRE PROT:1101{SM7320/2022(38250,00)} PR 202/2022) AQUISIÇÃO DE NOTEBOOKS//SEI: 23106.140979/2022-99// 2022ND06224",3547,EQUIPAMENTOS E MATERIAL PERMANENTE,DATEN TECNOLOGIA LTDA,null,UNIVERSIDADE DE BRASÍLIA,null,38250.00,ordinário,605
PRÓPRIOS -  PREST.SERVICOS FUB/FUNDO,442.91,FISCAL,PR 1/2022 - UNB,2022,22/12/2022,CRÉDITOS DISTRIBUÍDOS PARA AS UNIDADES ADMINISTRATIVAS,null,null,null,FUNCIONAMENTO DE INSTITUICOES FEDERAI - NO DF,23106.119475/2021-29,"C.CUSTO: CER -AT- ADILIA SILEIDI LÓPEZ MELARA - PROT:110136{SM7220/2022(442,91)}         MATERIAL DE CONSUMO-PEDIDO:7220/2022 -2022ND006234 - PREG:001/2022MATERIAL DE COPA E COZINHA - AÇUCAREIRO - BANDEJA - JARRA - TAÇAMEMO.S.N/2022/UNB CERRADO - S.E.I 23106.144321/2022-56",3546,MAT. CONSUMO,NOVA MESA DISTRIBUIDORA DE ALIMENTOS E UTILIDADES LTDA,null,UNIVERSIDADE DE BRASÍLIA,null,442.91,ordinário,605
PRÓPRIOS -  PREST.SERVICOS FUB/FUNDO,625.00,FISCAL,PR 32/2022 - UNB,2022,22/12/2022,CRÉDITOS DISTRIBUÍDOS PARA AS UNIDADES ADMINISTRATIVAS,null,null,null,FUNCIONAMENTO DE INSTITUICOES FEDERAI - NO DF,23106.050631/2022-19,"C. CUSTO: DPO.       PROT:110135{SM7260/2022(625,00)}      SEI 23106.148419/2022-82.   AQUISIÇÃO DE TECLADO PARA COMPUTADOR.2022ND006208.     MEMO 245/2022/DPO/SEC.",3545,MAT. CONSUMO,HYPER TECHNOLOGIES COMERCIO DE INFORMATICA E SERVICOS EIRELI,null,UNIVERSIDADE DE BRASÍLIA,null,625.00,ordinário,605
RECURSOS ORDINÁRIOS,1500000.00,FISCAL,PR 1/2021 - UNB,2022,22/12/2022,ALIMENTACAO,null,null,null,REESTRUTURACAO E MODERNIZACAO DAS INS - NO DF,23106.043868/2022-35,"C. CUSTO DAC PROT:110109(1500000,00) PR: 01/2021ATENDIMENTO DE DESPESAS COM ALIMENTAÇÃO (RESTAURANTE UNIVERSITÁRIO)SEI: 23106.043868/2022-35 2022ND006285",3544,SERV. PESSOA JURÍDICA,ISM GOMES DE MATTOS EIRELI,null,UNIVERSIDADE DE BRASÍLIA,null,1500000.00,global,605
PRÓPRIOS -  PREST.SERVICOS FUB/FUNDO,4150.00,FISCAL,PR 1/2022 - 32  GAC,2022,22/12/2022,CRÉDITOS DISTRIBUÍDOS PARA AS UNIDADES ADMINISTRATIVAS,null,null,null,FUNCIONAMENTO DE INSTITUICOES FEDERAI - NO DF,23106.001077/2022-48,"C. CUSTO: DPO.       PROT:110135{SM7258/2022(4150,00)}      SEI 23106.148443/2022-11.AQUISIÇÃO DE REFRIGERADOR DUPLEX.DEMONSTRATIVO (9118174).    MEMO 245/2022/DPO/SEC.",3541,EQUIP. MATERIAL PERMANENTE,F & R SOLUCOES ADMINISTRATIVAS LTDA,null,UNIVERSIDADE DE BRASÍLIA,null,4150.00,ordinário,605
PRÓPRIOS -  PREST.SERVICOS FUB/FUNDO,12000.00,FISCAL,PR 318/2020 - UNB,2022,22/12/2022,CRÉDITOS DISTRIBUÍDOS PARA AS UNIDADES ACADÊMICAS,null,null,null,FUNCIONAMENTO DE INSTITUICOES FEDERAI - NO DF,23106.143497/2022-91,"C. CUSTO IGD PROT:11010117(12000,00) PR 318/2020AQUISIÇÃO DE 01 NOBREAK (UPS) ONLINE MONOFÁSICO DE 6 KVA¿SEI: 23106.143497/2022-91 DEMONSTRATIVO (9119979)",3530,EQUIP. MATERIAL PERMANENTE,FONTES BH SISTEMAS DE ENERGIA EIRELI,null,UNIVERSIDADE DE BRASÍLIA,null,12000.00,global,605
RECURSOS DIRETAM.ARREC FUNDAÇÃO UNIV.BRASÍLIA,2835.18,FISCAL,PR 28/2022 - UNB,2022,22/12/2022,FUNCIONAMENTO GERAL,null,null,null,FUNCIONAMENTO DE INSTITUICOES FEDERAI - NO DF,23106.054309/2021-70,"C. CUSTO: PRC. PROT:110105{SM6522/2022(2835,18)} SEI 23106.140201/2022-80.AQUISIÇÃO DE BEBEDOURO INDUSTRIAL.2022ND005762. DESPACHO PRC/DIMAT/COEA",3529,EQUIP. MATERIAL PERMANENTE,ARGOS LTDA,null,UNIVERSIDADE DE BRASÍLIA,null,2835.18,ordinário,605
PRÓPRIOS -  PREST.SERVICOS FUB/FUNDO,22100.00,FISCAL,DL 10038/2022 - UNB,2022,22/11/2022,CRÉDITOS DISTRIBUÍDOS PARA AS UNIDADES ACADÊMICAS,null,null,null,FUNCIONAMENTO DE INSTITUICOES FEDERAI - NO DF,23106.108371/2022-70,"C. CUSTO: FSD SEI:23106.108371/2022-70 ATT: ANTONIO CAMPOS DE CARVALHO 2022ND004473 MEMO.S.N/2022/FS/FAR PROT:11010110(22100,00) SERVIÇOS DE TERCEIROS - PEDIDO:0000/2022 - DISPENSA: 10038/2022 PAG.DE FRETES TRANSPORTES E ENCOMENDAS - TRANSPORTE DE ANIMAIS VIVOS DE EXPERIMENTAÇÃO",3519,SERV. PESSOA JURÍDICA,ROBERTO GIANNICHI FILHO - ME,null,UNIVERSIDADE DE BRASÍLIA,null,22100.00,global,605
PRÓPRIOS -  PREST.SERVICOS FUB/FUNDO,34000.00,FISCAL,PR 202/2022 - UNB,2022,22/12/2022,CRÉDITOS DISTRIBUÍDOS PARA AS UNIDADES ACADÊMICAS,null,null,null,FUNCIONAMENTO DE INSTITUICOES FEDERAI - NO DF,23106.141670/2022-16,"C. CUSTO: ILD.     PROT:11010119{SM7036/2022(34000,00)}       SEI 23106.141670/2022-16.AQUISIÇÃO DE NOTEBOOK.2022ND006210.      MEMO 114/2022/IL/ILDSF.     PREGÃO 202/2022.",3514,EQUIP. MATERIAL PERMANENTE,DATEN TECNOLOGIA LTDA,null,UNIVERSIDADE DE BRASÍLIA,null,34000.00,global,605
PRÓPRIOS -  PREST.SERVICOS FUB/FUNDO,4150.00,FISCAL,PR 1/2022 - 32  GAC,2022,22/12/2022,CRÉDITOS DISTRIBUÍDOS PARA AS UNIDADES ADMINISTRATIVAS,null,null,null,FUNCIONAMENTO DE INSTITUICOES FEDERAI - NO DF,23106.001077/2022-48,"C. CUSTO AUD PROT:110103{SM7222/2022(4150,00)} AQUISIÇÃO DE REFRIGERADOR DUPLEX, 450L PR: 01/2022 UASG 160058SEI: 23106.144335/2022-70 NOTA DE DOTAÇÃO 2022ND006168 (9119411)",3513,EQUIP. MATERIAL PERMANENTE,F & R SOLUCOES ADMINISTRATIVAS LTDA,null,UNIVERSIDADE DE BRASÍLIA,null,4150.00,ordinário,605
PRÓPRIOS -  PREST.SERVICOS FUB/FUNDO,1100.00,FISCAL,PR 1/2022 - 32  GAC,2022,22/12/2022,CRÉDITOS DISTRIBUÍDOS PARA AS UNIDADES ADMINISTRATIVAS,null,null,null,FUNCIONAMENTO DE INSTITUICOES FEDERAI - NO DF,23106.001077/2022-48,"C. CUSTO AUD PROT:110103{SM7223/2022(1100,00) PR 01/2022 UASG 160058AQUISIÇÃO DE ELETRODOMÉSTICOS SEI: 23106.144337/2022-69 NOTA DE DOTAÇÃO 2022ND006169 (9119406)",3512,EQUIP. MATERIAL PERMANENTE,JOICE LARA ROSA,null,UNIVERSIDADE DE BRASÍLIA,null,1100.00,ordinário,605
RECURSOS DIRETAM.ARREC FUNDAÇÃO UNIV.BRASÍLIA,67120.35,FISCAL,PR 34/2022 - UNB,2022,22/12/2022,SERVIÇOS DE TRANSPORTE DE CARGAS AÉREAS,null,null,null,FUNCIONAMENTO DE INSTITUICOES FEDERAI - NO DF,23106.068904/2022-73,"C. CUSTO CONTRATO FIRMADO ENTRE A UNB E A EMPRESA NK LOGISTICA E TRANSPORTES LTDACUJO OBJETO É A PRESTAÇÃO DE SERVIÇOS DE TRANSPORTE DE CARGAS SEI: 23106.068904/2022-73 2022ND006205",3510,SERV. PESSOA JURÍDICA,NK LOGISTICA E TRANSPORTES LTDA,null,UNIVERSIDADE DE BRASÍLIA,null,67120.35,global,605
RECURSOS DIRETAM.ARREC FUNDAÇÃO UNIV.BRASÍLIA,85979.80,FISCAL,PR 202/2022 - UNB,2022,22/12/2022,FUNCIONAMENTO GERAL,null,null,null,FUNCIONAMENTO DE INSTITUICOES FEDERAI - NO DF,23106.038751/2022-30,"C. CUSTO GRE PROT:1101{SM7307/2022(85979,80)} PR 202/2022) AQUISIÇÃO DE  DE MICROCOMPUTADORES E NOTEBOOKSSEI: 23106.140979/2022-99 2022ND006225",3508,EQUIPAMENTOS E MATERIAL PERMANENTE,DATEN TECNOLOGIA LTDA,null,UNIVERSIDADE DE BRASÍLIA,null,85979.80,ordinário,605
RECURSOS DIR.ARRECADADOS(PROPRIOS)-FUB -,2250.00,FISCAL,PR 207/2021 - UNB,2022,22/12/2022,RECEITAS LAB IG - ANALISES LABORATORIAIS,null,null,null,FUNCIONAMENTO DE INSTITUICOES FEDERAI - NO DF,23106.079963/2020-13,"C. CUSTO IGD PROT:11010117{SM7154/2022(2250,00) PR 207/2021AQUISIÇÃO DE TABLET, TELA 9.1SEI: 23106.142954/2022-20 ANEXO 2022ND006178 (9119779)",3507,EQUIPAMENTOS E MATERIAL PERMANENTE,POLLIANA IOLANDA ASSUNCAO SILVA NUNES,null,UNIVERSIDADE DE BRASÍLIA,null,2250.00,ordinário,605
PRÓPRIOS -  PREST.SERVICOS FUB/FUNDO,0.00,FISCAL,PR 318/2020 - UNB,2022,22/12/2022,CRÉDITOS DISTRIBUÍDOS PARA AS UNIDADES ACADÊMICAS,null,12000.00,null,FUNCIONAMENTO DE INSTITUICOES FEDERAI - NO DF,23106.143497/2022-91,"C. CUSTO IGD PROT:11010117(12000,00) PR 318/2020AQUISIÇÃO DE 01 NOBREAK (UPS) ONLINE MONOFÁSICO DE 6 KVA¿SEI: 23106.143497/2022-91 DEMONSTRATIVO (9119979)",3506,EQUIP. MATERIAL PERMANENTE,FONTES BH SISTEMAS DE ENERGIA EIRELI,null,UNIVERSIDADE DE BRASÍLIA,null,12000.00,global,605
PRÓPRIOS -  PREST.SERVICOS FUB/FUNDO,21485.00,FISCAL,PR 202/2022 - UNB,2022,22/12/2022,CRÉDITOS DISTRIBUÍDOS PARA AS UNIDADES ACADÊMICAS,null,null,null,FUNCIONAMENTO DE INSTITUICOES FEDERAI - NO DF,23106.038751/2022-30,"C. CUSTO FCI PROT:110133{SM7297/2022(21485,00) AQUISIÇÃO DE 5 COMPUTADORES TIPO PADRÃO PR: 202/2022SEI: 23106.148098/2022-16 2022ND006068",3503,EQUIPAMENTOS E MATERIAL PERMANENTE,DATEN TECNOLOGIA LTDA,null,UNIVERSIDADE DE BRASÍLIA,null,21485.00,ordinário,605
PRÓPRIOS -  PREST.SERVICOS FUB/FUNDO,312.00,FISCAL,PR 201/2022 - UNB,2022,21/12/2022,CRÉDITOS DISTRIBUÍDOS PARA AS UNIDADES ADMINISTRATIVAS,null,null,null,FUNCIONAMENTO DE INSTITUICOES FEDERAI - NO DF,23106.074895/2020-98,"C.CUSTO:OUV// CAMERA VIDEOCONFERENCIA WEBCAM// PREG. 201/2022PROT:110139(312,00)// REQ. 3737/2022/SEI N.23106.146560/2022-41",3502,EXCLUSIVO PARA CONV. DNOC - MATERIAL DE CONSUMO,RESILIRE S F COMERCIO LTDA,null,UNIVERSIDADE DE BRASÍLIA,null,312.00,ordinário,605
PRÓPRIOS -  PREST.SERVICOS FUB/FUNDO,4297.00,FISCAL,PR 202/2022 - UNB,2022,21/12/2022,CRÉDITOS DISTRIBUÍDOS PARA AS UNIDADES ADMINISTRATIVAS,null,null,null,FUNCIONAMENTO DE INSTITUICOES FEDERAI - NO DF,23106.038751/2022-30,"C.CUSTO:OUV// MICROCOMPUTADOR TIPO PADRAO// REQ. 7194/2022// PREGAO 202/2022PROT:110139(4297,00)// SEI N.23106.146560/2022-41",3501,EQUIPAMENTOS E MATERIAL PERMANENTE,DATEN TECNOLOGIA LTDA,null,UNIVERSIDADE DE BRASÍLIA,null,4297.00,ordinário,605
PRÓPRIOS -  PREST.SERVICOS FUB/FUNDO,4250.00,FISCAL,PR 202/2022 - UNB,2022,21/12/2022,CRÉDITOS DISTRIBUÍDOS PARA AS UNIDADES ADMINISTRATIVAS,null,null,null,FUNCIONAMENTO DE INSTITUICOES FEDERAI - NO DF,23106.038751/2022-30,"C.CUSTO:DPI// NOTEBOOK TIPO PADRAO// REQ. 7071/2022PROT:110142(4250,00)// 2022ND006155// SEI N. 23106.141906/2022-14",3500,EQUIPAMENTOS E MATERIAL PERMANENTE,DATEN TECNOLOGIA LTDA,null,UNIVERSIDADE DE BRASÍLIA,null,4250.00,ordinário,605
PRÓPRIOS -  PREST.SERVICOS FUB/FUNDO,7013.00,FISCAL,null,2022,22/12/2022,CRÉDITOS DISTRIBUÍDOS PARA AS UNIDADES ACADÊMICAS,null,null,null,FUNCIONAMENTO DE INSTITUICOES FEDERAI - NO DF,23106.115774/2022-75,"C.CUSTO : IQD S.E.I Nº : 23106.115774/2022-75MEMO.183/2022/IQ/SECADM 2022ND006021 - INEX: 20037/2022ATT - MARCOS JULIANO PRAUCHNER - PROT:11010122(7013,00)MANUTENÇÃO DE MAQ. E EQUIP. - PLACA ELETRÔNICA - APLICAÇÃO ANALISADOR TERMOGRAVIMÉTRICO",3498,SERV. PESSOA JURÍDICA,SHIMADZU DO BRASIL COMERCIO LTDA.,null,UNIVERSIDADE DE BRASÍLIA,null,7013.00,global,605
PRÓPRIOS -  PREST.SERVICOS FUB/FUNDO,24037.38,FISCAL,DL 20037/2022 - UNB,2022,22/12/2022,CRÉDITOS DISTRIBUÍDOS PARA AS UNIDADES ACADÊMICAS,null,null,null,FUNCIONAMENTO DE INSTITUICOES FEDERAI - NO DF,23106.115774/2022-75,"C.CUSTO : IQD S.E.I Nº : 23106.115774/2022-75MEMO.183/2022/IQ/SECADM 2022ND006021 - DISP: 20037/2022ATT - MARCOS JULIANO PRAUCHNER - PROT:11010122(24037,28)MATERIAL ELÉTRICO ELETRÔNICO - PLACA ELETRÔNICA - APLICAÇÃO ANALISADOR TERMOGRAVIMÉTRICO",3497,MAT. CONSUMO,SHIMADZU DO BRASIL COMERCIO LTDA.,null,UNIVERSIDADE DE BRASÍLIA,null,24037.38,global,605
PRÓPRIOS -  PREST.SERVICOS FUB/FUNDO,25782.00,FISCAL,PR 202/2022 - UNB,2022,21/12/2022,CRÉDITOS DISTRIBUÍDOS PARA AS UNIDADES ACADÊMICAS,null,null,null,FUNCIONAMENTO DE INSTITUICOES FEDERAI - NO DF,23106.038751/2022-30,"C. CUSTO: FM.     PROT:11010109{SM7069/2022(25782,00)}          SEI 23106.141878/2022-35.AQUISIÇÃO DE MICROCOMPUTADOR.DEMONSTRATIVO (9119354).     MEMO 134/2022/FM/DIR.",3496,EQUIPAMENTOS E MATERIAL PERMANENTE,DATEN TECNOLOGIA LTDA,null,UNIVERSIDADE DE BRASÍLIA,null,25782.00,ordinário,605
PRÓPRIOS -  PREST.SERVICOS FUB/FUNDO,4150.00,FISCAL,PR 1/2022 - 32 GAC,2022,21/12/2022,CRÉDITOS DISTRIBUÍDOS PARA AS UNIDADES ADMINISTRATIVAS,null,null,null,FUNCIONAMENTO DE INSTITUICOES FEDERAI - NO DF,23106.144313/2022-18,"C. CUSTO: DAF.      PROT:110110{SM7190/2022(4150,00)}      SEI 23106.144313/2022-18.AQUISIÇÃO DE REFRIGERADOR DUPLEX.SALDO SIAFI (9119302).     DESPACHO DAF/DACP 9049279.       PREGÃO 1/2022 - 32 GAC.",3495,EQUIP. MATERIAL PERMANENTE,F & R SOLUCOES ADMINISTRATIVAS LTDA,null,UNIVERSIDADE DE BRASÍLIA,null,4150.00,ordinário,605
PRÓPRIOS -  PREST.SERVICOS FUB/FUNDO,1100.00,FISCAL,PR 1/2022 - 32  GAC,2022,21/12/2022,CRÉDITOS DISTRIBUÍDOS PARA AS UNIDADES ADMINISTRATIVAS,null,null,null,FUNCIONAMENTO DE INSTITUICOES FEDERAI - NO DF,23106.001077/2022-48,"C. CUSTO: SPI.     PROT:110147{SM7255/2022(1100,00)}        SEI 23106.145739/2022-81.AQUISIÇÃO DE FORNO MICROONDAS.SALDO SIAFI (9117786).    DESPACHO SPI 9066755.     PREGÃO 1/2022 - 32 GAC.",3493,EQUIP. MATERIAL PERMANENTE,JOICE LARA ROSA,null,UNIVERSIDADE DE BRASÍLIA,null,1100.00,ordinário,605
PRÓPRIOS -  PREST.SERVICOS FUB/FUNDO,4150.00,FISCAL,PR 1/2022 - 32  GAC,2022,21/12/2022,CRÉDITOS DISTRIBUÍDOS PARA AS UNIDADES ADMINISTRATIVAS,null,null,null,FUNCIONAMENTO DE INSTITUICOES FEDERAI - NO DF,23106.001077/2022-48,"C. CUSTO: SPI.     PROT:110147{SM7254/2022(4150,00)}        SEI 23106.145739/2022-81.AQUISIÇÃO DE REFRIGERADOR DUPLEX.SALDO SIAFI (9117786).    DESPACHO SPI 9066755.     PREGÃO 1/2022 - 32 GAC.",3492,EQUIP. MATERIAL PERMANENTE,F & R SOLUCOES ADMINISTRATIVAS LTDA,null,UNIVERSIDADE DE BRASÍLIA,null,4150.00,ordinário,605
PRÓPRIOS -  PREST.SERVICOS FUB/FUNDO,657.00,FISCAL,PR 28/2022 - UNB,2022,21/12/2022,CRÉDITOS DISTRIBUÍDOS PARA AS UNIDADES ADMINISTRATIVAS,null,null,null,FUNCIONAMENTO DE INSTITUICOES FEDERAI - NO DF,23106.054309/2021-70,"C. CUSTO: DPO                 SEI:23106.147733/2022-48ATT:  RAFAELA RODRIGUES SANTOS   2022ND000000MEMO.241/2022/DPO/SEC         PROT:110135{SM7268/2022(657,00)}MATERIAL DE PERMANENTE - PEDIDO:7268/2022 - PREG:028/2022  MAQ.UTENS.EQUIP.DIVERSOS - VENTILADOR TIPO PAREDE - POTÊNCIA MOTOR 500 W",3491,EQUIP. MATERIAL PERMANENTE,VENGOV PRODUTOS E SERVICOS LTDA,null,UNIVERSIDADE DE BRASÍLIA,null,657.00,ordinário,605
PRÓPRIOS -  PREST.SERVICOS FUB/FUNDO,21250.00,FISCAL,PR 202/2022 - UNB,2022,21/12/2022,CRÉDITOS DISTRIBUÍDOS PARA AS UNIDADES ADMINISTRATIVAS,null,null,null,FUNCIONAMENTO DE INSTITUICOES FEDERAI - NO DF,23106.038751/2022-30,"C. CUSTO: AUD.      PROT:110103{SM7085/2022(21250,00)}       SEI 23106.142160/2022-66.AQUISIÇÃO DE NOTEBOOK.DEMONSTRATIVO (9117502).       MEMO AUD 260/2022/AUD/SEC.",3490,EQUIPAMENTOS E MATERIAL PERMANENTE,DATEN TECNOLOGIA LTDA,null,UNIVERSIDADE DE BRASÍLIA,null,21250.00,ordinário,605
PRÓPRIOS -  PREST.SERVICOS FUB/FUNDO,650.00,FISCAL,PR 34/2021 - UNB,2022,21/12/2022,CRÉDITOS DISTRIBUÍDOS PARA AS UNIDADES ACADÊMICAS,null,null,null,FUNCIONAMENTO DE INSTITUICOES FEDERAI - NO DF,23106.053995/2021-61,"C. CUSTO: FTD                SEI:23106.141614/2022-81ATT: JORGE LUIZ DE ALMEIDA   2022ND000000MEMO.072/2022/FT/ENM         PROT:11010111{SM7011/2022(650,00)}MATERIAL DE PERMANENTE - PEDIDO:7011/2022 - PREG:034/2021  APARELHO DE MEDIÇÃO E ORIENTAÇÃO - MULTÍMETRO DIGITAL",3489,EQUIP. MATERIAL PERMANENTE,N.H.NETO COMERCIO DE INSTRUMENTOS DE MEDICAO,null,UNIVERSIDADE DE BRASÍLIA,null,650.00,ordinário,605
PRÓPRIOS -  PREST.SERVICOS FUB/FUNDO,21250.00,FISCAL,PR 202/2022 - UNB,2022,21/12/2022,CRÉDITOS DISTRIBUÍDOS PARA AS UNIDADES ACADÊMICAS,null,null,null,FUNCIONAMENTO DE INSTITUICOES FEDERAI - NO DF,23106.038751/2022-30,"C. CUSTO: FAU                SEI:23106.140727/2022-60ATT: MARCOS THADEU QUEIROZ   2022ND006148MEMO.140/2022/FAU/DIR        PROT:11010104{SM6903/2022(21250,00)}MATERIAL DE PERMANENTE - PEDIDO:6903/2022 - PREG:202/2022  EQUIPAMENTOS TIC - NOTEBOOK TIPO  PADRÃO",3488,EQUIPAMENTOS E MATERIAL PERMANENTE,DATEN TECNOLOGIA LTDA,null,UNIVERSIDADE DE BRASÍLIA,null,21250.00,ordinário,605
PRÓPRIOS -  PREST.SERVICOS FUB/FUNDO,6488.90,FISCAL,PR 202/2022 - UNB,2022,21/12/2022,CRÉDITOS DISTRIBUÍDOS PARA AS UNIDADES ACADÊMICAS,null,null,null,FUNCIONAMENTO DE INSTITUICOES FEDERAI - NO DF,23106.038751/2022-30,"C. CUSTO: ICS                   SEI:23106.136511/2022-08ATT: ARTHUR TRINDADE MARANHAO   2022ND000000MEMO.036/2022/ICS               PROT:11010113{SM6591/2022(6488,90)}MATERIAL DE PERMANENTE - PEDIDO:6591/2022 -   PREG:202/2022  EQUIPAMENTOS TIC - MICROCOMPUTADOR TIPO AVANÇADO",3487,EQUIPAMENTOS E MATERIAL PERMANENTE,DATEN TECNOLOGIA LTDA,null,UNIVERSIDADE DE BRASÍLIA,null,6488.90,ordinário,605
RECURSOS DIRETAM.ARREC FUNDAÇÃO UNIV.BRASÍLIA,5670.36,FISCAL,PR 28/2022 - UNB,2022,21/12/2022,FUNCIONAMENTO GERAL,null,null,null,FUNCIONAMENTO DE INSTITUICOES FEDERAI - NO DF,23106.054309/2021-70,"C. CUSTO: PRC.       PROT:110105{SM7054/2022(5670,36)}     SEI 23106.140201/2022-80.AQUISIÇÃO DE BEBEDOURO INDUSTRIAL.2022ND005762.      DESPACHO PRC/DIMAT/COEA 9107816.",3486,EQUIP. MATERIAL PERMANENTE,ARGOS LTDA,null,UNIVERSIDADE DE BRASÍLIA,null,5670.36,ordinário,605
RECURSOS DIRETAM.ARREC FUNDAÇÃO UNIV.BRASÍLIA,0.00,FISCAL,PR 28/2022 - UNB,2022,21/12/2022,FUNCIONAMENTO GERAL,null,2835.18,null,FUNCIONAMENTO DE INSTITUICOES FEDERAI - NO DF,23106.054309/2021-70,"C. CUSTO: PRC.       PROT:110105{SM7053/2022(2835,18)}     SEI 23106.140201/2022-80.AQUISIÇÃO DE BEBEDOURO INDUSTRIAL.2022ND005762.      DESPACHO PRC/DIMAT/COEA 9107816.",3485,EQUIP. MATERIAL PERMANENTE,ARGOS LTDA,null,UNIVERSIDADE DE BRASÍLIA,null,2835.18,ordinário,605
PRÓPRIOS -  PREST.SERVICOS FUB/FUNDO,6970.00,FISCAL,PR 11/2022 - CENTRAL,2022,21/12/2022,CRÉDITOS DISTRIBUÍDOS PARA AS UNIDADES ADMINISTRATIVAS,null,null,null,FUNCIONAMENTO DE INSTITUICOES FEDERAI - NO DF,23106.110735/2021-12,"C.CUSTO : DPI         S.E.I : 23106.141875/2022-00 - PREG:11/2022 - UASG: 201057MEMO.129/2022/DPI     2022ND005660 - LOCAÇÃO DE SOFTWAREATT - MARIA EMILIA MACHADO   PROT:110142{SM7063/2022(6970,00)}SERV.DE TEC. DA INFOR. E COMUNIC. - SOFTWARE ADOBE CREATIVE CLOUD - EDUC. NAMED LICENSELOCAÇÃO DE SOFTWARE - CESSÃO TEMPORÁRIA DE DIREITOS SOBRE PROGRAMAS",3484,SERVIÇOS TIC,MCR SISTEMAS E CONSULTORIA LTDA,null,UNIVERSIDADE DE BRASÍLIA,null,6970.00,ordinário,605
RECURSOS DIRETAM.ARREC FUNDAÇÃO UNIV.BRASÍLIA,2835.18,FISCAL,PR 28/2022 - UNB,2022,21/12/2022,FUNCIONAMENTO GERAL,null,null,null,FUNCIONAMENTO DE INSTITUICOES FEDERAI - NO DF,23106.054309/2021-70,"C. CUSTO: PRC.       PROT:110105{SM6345/2022(2835,18)}     SEI 23106.140201/2022-80.AQUISIÇÃO DE BEBEDOURO INDUSTRIAL.2022ND005762.      DESPACHO PRC/DIMAT/COEA 9107816.",3483,EQUIP. MATERIAL PERMANENTE,ARGOS LTDA,null,UNIVERSIDADE DE BRASÍLIA,null,2835.18,ordinário,605
RECURSOS DIRETAM.ARREC FUNDAÇÃO UNIV.BRASÍLIA,2835.18,FISCAL,PR 28/2022 - UNB,2022,21/12/2022,FUNCIONAMENTO GERAL,null,null,null,FUNCIONAMENTO DE INSTITUICOES FEDERAI - NO DF,23106.054309/2021-70,"C. CUSTO: PRC.       PROT:110105{SM6342/2022(2835,18)}     SEI 23106.140201/2022-80.AQUISIÇÃO DE BEBEDOURO INDUSTRIAL.2022ND005762.      DESPACHO PRC/DIMAT/COEA 9107816.",3482,EQUIP. MATERIAL PERMANENTE,ARGOS LTDA,null,UNIVERSIDADE DE BRASÍLIA,null,2835.18,ordinário,605
RECURSOS DIRETAM.ARREC FUNDAÇÃO UNIV.BRASÍLIA,8505.54,FISCAL,PR 28/2022 - UNB,2022,21/12/2022,FUNCIONAMENTO GERAL,null,null,null,FUNCIONAMENTO DE INSTITUICOES FEDERAI - NO DF,23106.054309/2021-70,"C. CUSTO: PRC.       PROT:110105{SM6236/2022(8505,54)}     SEI 23106.140201/2022-80.AQUISIÇÃO DE BEBEDOURO INDUSTRIAL.2022ND005762.      DESPACHO PRC/DIMAT/COEA 9107816.",3480,EQUIP. MATERIAL PERMANENTE,ARGOS LTDA,null,UNIVERSIDADE DE BRASÍLIA,null,8505.54,ordinário,605
RECURSOS DIRETAM.ARREC FUNDAÇÃO UNIV.BRASÍLIA,8505.54,FISCAL,PR 28/2022 - UNB,2022,21/12/2022,FUNCIONAMENTO GERAL,null,null,null,FUNCIONAMENTO DE INSTITUICOES FEDERAI - NO DF,23106.054309/2021-70,"C. CUSTO: PRC.       PROT:110105{SM6554/2022(8505,54)}     SEI 23106.140201/2022-80.AQUISIÇÃO DE BEBEDOURO INDUSTRIAL.2022ND005762.      DESPACHO PRC/DIMAT/COEA 9107816.",3479,EQUIP. MATERIAL PERMANENTE,ARGOS LTDA,null,UNIVERSIDADE DE BRASÍLIA,null,8505.54,ordinário,605
RECURSOS DIR.ARRECADADOS(PROPRIOS)-FUB -,8594.00,FISCAL,PR 202/2022 - UNB,2022,21/12/2022,RECEITAS LAB IG - ANALISES LABORATORIAIS,null,null,null,FUNCIONAMENTO DE INSTITUICOES FEDERAI - NO DF,23106.038751/2022-30,"C. CUSTO IGD PROT:11010117{SM7130/2022(8594,00)AQUISIÇÃO DE MICROCOMPUTADORES, TIPO, PADRÃOSEI: 23106.142931/2022-15  PR: 202/2022",3478,EQUIPAMENTOS E MATERIAL PERMANENTE,DATEN TECNOLOGIA LTDA,null,UNIVERSIDADE DE BRASÍLIA,null,8594.00,ordinário,605
RECURSOS DIRETAM.ARREC FUNDAÇÃO UNIV.BRASÍLIA,7760.00,FISCAL,PR 28/2022 - UNB,2022,21/12/2022,FUNCIONAMENTO GERAL,null,null,null,FUNCIONAMENTO DE INSTITUICOES FEDERAI - NO DF,23106.054309/2021-70,"C. CUSTO: PRC.       PROT:110105{SM6559/2022(7760,00)}     SEI 23106.140201/2022-80.AQUISIÇÃO DE BEBEDOURO INDUSTRIAL.2022ND005762.      DESPACHO PRC/DIMAT/COEA 9107816.",3476,EQUIP. MATERIAL PERMANENTE,ARGOS LTDA,null,UNIVERSIDADE DE BRASÍLIA,null,7760.00,ordinário,605
PRÓPRIOS -  PREST.SERVICOS FUB/FUNDO,4500.00,FISCAL,PR 207/2021 - UNB,2022,21/12/2022,CRÉDITOS DISTRIBUÍDOS PARA AS UNIDADES ADMINISTRATIVAS,null,null,null,FUNCIONAMENTO DE INSTITUICOES FEDERAI - NO DF,23106.142646/2022-02,"C. CUSTO DAF PROT:110110{SM7205/2022(4500,00) PR 207/2021AQUISIÇÃO DE 02 (DOIS) TABLETSSEI: 23106.142646/2022-02",3474,EQUIP. MATERIAL PERMANENTE,POLLIANA IOLANDA ASSUNCAO SILVA NUNES,null,UNIVERSIDADE DE BRASÍLIA,null,4500.00,global,605
RECURSOS DIRETAM.ARREC FUNDAÇÃO UNIV.BRASÍLIA,3880.00,FISCAL,PR 28/2022 - UNB,2022,21/12/2022,FUNCIONAMENTO GERAL,null,null,null,FUNCIONAMENTO DE INSTITUICOES FEDERAI - NO DF,23106.054309/2021-70,"C. CUSTO: PRC.       PROT:110105{SM6911/2022(3880,00)}        SEI 23106.140201/2022-80.AQUISIÇÃO DE BEBEDOURO INDUSTRIAL .2022ND005762.      DESPACHO PRC/DIMAT/COEA 9107816.",3473,EQUIP. MATERIAL PERMANENTE,ARGOS LTDA,null,UNIVERSIDADE DE BRASÍLIA,null,3880.00,ordinário,605
TAXA DE ALUNO ESPECIAL -FUB,2250.00,FISCAL,PR 207/2021 - UNB,2022,21/12/2022,PROGRAMA DE POS-GRADUACAO EM ARTES CENICAS,null,null,null,FUNCIONAMENTO DE INSTITUICOES FEDERAI - NO DF,23106.079963/2020-13,"C. CUSTO PPGCEN PROT:1101011405{SM7127/2022(2250,00)AQUISIÇÃO DE TABLETSEI: 23106.142763/2022-68",3472,EQUIPAMENTOS E MATERIAL PERMANENTE,POLLIANA IOLANDA ASSUNCAO SILVA NUNES,null,UNIVERSIDADE DE BRASÍLIA,null,2250.00,ordinário,605
PRÓPRIOS -  PREST.SERVICOS FUB/FUNDO,19466.70,FISCAL,PR 202/2022 - UNB,2022,21/12/2022,CRÉDITOS DISTRIBUÍDOS PARA AS UNIDADES ACADÊMICAS,null,null,null,FUNCIONAMENTO DE INSTITUICOES FEDERAI - NO DF,23106.038751/2022-30,"C.CUSTO:IREL// AQUISIÇÃO MICROCOMPUTADOR TIPO PADRAO// REQ. 6635/2022PROT:11010125(19466,70)// PREGAO 202/2022// SEI N.23106.136041/2022-74",3469,EQUIPAMENTOS E MATERIAL PERMANENTE,DATEN TECNOLOGIA LTDA,null,UNIVERSIDADE DE BRASÍLIA,null,19466.70,ordinário,605
RECURSOS DIRETAM.ARREC FUNDAÇÃO UNIV.BRASÍLIA,12977.80,FISCAL,PR 202/2022 - UNB,2022,21/12/2022,CUSTOS INDIRETOS DAS UNIDADES - RECOMPOSICAO,null,null,null,FUNCIONAMENTO DE INSTITUICOES FEDERAI - NO DF,23106.038751/2022-30,"C.CUSTO:ICS// AQUISIÇÃO DE MICROCOMPUTADOR// PR. 202/2022PROT:11010113(12977,80)// REQ. 6793/2022// SEI N.23106.140507/2022-36",3468,EQUIPAMENTOS E MATERIAL PERMANENTE,DATEN TECNOLOGIA LTDA,null,UNIVERSIDADE DE BRASÍLIA,null,12977.80,ordinário,605
RECURSOS DIRETAM.ARREC FUNDAÇÃO UNIV.BRASÍLIA,8500.00,FISCAL,PR 202/2022 - UNB,2022,21/12/2022,CUSTOS INDIRETOS DAS UNIDADES - RECOMPOSICAO,null,null,null,FUNCIONAMENTO DE INSTITUICOES FEDERAI - NO DF,23106.140507/2022-36,"C.CUSTO:ICS// AQUISIÇÃO DE NOTEBOOK TIPO PADRAO// PR. 202/2022PROT:11010113(8500,00)// REQ. 6630/2022// SEI N.23106.140507/2022-36",3467,EQUIP. MATERIAL PERMANENTE,DATEN TECNOLOGIA LTDA,null,UNIVERSIDADE DE BRASÍLIA,null,8500.00,global,605
RECURSOS DIRETAM.ARREC FUNDAÇÃO UNIV.BRASÍLIA,68838.80,FISCAL,PR 202/2022 - UNB,2022,21/12/2022,CUSTOS INDIRETOS DAS UNIDADES - RECOMPOSICAO,null,null,null,FUNCIONAMENTO DE INSTITUICOES FEDERAI - NO DF,23106.038751/2022-30,"C.CUSTO:ICS// AQUISIÇÃO DE MICROCOMPUTADOR TIPO AVANÇADO// PR. 202/2022PROT:11010113(68838,80)// REQ. 6585/2022// SEI N.23106.140507/2022-36",3466,EQUIPAMENTOS E MATERIAL PERMANENTE,DATEN TECNOLOGIA LTDA,null,UNIVERSIDADE DE BRASÍLIA,null,68838.80,ordinário,605
CUSTOS INDIRETOS - UNIDADES DIVERSAS,22500.00,FISCAL,PR 207/2021 - UNB,2022,21/12/2022,CUSTOS INDIRETOS UNIDADE CAPTADORA,null,null,null,FUNCIONAMENTO DE INSTITUICOES FEDERAI - NO DF,23106.079963/2020-13,"C.CUSTO:IGD// AQUISIÇÃO DE TABLET// MEMO N.23106.142124/2022-01/2022/IG//REQ. 7099PROT:11010117(22500,00)// 2022ND006150",3465,EQUIPAMENTOS E MATERIAL PERMANENTE,POLLIANA IOLANDA ASSUNCAO SILVA NUNES,null,UNIVERSIDADE DE BRASÍLIA,null,22500.00,ordinário,605
PRÓPRIOS -  PREST.SERVICOS FUB/FUNDO,14988.90,FISCAL,PR 202/2022 - UNB,2022,21/12/2022,CRÉDITOS DISTRIBUÍDOS PARA AS UNIDADES ACADÊMICAS,null,null,null,FUNCIONAMENTO DE INSTITUICOES FEDERAI - NO DF,23106.038751/2022-30,"C.CUSTO:ICS//  AQUISIÇÃO DE MICROCOMPUTADOR TIPO AVANÇADO E NOTEBOOK// REQ. 7114/2022PROT:11010113(14988,90)// DESPACHO ICS / SOL (9066771)// SEI N.23106.145741/2022-50",3464,EQUIPAMENTOS E MATERIAL PERMANENTE,DATEN TECNOLOGIA LTDA,null,UNIVERSIDADE DE BRASÍLIA,null,14988.90,ordinário,605
RECURSOS DIRETAM.ARREC FUNDAÇÃO UNIV.BRASÍLIA,1536776.00,FISCAL,PR 206/2021 - UNB,2022,20/12/2022,FUNCIONAMENTO GERAL,null,null,null,FUNCIONAMENTO DE INSTITUICOES FEDERAI - NO DF,23106.149041/2022-34,"C. CUSTO: STI.        PROT:110114(1536776,00)        SEI 23106.149041/2022-34.EXPANSÃO DE STORAGE NETAPP FAS 8200 - GAVETA SAS, GAVETA NAS, GAVETA SSD.2022ND006115.      DESPACHO STI/DOS/DDC 9109218.     PREGÃO 206/2021.",3453,EQUIP. MATERIAL PERMANENTE,SERVIX INFORMATICA LTDA,null,UNIVERSIDADE DE BRASÍLIA,null,1536776.00,global,605
